Workbook

Sheet Cover
A1: Cover
B2: Louisiana Housing Corporation
B4: =+'Primary Input'!G6 -> 0
B5: =+'Primary Input'!E7 -> 0
B6: HOMEOWNERSHIP DEVELOPMENT APPLICATION
C8: Version: | D8: SFAH06012022.01
D11: Project Name: | E11: =+'Primary Input'!E8 -> 0
D12: Parish: | E12: =+'Primary Input'!E12 -> 0

Sheet Primary Input
A1: Primary Input | E1: =+Cover!D8 -> SFAH06012022.01 | I1: =+Cover!E11 -> 0
B3: Application Progress Date: | E3: =NOW() -> 2022-09-23T08:59:01.830 | I3: Current Date:
B5: General Information: | E5: Month | F5: Date | G5: Year | I5: Property Breakdown:
B6: Date of Application
B7: Type of Application
B8: Project Name: | I8: Number of Residential Buildings
B9: Project Street Address | I9: Accessory Buildings
B10: Project City | I10: Is Project in an AODN | J10: =+Lists!E130 ->  | K10: =IF(J10="YES", "AODN Underwriting allowed", "Standard Underwriting") -> 
B11: Zip Code: | I11: Development Type
B12: Project Parish: | I12: Type of Construction
B13: Congressional District: | I13: Occupancy Type
B14: Taxpayer Name:
B15: Taxpayer Address: | I15: Building Style
B16: Taxpayer City, State & Zip: | I16: Residential Unit Mix:
B17: Legal Structure of Taxpayer: | I17: 0 BR
B18: Qualified Non-Profit Name if Applicable | I18: 1 BR
B19: Taxpayer Contact: | I19: 2 BR
B20: Contact Phone Number: | I20: 3BR
B21: Contact Fax Number: | I21: 4 BR
B22: E-Mail Address: | I22: 5 BR
B23: Maximum Tax Credits Requested: | I23: Other | M23: =IF(credits>0, "Error on Line 23. Tax Credits Are Not Avaliable Under a Homeownership Application", "") -> 
B24: Maximum HOME Funds Requested: | I24: TOTAL | J24: =SUM(J17:J23) -> 0
B25: Maximum LHC-CDBG Funds Requested: | I25: =IF(E25>0," Designated Disaster Area","") ->  | M25: =IF(E25>0, "Error on Line 23. LHC-CDBG Funds Are Not Avaliable Under This NOFA", "") -> 
B26: Funding Type
B27: Projected HOME Closing Date: | I27: Appraisal:
B28: Qualified Census Tract/DDA Location: | I28: Appraisal Date:
B29: LHC Unique Identification Number
B30: Federal ID / SSN: | I30: Pre-Rehab/New Construction Appraisal Value:
B31: To be Formed Date | I31: Post-Rehab/As Built Appraisal Value:
B32: =IF(rrr>1500000, " Please check limits in the QAP for the Maximum Amount of Tax Credits", "") -> 

Sheet Lists (hidden)
A1: HOME and Housing Trust Fund Homeownership Sales Price Limits - FY 2022
A2: (Data through June 2020; New limits effective June 1, 2021)
D4: Existing Homes HOME/HTF Purchase Price Limit | L4: New Homes HOME/HTF Purchase Price Limit
A5: State | B5: County Name | C5: Metropolitan/FMR Area Name | D5: 1-Unit | E5: 2-unit | F5: 3-unit | G5: 4-unit | H5: Unadjusted Median Value | I5: Years Worth of Sales Data* | J5: Number of Sales for Unadjusted Median** | K5: Geographic Area Used | L5: 1-Unit | M5: 2-unit | N5: 3-unit | O5: 4-unit | P5: Unadjusted Median Value | Q5: Years Worth of Sales Data* | R5: Number of Sales for Unadjusted Median** | S5: Geographic Area Used | T5: Metropolitan/FMR Area Name | V5: 2022 234 Limits
A6: LA | B6: Acadia Parish | C6: Acadia Parish, LA HUD Metro FMR Area | D6: 173000 | E6: 221000 | F6: 268000 | G6: 332000 | H6: 182000 | I6: 1 | J6: 2224 | K6: Non-Metro State | L6: 251000 | M6: 321000 | N6: 389000 | O6: 482000 | P6: 264000 | Q6: 1 | R6: 0 | S6: Non-Metro US | T6: METRO29180N22001 | W6: 0 BR | X6: 1 BR | Y6: 2 BR | Z6: 3 BR | AA6: 4 OR MORE BR
A7: LA | B7: Allen Parish | C7: Allen Parish, LA | D7: 173000 | E7: 221000 | F7: 268000 | G7: 332000 | H7: 182000 | I7: 1 | J7: 2224 | K7: Non-Metro State | L7: 251000 | M7: 321000 | N7: 389000 | O7: 482000 | P7: 264000 | Q7: 1 | R7: 0 | S7: Non-Metro US | T7: NCNTY22003N22003 | V7: Acadia | W7: 179722 | X7: 206023 | Y7: 250530 | Z7: 324105 | AA7: 355765
A8: LA | B8: Ascension Parish | C8: Baton Rouge, LA HUD Metro FMR Area | D8: 232000 | E8: 297000 | F8: 360000 | G8: 446000 | H8: 244524 | I8: 1 | J8: 1064 | K8: County | L8: 251000 | M8: 321000 | N8: 389000 | O8: 482000 | P8: 264000 | Q8: 1 | R8: 0 | S8: Non-Metro US | T8: METRO12940M12940 | V8: Allen | W8: 179722 | X8: 206023 | Y8: 250530 | Z8: 324105 | AA8: 355765
A9: LA | B9: Assumption Parish | C9: Assumption Parish, LA | D9: 173000 | E9: 221000 | F9: 268000 | G9: 332000 | H9: 182000 | I9: 1 | J9: 2224 | K9: Non-Metro State | L9: 251000 | M9: 321000 | N9: 389000 | O9: 482000 | P9: 264000 | Q9: 1 | R9: 0 | S9: Non-Metro US | T9: NCNTY22007N22007 | V9: Ascension | W9: 179722 | X9: 206023 | Y9: 250530 | Z9: 324105 | AA9: 355765
A10: LA | B10: Avoyelles Parish | C10: Avoyelles Parish, LA | D10: 173000 | E10: 221000 | F10: 268000 | G10: 332000 | H10: 182000 | I10: 1 | J10: 2224 | K10: Non-Metro State | L10: 251000 | M10: 321000 | N10: 389000 | O10: 482000 | P10: 264000 | Q10: 1 | R10: 0 | S10: Non-Metro US | T10: NCNTY22009N22009 | V10: Assumption | W10: 179722 | X10: 206023 | Y10: 250530 | Z10: 324105 | AA10: 355765
A11: LA | B11: Beauregard Parish | C11: Beauregard Parish, LA | D11: 180000 | E11: 231000 | F11: 280000 | G11: 346000 | H11: 189900 | I11: 5 | J11: 795 | K11: County | L11: 251000 | M11: 321000 | N11: 389000 | O11: 482000 | P11: 264000 | Q11: 1 | R11: 0 | S11: Non-Metro US | T11: NCNTY22011N22011 | V11: Avoyelles | W11: 179722 | X11: 206023 | Y11: 250530 | Z11: 324105 | AA11: 355765
A12: LA | B12: Bienville Parish | C12: Bienville Parish, LA | D12: 173000 | E12: 221000 | F12: 268000 | G12: 332000 | H12: 182000 | I12: 1 | J12: 2224 | K12: Non-Metro State | L12: 251000 | M12: 321000 | N12: 389000 | O12: 482000 | P12: 264000 | Q12: 1 | R12: 0 | S12: Non-Metro US | T12: NCNTY22013N22013 | V12: Beauregard | W12: 179722 | X12: 206023 | Y12: 250530 | Z12: 324105 | AA12: 355765
A13: LA | B13: Bossier Parish | C13: Shreveport-Bossier City, LA HUD Metro FMR Area | D13: 194000 | E13: 248000 | F13: 300000 | G13: 372000 | H13: 203750 | I13: 1 | J13: 910 | K13: County | L13: 251000 | M13: 321000 | N13: 389000 | O13: 482000 | P13: 264000 | Q13: 1 | R13: 0 | S13: Non-Metro US | T13: METRO43340M43340 | V13: Bienville | W13: 179722 | X13: 206023 | Y13: 250530 | Z13: 324105 | AA13: 355765
A14: LA | B14: Caddo Parish | C14: Shreveport-Bossier City, LA HUD Metro FMR Area | D14: 176000 | E14: 225000 | F14: 272000 | G14: 337000 | H14: 185000 | I14: 1 | J14: 2704 | K14: Metro | L14: 251000 | M14: 321000 | N14: 389000 | O14: 482000 | P14: 264000 | Q14: 1 | R14: 0 | S14: Non-Metro US | T14: METRO43340M43340 | V14: Bossier | W14: 179722 | X14: 206023 | Y14: 250530 | Z14: 324105 | AA14: 355765
A15: LA | B15: Calcasieu Parish | C15: Lake Charles, LA MSA | D15: 209000 | E15: 268000 | F15: 324000 | G15: 401000 | H15: 220032.5 | I15: 1 | J15: 1324 | K15: Metro | L15: 251000 | M15: 321000 | N15: 389000 | O15: 482000 | P15: 264000 | Q15: 1 | R15: 0 | S15: Non-Metro US | T15: METRO29340M29340 | V15: Caddo | W15: 179722 | X15: 206023 | Y15: 250530 | Z15: 324105 | AA15: 355765
A16: LA | B16: Caldwell Parish | C16: Caldwell Parish, LA | D16: 173000 | E16: 221000 | F16: 268000 | G16: 332000 | H16: 182000 | I16: 1 | J16: 2224 | K16: Non-Metro State | L16: 251000 | M16: 321000 | N16: 389000 | O16: 482000 | P16: 264000 | Q16: 1 | R16: 0 | S16: Non-Metro US | T16: NCNTY22021N22021 | V16: Calcasieu | W16: 179722 | X16: 206023 | Y16: 250530 | Z16: 324105 | AA16: 355765
A17: LA | B17: Cameron Parish | C17: Lake Charles, LA MSA | D17: 210000 | E17: 268000 | F17: 325000 | G17: 403000 | H17: 220800 | I17: 5 | J17: 110 | K17: County | L17: 251000 | M17: 321000 | N17: 389000 | O17: 482000 | P17: 264000 | Q17: 1 | R17: 0 | S17: Non-Metro US | T17: METRO29340M29340 | V17: Caldwell | W17: 179722 | X17: 206023 | Y17: 250530 | Z17: 324105 | AA17: 355765
A18: LA | B18: Catahoula Parish | C18: Catahoula Parish, LA | D18: 173000 | E18: 221000 | F18: 268000 | G18: 332000 | H18: 182000 | I18: 1 | J18: 2224 | K18: Non-Metro State | L18: 251000 | M18: 321000 | N18: 389000 | O18: 482000 | P18: 264000 | Q18: 1 | R18: 0 | S18: Non-Metro US | T18: NCNTY22025N22025 | V18: Cameron | W18: 179722 | X18: 206023 | Y18: 250530 | Z18: 324105 | AA18: 355765
A19: LA | B19: Claiborne Parish | C19: Claiborne Parish, LA | D19: 173000 | E19: 221000 | F19: 268000 | G19: 332000 | H19: 182000 | I19: 1 | J19: 2224 | K19: Non-Metro State | L19: 251000 | M19: 321000 | N19: 389000 | O19: 482000 | P19: 264000 | Q19: 1 | R19: 0 | S19: Non-Metro US | T19: NCNTY22027N22027 | V19: Catahoula | W19: 179722 | X19: 206023 | Y19: 250530 | Z19: 324105 | AA19: 355765
A20: LA | B20: Concordia Parish | C20: Concordia Parish, LA | D20: 173000 | E20: 221000 | F20: 268000 | G20: 332000 | H20: 182000 | I20: 1 | J20: 2224 | K20: Non-Metro State | L20: 251000 | M20: 321000 | N20: 389000 | O20: 482000 | P20: 264000 | Q20: 1 | R20: 0 | S20: Non-Metro US | T20: NCNTY22029N22029 | V20: Claiborne | W20: 179722 | X20: 206023 | Y20: 250530 | Z20: 324105 | AA20: 355765
A21: LA | B21: De Soto Parish | C21: Shreveport-Bossier City, LA HUD Metro FMR Area | D21: 234000 | E21: 299000 | F21: 362000 | G21: 449000 | H21: 246000 | I21: 5 | J21: 681 | K21: County | L21: 251000 | M21: 321000 | N21: 389000 | O21: 482000 | P21: 264000 | Q21: 1 | R21: 0 | S21: Non-Metro US | T21: METRO43340M43340 | V21: Concordia | W21: 179722 | X21: 206023 | Y21: 250530 | Z21: 324105 | AA21: 355765
A22: LA | B22: East Baton Rouge Parish | C22: Baton Rouge, LA HUD Metro FMR Area | D22: 215000 | E22: 275000 | F22: 333000 | G22: 412000 | H22: 226000 | I22: 1 | J22: 5815 | K22: Metro | L22: 251000 | M22: 321000 | N22: 389000 | O22: 482000 | P22: 264000 | Q22: 1 | R22: 0 | S22: Non-Metro US | T22: METRO12940M12940 | V22: DeSoto | W22: 179722 | X22: 206023 | Y22: 250530 | Z22: 324105 | AA22: 355765
A23: LA | B23: East Carroll Parish | C23: East Carroll Parish, LA | D23: 173000 | E23: 221000 | F23: 268000 | G23: 332000 | H23: 182000 | I23: 1 | J23: 2224 | K23: Non-Metro State | L23: 251000 | M23: 321000 | N23: 389000 | O23: 482000 | P23: 264000 | Q23: 1 | R23: 0 | S23: Non-Metro US | T23: NCNTY22035N22035 | V23: East Baton Rouge | W23: 179722 | X23: 206023 | Y23: 250530 | Z23: 324105 | AA23: 355765
A24: LA | B24: East Feliciana Parish | C24: Baton Rouge, LA HUD Metro FMR Area | D24: 215000 | E24: 275000 | F24: 333000 | G24: 412000 | H24: 226000 | I24: 1 | J24: 5815 | K24: Metro | L24: 251000 | M24: 321000 | N24: 389000 | O24: 482000 | P24: 264000 | Q24: 1 | R24: 0 | S24: Non-Metro US | T24: METRO12940M12940 | V24: East Carroll | W24: 179722 | X24: 206023 | Y24: 250530 | Z24: 324105 | AA24: 355765
A25: LA | B25: Evangeline Parish | C25: Evangeline Parish, LA | D25: 173000 | E25: 221000 | F25: 268000 | G25: 332000 | H25: 182000 | I25: 1 | J25: 2224 | K25: Non-Metro State | L25: 251000 | M25: 321000 | N25: 389000 | O25: 482000 | P25: 264000 | Q25: 1 | R25: 0 | S25: Non-Metro US | T25: NCNTY22039N22039 | V25: East Feliciana | W25: 179722 | X25: 206023 | Y25: 250530 | Z25: 324105 | AA25: 355765
A26: LA | B26: Franklin Parish | C26: Franklin Parish, LA | D26: 173000 | E26: 221000 | F26: 268000 | G26: 332000 | H26: 182000 | I26: 1 | J26: 2224 | K26: Non-Metro State | L26: 251000 | M26: 321000 | N26: 389000 | O26: 482000 | P26: 264000 | Q26: 1 | R26: 0 | S26: Non-Metro US | T26: NCNTY22041N22041 | V26: Evangeline | W26: 179722 | X26: 206023 | Y26: 250530 | Z26: 324105 | AA26: 355765
A27: LA | B27: Grant Parish | C27: Alexandria, LA MSA | D27: 190000 | E27: 243000 | F27: 295000 | G27: 365000 | H27: 200000 | I27: 1 | J27: 822 | K27: Metro | L27: 251000 | M27: 321000 | N27: 389000 | O27: 482000 | P27: 264000 | Q27: 1 | R27: 0 | S27: Non-Metro US | T27: METRO10780M10780 | V27: Franklin | W27: 179722 | X27: 206023 | Y27: 250530 | Z27: 324105 | AA27: 355765
A28: LA | B28: Iberia Parish | C28: Iberia Parish, LA HUD Metro FMR Area | D28: 173000 | E28: 221000 | F28: 268000 | G28: 332000 | H28: 182000 | I28: 1 | J28: 2224 | K28: Non-Metro State | L28: 251000 | M28: 321000 | N28: 389000 | O28: 482000 | P28: 264000 | Q28: 1 | R28: 0 | S28: Non-Metro US | T28: METRO29180N22045 | V28: Grant | W28: 179722 | X28: 206023 | Y28: 250530 | Z28: 324105 | AA28: 355765
A29: LA | B29: Iberville Parish | C29: Iberville Parish, LA HUD Metro FMR Area | D29: 174000 | E29: 223000 | F29: 269000 | G29: 334000 | H29: 183000 | I29: 5 | J29: 577 | K29: County | L29: 251000 | M29: 321000 | N29: 389000 | O29: 482000 | P29: 264000 | Q29: 1 | R29: 0 | S29: Non-Metro US | T29: METRO12940N22047 | V29: Iberia | W29: 179722 | X29: 206023 | Y29: 250530 | Z29: 324105 | AA29: 355765
A30: LA | B30: Jackson Parish | C30: Jackson Parish, LA | D30: 173000 | E30: 221000 | F30: 268000 | G30: 332000 | H30: 182000 | I30: 1 | J30: 2224 | K30: Non-Metro State | L30: 251000 | M30: 321000 | N30: 389000 | O30: 482000 | P30: 264000 | Q30: 1 | R30: 0 | S30: Non-Metro US | T30: NCNTY22049N22049 | V30: Iberville | W30: 179722 | X30: 206023 | Y30: 250530 | Z30: 324105 | AA30: 355765
A31: LA | B31: Jefferson Parish | C31: New Orleans-Metairie, LA HUD Metro FMR Area | D31: 242000 | E31: 310000 | F31: 375000 | G31: 465000 | H31: 255000 | I31: 1 | J31: 9688 | K31: Metro | L31: 251000 | M31: 321000 | N31: 389000 | O31: 482000 | P31: 264000 | Q31: 1 | R31: 0 | S31: Non-Metro US | T31: METRO35380M35380 | V31: Jackson | W31: 179722 | X31: 206023 | Y31: 250530 | Z31: 324105 | AA31: 355765
A32: LA | B32: Jefferson Davis Parish | C32: Jefferson Davis Parish, LA | D32: 173000 | E32: 221000 | F32: 268000 | G32: 332000 | H32: 182000 | I32: 1 | J32: 2224 | K32: Non-Metro State | L32: 251000 | M32: 321000 | N32: 389000 | O32: 482000 | P32: 264000 | Q32: 1 | R32: 0 | S32: Non-Metro US | T32: NCNTY22053N22053 | V32: Jefferson | W32: 179722 | X32: 206023 | Y32: 250530 | Z32: 324105 | AA32: 355765
A33: LA | B33: Lafayette Parish | C33: Lafayette, LA HUD Metro FMR Area | D33: 199000 | E33: 254000 | F33: 308000 | G33: 381000 | H33: 209100 | I33: 1 | J33: 2009 | K33: County | L33: 251000 | M33: 321000 | N33: 389000 | O33: 482000 | P33: 264000 | Q33: 1 | R33: 0 | S33: Non-Metro US | T33: METRO29180M29180 | V33: Jefferson Davis | W33: 179722 | X33: 206023 | Y33: 250530 | Z33: 324105 | AA33: 355765
A34: LA | B34: Lafourche Parish | C34: Houma-Thibodaux, LA MSA | D34: 200000 | E34: 255000 | F34: 309000 | G34: 383000 | H34: 210000 | I34: 1 | J34: 597 | K34: County | L34: 251000 | M34: 321000 | N34: 389000 | O34: 482000 | P34: 264000 | Q34: 1 | R34: 0 | S34: Non-Metro US | T34: METRO26380M26380 | V34: Lafayette | W34: 179722 | X34: 206023 | Y34: 250530 | Z34: 324105 | AA34: 355765
A35: LA | B35: La Salle Parish | C35: La Salle Parish, LA | D35: 173000 | E35: 221000 | F35: 268000 | G35: 332000 | H35: 182000 | I35: 1 | J35: 2224 | K35: Non-Metro State | L35: 251000 | M35: 321000 | N35: 389000 | O35: 482000 | P35: 264000 | Q35: 1 | R35: 0 | S35: Non-Metro US | T35: NCNTY22059N22059 | V35: Lafourche | W35: 179722 | X35: 206023 | Y35: 250530 | Z35: 324105 | AA35: 355765
A36: LA | B36: Lincoln Parish | C36: Lincoln Parish, LA | D36: 208000 | E36: 266000 | F36: 322000 | G36: 399000 | H36: 218750 | I36: 2 | J36: 526 | K36: County | L36: 251000 | M36: 321000 | N36: 389000 | O36: 482000 | P36: 264000 | Q36: 1 | R36: 0 | S36: Non-Metro US | T36: NCNTY22061N22061 | V36: La Salle | W36: 179722 | X36: 206023 | Y36: 250530 | Z36: 324105 | AA36: 355765
A37: LA | B37: Livingston Parish | C37: Baton Rouge, LA HUD Metro FMR Area | D37: 215000 | E37: 275000 | F37: 333000 | G37: 412000 | H37: 226000 | I37: 1 | J37: 5815 | K37: Metro | L37: 251000 | M37: 321000 | N37: 389000 | O37: 482000 | P37: 264000 | Q37: 1 | R37: 0 | S37: Non-Metro US | T37: METRO12940M12940 | V37: Lincoln | W37: 179722 | X37: 206023 | Y37: 250530 | Z37: 324105 | AA37: 355765
A38: LA | B38: Madison Parish | C38: Madison Parish, LA | D38: 173000 | E38: 221000 | F38: 268000 | G38: 332000 | H38: 182000 | I38: 1 | J38: 2224 | K38: Non-Metro State | L38: 251000 | M38: 321000 | N38: 389000 | O38: 482000 | P38: 264000 | Q38: 1 | R38: 0 | S38: Non-Metro US | T38: NCNTY22065N22065 | V38: Livingston | W38: 179722 | X38: 206023 | Y38: 250530 | Z38: 324105 | AA38: 355765
A39: LA | B39: Morehouse Parish | C39: Morehouse Parish, LA | D39: 173000 | E39: 221000 | F39: 268000 | G39: 332000 | H39: 182000 | I39: 1 | J39: 2224 | K39: Non-Metro State | L39: 251000 | M39: 321000 | N39: 389000 | O39: 482000 | P39: 264000 | Q39: 1 | R39: 0 | S39: Non-Metro US | T39: NCNTY22067N22067 | V39: Madison | W39: 179722 | X39: 206023 | Y39: 250530 | Z39: 324105 | AA39: 355765
A40: LA | B40: Natchitoches Parish | C40: Natchitoches Parish, LA | D40: 189000 | E40: 242000 | F40: 293000 | G40: 363000 | H40: 199000 | I40: 5 | J40: 579 | K40: County | L40: 251000 | M40: 321000 | N40: 389000 | O40: 482000 | P40: 264000 | Q40: 1 | R40: 0 | S40: Non-Metro US | T40: NCNTY22069N22069 | V40: Morehouse | W40: 179722 | X40: 206023 | Y40: 250530 | Z40: 324105 | AA40: 355765
A41: LA | B41: Orleans Parish | C41: New Orleans-Metairie, LA HUD Metro FMR Area | D41: 294000 | E41: 376000 | F41: 455000 | G41: 564000 | H41: 309000 | I41: 1 | J41: 2884 | K41: County | L41: 294000 | M41: 376000 | N41: 455000 | O41: 564000 | P41: 283000 | Q41: 1 | R41: 2884 | S41: Existing Limit | T41: METRO35380M35380 | V41: Natchitoches | W41: 179722 | X41: 206023 | Y41: 250530 | Z41: 324105 | AA41: 355765
A42: LA | B42: Ouachita Parish | C42: Monroe, LA MSA | D42: 204000 | E42: 261000 | F42: 316000 | G42: 392000 | H42: 214900 | I42: 1 | J42: 1205 | K42: Metro | L42: 251000 | M42: 321000 | N42: 389000 | O42: 482000 | P42: 264000 | Q42: 1 | R42: 0 | S42: Non-Metro US | T42: METRO33740M33740 | V42: Orleans | W42: 179722 | X42: 206023 | Y42: 250530 | Z42: 324105 | AA42: 355765
A43: LA | B43: Plaquemines Parish | C43: New Orleans-Metairie, LA HUD Metro FMR Area | D43: 266000 | E43: 340000 | F43: 412000 | G43: 511000 | H43: 280000 | I43: 5 | J43: 401 | K43: County | L43: 283000 | M43: 363000 | N43: 439000 | O43: 544000 | P43: 298147 | Q43: 5 | R43: 20 | S43: County | T43: METRO35380M35380 | V43: Ouachita | W43: 179722 | X43: 206023 | Y43: 250530 | Z43: 324105 | AA43: 355765
A44: LA | B44: Pointe Coupee Parish | C44: Baton Rouge, LA HUD Metro FMR Area | D44: 218000 | E44: 278000 | F44: 337000 | G44: 418000 | H44: 229000 | I44: 5 | J44: 495 | K44: County | L44: 251000 | M44: 321000 | N44: 389000 | O44: 482000 | P44: 264000 | Q44: 1 | R44: 0 | S44: Non-Metro US | T44: METRO12940M12940 | V44: Plaquemines | W44: 179722 | X44: 206023 | Y44: 250530 | Z44: 324105 | AA44: 355765
A45: LA | B45: Rapides Parish | C45: Alexandria, LA MSA | D45: 190000 | E45: 243000 | F45: 295000 | G45: 365000 | H45: 200000 | I45: 1 | J45: 822 | K45: Metro | L45: 251000 | M45: 321000 | N45: 389000 | O45: 482000 | P45: 264000 | Q45: 1 | R45: 0 | S45: Non-Metro US | T45: METRO10780M10780 | V45: Pointe Coupee | W45: 179722 | X45: 206023 | Y45: 250530 | Z45: 324105 | AA45: 355765
A46: LA | B46: Red River Parish | C46: Red River Parish, LA | D46: 173000 | E46: 221000 | F46: 268000 | G46: 332000 | H46: 182000 | I46: 1 | J46: 2224 | K46: Non-Metro State | L46: 251000 | M46: 321000 | N46: 389000 | O46: 482000 | P46: 264000 | Q46: 1 | R46: 0 | S46: Non-Metro US | T46: NCNTY22081N22081 | V46: Rapides | W46: 179722 | X46: 206023 | Y46: 250530 | Z46: 324105 | AA46: 355765
A47: LA | B47: Richland Parish | C47: Richland Parish, LA | D47: 173000 | E47: 221000 | F47: 268000 | G47: 332000 | H47: 182000 | I47: 1 | J47: 2224 | K47: Non-Metro State | L47: 251000 | M47: 321000 | N47: 389000 | O47: 482000 | P47: 264000 | Q47: 1 | R47: 0 | S47: Non-Metro US | T47: NCNTY22083N22083 | V47: Red River | W47: 179722 | X47: 206023 | Y47: 250530 | Z47: 324105 | AA47: 355765
A48: LA | B48: Sabine Parish | C48: Sabine Parish, LA | D48: 173000 | E48: 221000 | F48: 268000 | G48: 332000 | H48: 182000 | I48: 1 | J48: 2224 | K48: Non-Metro State | L48: 251000 | M48: 321000 | N48: 389000 | O48: 482000 | P48: 264000 | Q48: 1 | R48: 0 | S48: Non-Metro US | T48: NCNTY22085N22085 | V48: Richland | W48: 179722 | X48: 206023 | Y48: 250530 | Z48: 324105 | AA48: 355765
A49: LA | B49: St. Bernard Parish | C49: New Orleans-Metairie, LA HUD Metro FMR Area | D49: 242000 | E49: 310000 | F49: 375000 | G49: 465000 | H49: 255000 | I49: 1 | J49: 9688 | K49: Metro | L49: 251000 | M49: 321000 | N49: 389000 | O49: 482000 | P49: 264000 | Q49: 1 | R49: 0 | S49: Non-Metro US | T49: METRO35380M35380 | V49: Sabine | W49: 179722 | X49: 206023 | Y49: 250530 | Z49: 324105 | AA49: 355765
A50: LA | B50: St. Charles Parish | C50: New Orleans-Metairie, LA HUD Metro FMR Area | D50: 242000 | E50: 310000 | F50: 375000 | G50: 465000 | H50: 255000 | I50: 1 | J50: 9688 | K50: Metro | L50: 251000 | M50: 321000 | N50: 389000 | O50: 482000 | P50: 264000 | Q50: 1 | R50: 0 | S50: Non-Metro US | T50: METRO35380M35380 | V50: St. Bernard | W50: 179722 | X50: 206023 | Y50: 250530 | Z50: 324105 | AA50: 355765
A51: LA | B51: St. Helena Parish | C51: Baton Rouge, LA HUD Metro FMR Area | D51: 215000 | E51: 275000 | F51: 333000 | G51: 412000 | H51: 226000 | I51: 1 | J51: 5815 | K51: Metro | L51: 251000 | M51: 321000 | N51: 389000 | O51: 482000 | P51: 264000 | Q51: 1 | R51: 0 | S51: Non-Metro US | T51: METRO12940M12940 | V51: St. Charles | W51: 179722 | X51: 206023 | Y51: 250530 | Z51: 324105 | AA51: 355765
A52: LA | B52: St. James Parish | C52: St. James Parish, LA HUD Metro FMR Area | D52: 185000 | E52: 237000 | F52: 287000 | G52: 356000 | H52: 194950 | I52: 5 | J52: 328 | K52: County | L52: 263000 | M52: 337000 | N52: 408000 | O52: 505000 | P52: 276800 | Q52: 5 | R52: 25 | S52: County | T52: METRO35380N22093 | V52: St. Helena | W52: 179722 | X52: 206023 | Y52: 250530 | Z52: 324105 | AA52: 355765
A53: LA | B53: St. John the Baptist Parish | C53: New Orleans-Metairie, LA HUD Metro FMR Area | D53: 242000 | E53: 310000 | F53: 375000 | G53: 465000 | H53: 255000 | I53: 1 | J53: 9688 | K53: Metro | L53: 251000 | M53: 321000 | N53: 389000 | O53: 482000 | P53: 264000 | Q53: 1 | R53: 0 | S53: Non-Metro US | T53: METRO35380M35380 | V53: St. James | W53: 179722 | X53: 206023 | Y53: 250530 | Z53: 324105 | AA53: 355765
A54: LA | B54: St. Landry Parish | C54: St. Landry Parish, LA | D54: 173000 | E54: 221000 | F54: 268000 | G54: 332000 | H54: 182000 | I54: 1 | J54: 2224 | K54: Non-Metro State | L54: 251000 | M54: 321000 | N54: 389000 | O54: 482000 | P54: 264000 | Q54: 1 | R54: 0 | S54: Non-Metro US | T54: NCNTY22097N22097 | V54: St. John the Baptist | W54: 179722 | X54: 206023 | Y54: 250530 | Z54: 324105 | AA54: 355765
A55: LA | B55: St. Martin Parish | C55: Lafayette, LA HUD Metro FMR Area | D55: 198000 | E55: 253000 | F55: 306000 | G55: 379000 | H55: 208000 | I55: 1 | J55: 2189 | K55: Metro | L55: 251000 | M55: 321000 | N55: 389000 | O55: 482000 | P55: 264000 | Q55: 1 | R55: 0 | S55: Non-Metro US | T55: METRO29180M29180 | V55: St. Landry | W55: 179722 | X55: 206023 | Y55: 250530 | Z55: 324105 | AA55: 355765
A56: LA | B56: St. Mary Parish | C56: St. Mary Parish, LA | D56: 173000 | E56: 221000 | F56: 268000 | G56: 332000 | H56: 182000 | I56: 1 | J56: 2224 | K56: Non-Metro State | L56: 251000 | M56: 321000 | N56: 389000 | O56: 482000 | P56: 264000 | Q56: 1 | R56: 0 | S56: Non-Metro US | T56: NCNTY22101N22101 | V56: St. Martin | W56: 179722 | X56: 206023 | Y56: 250530 | Z56: 324105 | AA56: 355765
A57: LA | B57: St. Tammany Parish | C57: New Orleans-Metairie, LA HUD Metro FMR Area | D57: 242000 | E57: 310000 | F57: 375000 | G57: 465000 | H57: 255000 | I57: 1 | J57: 9688 | K57: Metro | L57: 251000 | M57: 321000 | N57: 389000 | O57: 482000 | P57: 264000 | Q57: 1 | R57: 0 | S57: Non-Metro US | T57: METRO35380M35380 | V57: St. Mary | W57: 179722 | X57: 206023 | Y57: 250530 | Z57: 324105 | AA57: 355765
A58: LA | B58: Tangipahoa Parish | C58: Hammond, LA MSA | D58: 190000 | E58: 243000 | F58: 295000 | G58: 365000 | H58: 200000 | I58: 1 | J58: 924 | K58: County | L58: 251000 | M58: 321000 | N58: 389000 | O58: 482000 | P58: 264000 | Q58: 1 | R58: 0 | S58: Non-Metro US | T58: METRO25220M25220 | V58: St. Tammany | W58: 179722 | X58: 206023 | Y58: 250530 | Z58: 324105 | AA58: 355765
A59: LA | B59: Tensas Parish | C59: Tensas Parish, LA | D59: 265000 | E59: 339000 | F59: 410000 | G59: 508000 | H59: 278750 | I59: 5 | J59: 42 | K59: County | L59: 265000 | M59: 339000 | N59: 410000 | O59: 508000 | P59: 264000 | Q59: 5 | R59: 42 | S59: Existing Limit | T59: NCNTY22107N22107 | V59: Tangipahoa | W59: 179722 | X59: 206023 | Y59: 250530 | Z59: 324105 | AA59: 355765
A60: LA | B60: Terrebonne Parish | C60: Houma-Thibodaux, LA MSA | D60: 198000 | E60: 253000 | F60: 306000 | G60: 379000 | H60: 208000 | I60: 1 | J60: 1259 | K60: Metro | L60: 251000 | M60: 321000 | N60: 389000 | O60: 482000 | P60: 264000 | Q60: 1 | R60: 0 | S60: Non-Metro US | T60: METRO26380M26380 | V60: Tensas | W60: 179722 | X60: 206023 | Y60: 250530 | Z60: 324105 | AA60: 355765
A61: LA | B61: Union Parish | C61: Monroe, LA MSA | D61: 204000 | E61: 261000 | F61: 316000 | G61: 392000 | H61: 214900 | I61: 1 | J61: 1205 | K61: Metro | L61: 251000 | M61: 321000 | N61: 389000 | O61: 482000 | P61: 264000 | Q61: 1 | R61: 0 | S61: Non-Metro US | T61: METRO33740M33740 | V61: Terrebonne | W61: 179722 | X61: 206023 | Y61: 250530 | Z61: 324105 | AA61: 355765
A62: LA | B62: Vermilion Parish | C62: Vermilion Parish, LA HUD Metro FMR Area | D62: 173000 | E62: 221000 | F62: 268000 | G62: 332000 | H62: 182000 | I62: 1 | J62: 2224 | K62: Non-Metro State | L62: 251000 | M62: 321000 | N62: 389000 | O62: 482000 | P62: 264000 | Q62: 1 | R62: 0 | S62: Non-Metro US | T62: METRO29180N22113 | V62: Union | W62: 179722 | X62: 206023 | Y62: 250530 | Z62: 324105 | AA62: 355765
A63: LA | B63: Vernon Parish | C63: Vernon Parish, LA | D63: 173000 | E63: 221000 | F63: 268000 | G63: 332000 | H63: 182000 | I63: 1 | J63: 2224 | K63: Non-Metro State | L63: 251000 | M63: 321000 | N63: 389000 | O63: 482000 | P63: 264000 | Q63: 1 | R63: 0 | S63: Non-Metro US | T63: NCNTY22115N22115 | V63: Vermilion | W63: 179722 | X63: 206023 | Y63: 250530 | Z63: 324105 | AA63: 355765
A64: LA | B64: Washington Parish | C64: Washington Parish, LA | D64: 173000 | E64: 221000 | F64: 268000 | G64: 332000 | H64: 182000 | I64: 1 | J64: 2224 | K64: Non-Metro State | L64: 251000 | M64: 321000 | N64: 389000 | O64: 482000 | P64: 264000 | Q64: 1 | R64: 0 | S64: Non-Metro US | T64: NCNTY22117N22117 | V64: Vernon | W64: 179722 | X64: 206023 | Y64: 250530 | Z64: 324105 | AA64: 355765
A65: LA | B65: Webster Parish | C65: Webster Parish, LA HUD Metro FMR Area | D65: 173000 | E65: 221000 | F65: 268000 | G65: 332000 | H65: 182000 | I65: 1 | J65: 2224 | K65: Non-Metro State | L65: 251000 | M65: 321000 | N65: 389000 | O65: 482000 | P65: 264000 | Q65: 1 | R65: 0 | S65: Non-Metro US | T65: METRO43340N22119 | V65: Washington | W65: 179722 | X65: 206023 | Y65: 250530 | Z65: 324105 | AA65: 355765
A66: LA | B66: West Baton Rouge Parish | C66: Baton Rouge, LA HUD Metro FMR Area | D66: 215000 | E66: 275000 | F66: 333000 | G66: 412000 | H66: 226000 | I66: 1 | J66: 5815 | K66: Metro | L66: 251000 | M66: 321000 | N66: 389000 | O66: 482000 | P66: 264000 | Q66: 1 | R66: 0 | S66: Non-Metro US | T66: METRO12940M12940 | V66: Webster | W66: 179722 | X66: 206023 | Y66: 250530 | Z66: 324105 | AA66: 355765
A67: LA | B67: West Carroll Parish | C67: West Carroll Parish, LA | D67: 173000 | E67: 221000 | F67: 268000 | G67: 332000 | H67: 182000 | I67: 1 | J67: 2224 | K67: Non-Metro State | L67: 251000 | M67: 321000 | N67: 389000 | O67: 482000 | P67: 264000 | Q67: 1 | R67: 0 | S67: Non-Metro US | T67: NCNTY22123N22123 | V67: West Baton Rouge | W67: 179722 | X67: 206023 | Y67: 250530 | Z67: 324105 | AA67: 355765
A68: LA | B68: West Feliciana Parish | C68: Baton Rouge, LA HUD Metro FMR Area | D68: 257000 | E68: 328000 | F68: 398000 | G68: 492000 | H68: 270000 | I68: 5 | J68: 243 | K68: County | L68: 257000 | M68: 328000 | N68: 398000 | O68: 492000 | P68: 264000 | Q68: 5 | R68: 243 | S68: Existing Limit | T68: METRO12940M12940 | V68: West Carroll | W68: 179722 | X68: 206023 | Y68: 250530 | Z68: 324105 | AA68: 355765
A69: LA | B69: Winn Parish | C69: Winn Parish, LA | D69: 173000 | E69: 221000 | F69: 268000 | G69: 332000 | H69: 182000 | I69: 1 | J69: 2224 | K69: Non-Metro State | L69: 251000 | M69: 321000 | N69: 389000 | O69: 482000 | P69: 264000 | Q69: 1 | R69: 0 | S69: Non-Metro US | T69: NCNTY22127N22127 | V69: West Felliciana | W69: 179722 | X69: 206023 | Y69: 250530 | Z69: 324105 | AA69: 355765
V70: Winn | W70: 179722 | X70: 206023 | Y70: 250530 | Z70: 324105 | AA70: 355765
B72: Value Limits Existing | C72: Value Limits New | W72: 234 Limits for Underwriting and Subsidy Layering Analysis - Rental
A73: 1-Unit | B73: =+B165 ->  | C73: =+G165 ->  | E73: Type | V73: =IF(Cover!$E$12="",0, VLOOKUP(Cover!$E$12,V4:AA70,1)) ->  | W73: 0BR | X73: 1BR | Y73: 2BR | Z73: 3BR | AA73: 4BR
A74: 2-Unit | B74: =+C165 ->  | C74: =+H165 ->  | V74: 234 Condominium Housing Elevator Type | W74: =IF(Cover!$E$12="",0, VLOOKUP(Cover!$E$12,$V$7:$AA$70,2)) ->  | X74: =IF(Cover!$E$12="",0, VLOOKUP(Cover!$E$12,$V$7:$AA$70,3)) ->  | Y74: =IF(Cover!$E$12="",0, VLOOKUP(Cover!$E$12,$V$7:$AA$70,4)) ->  | Z74: =IF(Cover!$E$12="",0, VLOOKUP(Cover!$E$12,$V$7:$AA$70,5)) ->  | AA74: =IF(Cover!$E$12="",0, VLOOKUP(Cover!$E$12,$V$7:$AA$70,6)) -> 
A75: 3-Unit | B75: =+D165 ->  | C75: =+I165 ->  | E75: New | I75: Bonds
A76: 4-Unit | B76: =+E165 ->  | C76: =+J165 ->  | E76: Rehabilitation | I76: 9% Credits | J76: Single Family Detached | M76: New Construction | O76: Family | R76: Elevator | T76: General Partnership
I77: 4% Credits | J77: Single FamilySemi Detached | M77: Rehabilitation | O77: Elderly | R77: Walkup | T77: Limited Partnership
I78: HOME | J78: Single Family Townhome | O78: Single Room Occupancy | R78: Row | T78: Individual
B79: Total Cost To Develop | I79: CDBG | O79: Other (explain) | R79: Semi-Detached | T79: LLC
C80: Total Soft Cost | D80: =+'Development Budget'!D42-'Development Budget'!G54 ->  | I80: Combination | R80: Detached | T80: Corporation
A81: Model | B81: Construction Cost | C81: Pro Rated Soft Cost | D81: Percentage of Total | E81: Number of Units | F81: Pre Unit Total Cost | G81: Total Development Subsidy | H81: Total Development Cost By Model | R81: Other | T81: Non-Profit Corporation
A82: Model 1 | B82: =+'Development Budget'!G47 -> 0 | C82: =+D80*D82 ->  | D82: =+B82/B86 ->  | E82: =+'Development Budget'!F47 -> 0 | F82: =IF(E82,H82/E82,0) -> 0 | G82: =+Underwriting!H85*Lists!E82 -> 0 | H82: =+B82+C82 ->  | T82: CHDO
A83: Model 2 | B83: =+'Development Budget'!G48 -> 0 | C83: =+D80*D83 ->  | D83: =+B83/B86 ->  | E83: =+'Development Budget'!F48 -> 0 | F83: =IF(E83,H83/E83,0) -> 0 | G83: =+Underwriting!H86*Lists!E83 -> 0 | H83: =+B83+C83 ->  | T83: Other
A84: Model 3 | B84: =+'Development Budget'!G49 -> 0 | C84: =+D80*D84 ->  | D84: =+B84/B86 ->  | E84: =+'Development Budget'!F49 -> 0 | F84: =IF(E84,H84/E84,0) -> 0 | G84: =+Underwriting!H87*Lists!E84 -> 0 | H84: =+B84+C84 -> 
A85: Model 4 | B85: =+'Development Budget'!G50 -> 0 | C85: =+D80*D85 ->  | D85: =+B85/B86 ->  | E85: =+'Development Budget'!F50 -> 0 | F85: =IF(E85,H85/E85,0) -> 0 | G85: =+Underwriting!H88*Lists!E85 -> 0 | H85: =+B85+C85 -> 
A86: Total | B86: =SUM(B82:B85) -> 0 | C86: =SUM(C82:C85) ->  | E86: =SUM(E82:E85) -> 0 | F86: =IF(E86,H86/E86,0) -> 0 | G86: =SUM(G82:G85) -> 0 | H86: =SUM(H82:H85) -> 
I88: Type of Application | J88: Max Award | K88: Max Number of Units
B89: Affordability Subsidy
A90: Homebuyer 1 | B90: =+'Home Buyer Mortgage Analysis 1'!D49 -> 0 | D90: Month | E90: Day | F90: Year | I90: NOAH | J90: =IF('Primary Input'!$E$7="NOAH", 800000, 0) -> 0 | K90: =IF('Primary Input'!$E$7="NOAH", 6, 0) -> 0 | N90: Yes/No Answers
A91: Homebuyer 2 | B91: =+'Home Buyer Mortgage Analysis 2'!D49 -> 0 | I91: CHAAP | J91: =IF('Primary Input'!$E$7="CHAAP", 1300000, 0) -> 0 | K91: =IF('Primary Input'!$E$7="CHAAP", 999999, 0) -> 0
A92: Homebuyer 3 | B92: =+'Home Buyer Mortgage Analysis 3'!D49 -> 0 | D92: January | E92: 1 | F92: 2018 | I92: Small Project Continuation | J92: =IF('Primary Input'!$E$7="Small Project Continuation", 1000000, 0) -> 0 | K92: =IF('Primary Input'!$E$7="Small Project Continuation", 999999, 0) -> 0 | N92: Yes
A93: Homebuyer 4 | B93: =+'Home Buyer Mortgage Analysis 4'!D49 -> 0 | D93: February | E93: 2 | F93: 2019 | I93: 2021 Fall Affordable Housing NOFA | J93: =IF('Primary Input'!$E$7=+I93, 2000000, 0) -> 0 | K93: =IF('Primary Input'!$E$7=+J93, 999999, 0) -> 999999 | N93: No
A94: Max | B94: =MAX(B90:B93) -> 0 | D94: March | E94: 3 | F94: 2020 | I94: CSAR | J94: =IF('Primary Input'!$E$7="CSAR", 200000, 0) -> 0 | K94: =IF('Primary Input'!$E$7="CSAR", 1, 0) -> 0 | N94: NA
D95: April | E95: 4 | F95: 2021 | I95: CHAAP Area of Demonstrated Need | J95: =IF(E130="YES", 1000000, 0) ->  | K95: =IF('Primary Input'!$E$7="CHAAP", 999999, 0) -> 0
D96: May | E96: 5 | F96: 2022 | I96: $ Limit of Award | J96: =MAX(J90:J95) ->  | K96: =MAX(K90:K94) -> 999999
D97: June | E97: 6 | F97: 2023
B98: Acadia Parish | D98: July | E98: 7 | F98: 2024
B99: Allen Parish | D99: August | E99: 8 | F99: 2025
B100: Ascension Parish | D100: September | E100: 9 | F100: 2026 | I100: Model ! | K100: Model 2 | M100: Model 3 | O100: Model 4
B101: Assumption Parish | D101: October | E101: 10 | F101: 2027 | I101: Existing | J101: New | K101: Existing | L101: New | M101: Existing | N101: New | O101: Existing | P101: New
B102: Avoyelles Parish | D102: November | E102: 11 | F102: 2028 | H102: 1-Unit | I102: =IF('Development Budget'!$K$47="1-Unit",Lists!$B$73, 0) -> 0 | J102: =IF('Development Budget'!$K$47="1-Unit",Lists!$C$73, 0) -> 0 | K102: =IF('Development Budget'!$K$48="1-Unit",Lists!$B$73, 0) -> 0 | L102: =IF('Development Budget'!$K$48="1-Unit",Lists!$C$73, 0) -> 0 | M102: =IF('Development Budget'!$K$49="1-Unit",Lists!$B$73, 0) -> 0 | N102: =IF('Development Budget'!$K$49="1-Unit",Lists!$C$73, 0) -> 0 | O102: =IF('Development Budget'!$K$50="1-Unit",Lists!$B$73, 0) -> 0 | P102: =IF('Development Budget'!$K$50="1-Unit",Lists!$C$73, 0) -> 0
B103: Beauregard Parish | D103: December | E103: 12 | I103: =IF('Development Budget'!$K$47="2-Unit",Lists!$B$74, 0) -> 0 | J103: =IF('Development Budget'!$K$47="2-Unit",Lists!$C$74, 0) -> 0 | K103: =IF('Development Budget'!$K$48="2-Unit",Lists!$B$74, 0) -> 0 | L103: =IF('Development Budget'!$K$48="2-Unit",Lists!$C$74, 0) -> 0 | M103: =IF('Development Budget'!$K$49="2-Unit",Lists!$B$74, 0) -> 0 | N103: =IF('Development Budget'!$K$49="2-Unit",Lists!$C$74, 0) -> 0 | O103: =IF('Development Budget'!$K$50="2-Unit",Lists!$B$74, 0) -> 0 | P103: =IF('Development Budget'!$K$50="2-Unit",Lists!$C$74, 0) -> 0
B104: Bienville Parish | E104: 13 | I104: =IF('Development Budget'!$K$47="3-Unit",Lists!$B$75, 0) -> 0 | J104: =IF('Development Budget'!$K$47="3-Unit",Lists!$C$75, 0) -> 0 | K104: =IF('Development Budget'!$K$48="3-Unit",Lists!$B$75, 0) -> 0 | L104: =IF('Development Budget'!$K$48="3-Unit",Lists!$C$75, 0) -> 0 | M104: =IF('Development Budget'!$K$49="3-Unit",Lists!$B$75, 0) -> 0 | N104: =IF('Development Budget'!$K$49="3-Unit",Lists!$C$75, 0) -> 0 | O104: =IF('Development Budget'!$K$50="3-Unit",Lists!$B$75, 0) -> 0 | P104: =IF('Development Budget'!$K$50="3-Unit",Lists!$C$75, 0) -> 0
B105: Bossier Parish | E105: 14 | I105: =IF('Development Budget'!$K$47="4-Unit",Lists!$B$76, 0) -> 0 | J105: =IF('Development Budget'!$K$47="4-Unit",Lists!$C$76, 0) -> 0 | K105: =IF('Development Budget'!$K$48="4-Unit",Lists!$B$76, 0) -> 0 | L105: =IF('Development Budget'!$K$48="4-Unit",Lists!$C$76, 0) -> 0 | M105: =IF('Development Budget'!$K$49="4-Unit",Lists!$B$76, 0) -> 0 | N105: =IF('Development Budget'!$K$49="4-Unit",Lists!$C$76, 0) -> 0 | O105: =IF('Development Budget'!$K$50="4-Unit",Lists!$B$76, 0) -> 0 | P105: =IF('Development Budget'!$K$50="4-Unit",Lists!$C$76, 0) -> 0
B106: Caddo Parish | E106: 15 | I106: =MAX(I102:I105) -> 0 | J106: 0 | K106: 0 | L106: 0 | M106: 0 | N106: 0 | O106: 0 | P106: 0
B107: Calcasieu Parish | E107: 16
B108: Caldwell Parish | E108: 17
B109: Cameron Parish | E109: 18 | I109: Final Value Limit | K109: Final Value Limit | M109: Final Value Limit | O109: Final Value Limit
B110: Catahoula Parish | E110: 19 | I110: =IF('Development Budget'!$L$47="Rehabilitation",Lists!I106,Lists!J106) -> 0 | K110: =IF('Development Budget'!$L$48="Rehabilitation",Lists!K106,Lists!L106) -> 0 | M110: =IF('Development Budget'!$L$49="Rehabilitation",Lists!M106,Lists!N106) -> 0 | O110: =IF('Development Budget'!$L$50="Rehabilitation",Lists!O106,Lists!P106) -> 0
B111: Claiborne Parish | E111: 20
B112: Concordia Parish | E112: 21
B113: De Soto Parish | E113: 22 | I113: Maximum Development Subsidy | N113: Final Limit
B114: East Baton Rouge Parish | E114: 23 | I114: Model-1 | J114: =IF('Development Budget'!$K$47="1-Unit",Limits!C18,0) -> 0 | K114: =IF('Development Budget'!$K$47="2-Unit",Limits!C19,0) -> 0 | L114: =IF('Development Budget'!$K$47="3-Unit",Limits!C20,0) -> 0 | M114: =IF('Development Budget'!$K$47="4-Unit",Limits!C21,0) -> 0 | N114: =MAX(J114:M114) -> 0
B115: East Carroll Parish | E115: 24 | I115: Model-2 | J115: =IF('Development Budget'!$K$48="1-Unit",Limits!C18, 0) -> 0 | K115: =IF('Development Budget'!$K$48="2-Unit",Limits!C19,0) -> 0 | L115: =IF('Development Budget'!$K$48="3-Unit",Limits!C20,0) -> 0 | M115: =IF('Development Budget'!$K$48="4-Unit",Limits!C21,0) -> 0 | N115: =MAX(J115:M115) -> 0
B116: East Feliciana Parish | E116: 25 | I116: Model-3 | J116: =IF('Development Budget'!$K$49="1-Unit",Limits!C18, 0) -> 0 | K116: =IF('Development Budget'!$K$49="2-Unit",Limits!C19,0) -> 0 | L116: =IF('Development Budget'!$K$49="3-Unit",Limits!C20,0) -> 0 | M116: =IF('Development Budget'!$K$49="4-Unit",Limits!C21,0) -> 0 | N116: =MAX(J116:M116) -> 0
B117: Evangeline Parish | E117: 26 | I117: Model-4 | J117: =IF('Development Budget'!$K$50="1-Unit",Limits!C18, 0) -> 0 | K117: =IF('Development Budget'!$K$50="2-Unit",Limits!C19,0) -> 0 | L117: =IF('Development Budget'!$K$50="3-Unit",Limits!C20,0) -> 0 | M117: =IF('Development Budget'!$K$50="4-Unit",Limits!C21,0) -> 0 | N117: =MAX(J117:M117) -> 0
B118: Franklin Parish | E118: 27
B119: Grant Parish | E119: 28
B120: Iberia Parish | E120: 29
B121: Iberville Parish | E121: 30
B122: Jackson Parish | E122: 31
B123: Jefferson Davis Parish
B124: Jefferson Parish
B125: La Salle Parish
B126: Lafayette Parish | D126: AREA OF DEMONSTRATED NEED | H126: June
B127: Lafourche Parish | D127: CITY | E127: =+'Primary Input'!E10 -> 0
B128: Lincoln Parish | D128: CENSUS TRACT | E128: =+'Primary Input'!E28 -> 0
B129: Livingston Parish | D129: UNIQUE ID | E129: =+'Primary Input'!E29 -> 0 | H129: =VLOOKUP(E129,'AODN Data'!A3:AH2509,3) -> 
B130: Madison Parish | D130: AODN | E130: =VLOOKUP(E129,'AODN Data'!H3:AH2509,25) -> 
B131: Morehouse Parish
B132: Natchitoches Parish
B133: Orleans Parish
B134: Ouachita Parish
B135: Plaquemines Parish
B136: Pointe Coupee Parish | D136: 71420212507
B137: Rapides Parish
B138: Red River Parish
B139: Richland Parish
B140: Sabine Parish
B141: St. Bernard Parish
B142: St. Charles Parish
B143: St. Helena Parish
B144: St. James Parish
B145: St. John the Baptist Parish
B146: St. Landry Parish
B147: St. Martin Parish
B148: St. Mary Parish
B149: St. Tammany Parish
B150: Tangipahoa Parish
B151: Tensas Parish
B152: Terrebonne Parish
B153: Union Parish
B154: Vermilion Parish
B155: Vernon Parish
B156: Washington Parish
B157: Webster Parish
B158: West Baton Rouge Parish
B159: West Carroll Parish
B160: West Feliciana Parish
B161: Winn Parish
B163: Sales Price/ Value Limits Existing | H163: Sales Price/ Value Limits New
A164: =IF(Cover!$E$12="",0, VLOOKUP(Cover!$E$12,$B$6:$S$69,1)) ->  | B164: 1-Unit | C164: 2-Unit | D164: 3-Unit | E164: 4-Unit | G164: 1-Unit | H164: 2-Unit | I164: 3-Unit | J164: 4-Unit
A165: 234 Condominium Housing Elevator Type | B165: =IF(Cover!$E$12="",0, VLOOKUP(Cover!$E$12,$B$6:$S$69,3)) ->  | C165: =IF(Cover!$E$12="",0, VLOOKUP(Cover!$E$12,$B$6:$S$69,4)) ->  | D165: =IF(Cover!$E$12="",0, VLOOKUP(Cover!$E$12,$B$6:$S$69,5)) ->  | E165: =IF(Cover!$E$12="",0, VLOOKUP(Cover!$E$12,$B$6:$S$69,6)) ->  | G165: =IF(Cover!$E$12="",0, VLOOKUP(Cover!$E$12,$B$6:$S$69,11)) ->  | H165: =IF(Cover!$E$12="",0, VLOOKUP(Cover!$E$12,$B$6:$S$69,12)) ->  | I165: =IF(Cover!$E$12="",0, VLOOKUP(Cover!$E$12,$B$6:$S$69,13)) ->  | J165: =IF(Cover!$E$12="",0, VLOOKUP(Cover!$E$12,$B$6:$S$69,14)) -> 

Sheet Underwriting (hidden)
A1: =+'Primary Input'!G6 -> 0
A2: =+'Primary Input'!E7 -> 0
A3: Underwriting and Subsidy Layering Analysis
A4: for
A5: =+'Primary Input'!E8 -> 0
B7: Maximum Subsidy
B9: Project Information | E9: Type of Review:
B10: 1 | C10: Developer | H10: =+'Development Team'!B3 -> 0
B11: 2 | C11: Parish | H11: =+'Primary Input'!E12 -> 0
B12: 3 | C12: City | H12: =+'Primary Input'!E9 -> 0
B13: 4 | C13: Total Development Cost | H13: =+#REF! -> 
B14: 5 | C14: Total HOME Investment | H14: =+#REF! -> 
B15: 6 | C15: Total Other Investment | H15: =+#REF!-#REF! -> 
C16: Do Sources Equal Uses | H16: =IF(#REF!=#REF!, "Yes", "No") ->  | I16: =IF(H16="No", "Ineligible as submitted", " ") -> 
C17: Number of Units Model 1 | H17: =+'Development Budget'!F47 -> 0
C18: Number of Units Model 2 | H18: =+'Development Budget'!F48 -> 0
C19: Number of Units Model 3 | H19: =+'Development Budget'!F49 -> 0
C20: Number of Units Model 4 | H20: =+'Development Budget'!F50 -> 0
C21: Type of Unit Model 1 | H21: =+'Development Budget'!K47 -> 0
C22: Type of Unit Model 2 | H22: =+'Development Budget'!K48 -> 0
C23: Type of Unit Model 3 | H23: =+'Development Budget'!K49 -> 0
C24: Type of Unit Model 4 | H24: =+'Development Budget'!K50 -> 0
B25: 6 | C25: Total Number of Units | H25: =SUM(H17:H20) -> 0
B28: Per Unit Subsidy
B29: 1 | C29: HOME Percentage | H29: =+#REF!/#REF! -> 
B30: 2 | C30: Minimum Number of HOME Units | H30: =ROUNDUP(+H25*H29,0) -> 
C31: Square Feet Model 1 | H31: =+'Development Budget'!C47 -> 0
C32: Square Feet Model 2 | H32: =+'Development Budget'!C48 -> 0
C33: Square Feet Model 3 | H33: =+'Development Budget'!C49 -> 0
C34: Square Feet Model 4 | H34: =+'Development Budget'!C50 -> 0
C35: Total Square Feet Model 1 | H35: =+H17*H31 -> 0
C36: Total Square Feet Model 2 | H36: =+H18*H32 -> 0
C37: Total Square Feet Model 3 | H37: =+H19*H33 -> 0
C38: Total Square Feet Model 4 | H38: =+H20*H34 -> 0
B39: 3 | C39: Total Square Feet | H39: =SUM(H35:H38) -> 0
B40: 4 | C40: Per Unit Construction Cost Model 1 | H40: =+'Development Budget'!E47 -> 0
C41: Per Unit Construction Cost Model 2 | H41: =+'Development Budget'!E48 -> 0
C42: Per Unit Construction Cost Model 3 | H42: =+'Development Budget'!E49 -> 0
C43: Per Unit Construction Cost Model 4 | H43: =+'Development Budget'!E50 -> 0
C44: Per Units Soft Cost Model 1 | H44: =IF(Lists!E82,+Lists!C82/Lists!E82,0) -> 0
C45: Per Units Soft Cost Model 2 | H45: =IF(Lists!E83,+Lists!C83/Lists!E83,0) -> 0
C46: Per Units Soft Cost Model 3 | H46: =IF(Lists!E84,+Lists!C84/Lists!E84,0) -> 0
C47: Per Units Soft Cost Model 4 | H47: =IF(Lists!E85,+Lists!C85/Lists!E85,0) -> 0
C48: Total Development Cost Model 1 | H48: =+H40+H44 -> 0
C49: Total Development Cost Model 2 | H49: =+H41+H45 -> 0
C50: Total Development Cost Model 3 | H50: =+H42+H46 -> 0
C51: Total Development Cost Model 4 | H51: =+H43+H47 -> 0
B52: 5 | C52: Total Per Square Foot Cost | H52: =+H13/H39 -> 
B53: 6 | C53: Sales Price Model 1 | H53: =+'Development Budget'!H47 -> 0
C54: Sales Price Model 2 | H54: =+'Development Budget'!H48 -> 0
C55: Sales Price Model 3 | H55: =+'Development Budget'!H49 -> 0
C56: Sales Price Model 4 | H56: =+'Development Budget'!H50 -> 0
B57: 7 | C57: Value Limit Model 1 | H57: =+Lists!I110 -> 0
C58: Value Limit Model 2 | H58: =+Lists!K110 -> 0
C59: Value Limit Model 3 | H59: =+Lists!M110 -> 0
C60: Value Limit Model 4 | H60: =+Lists!O110 -> 0
B61: 8 | C61: Appraised Value Model 1 | H61: =+'Development Budget'!I47 -> 0
C62: Appraised Value Model 2 | H62: =+'Development Budget'!I48 -> 0
C63: Appraised Value Model 3 | H63: =+'Development Budget'!I49 -> 0
C64: Appraised Value Model 4 | H64: =+'Development Budget'!I50 -> 0
B65: 9 | C65: Is the sale price at or below the Value Limit for Model 1? | H65: =IF(H53<=H57, "Yes", "No") -> Yes
C66: Is the sale price at or below the Value Limit for Model 2? | H66: =IF(H54<=H58, "Yes", "No") -> Yes
C67: Is the sale price at or below the Value Limit for Model 3? | H67: =IF(H55<=H59, "Yes", "No") -> Yes
C68: Is the sale price at or below the Value Limit for Model 4? | H68: =IF(H56<=H60, "Yes", "No") -> Yes
B69: 10 | C69: Is the Appraised Value at or below the Value Limit for Model 1? | H69: =IF(H61<=H57, "Yes", "No") -> Yes
C70: Is the Appraised Value at or below the Value Limit for Model 2? | H70: =IF(H62<=H58, "Yes", "No") -> Yes
C71: Is the Appraised Value at or below the Value Limit for Model 3? | H71: =IF(H63<=H59, "Yes", "No") -> Yes
C72: Is the Appraised Value at or below the Value Limit for Model 4? | H72: =IF(H64<=H60, "Yes", "No") -> Yes
B73: 11 | C73: Is the sale price at or below Appraised Value for Model 1? | H73: =IF(H53<=H61, "Yes", "No") -> Yes
C74: Is the sale price at or below Appraised Value for Model 2? | H74: =IF(H54<=H62, "Yes", "No") -> Yes
C75: Is the sale price at or below Appraised Value for Model 3? | H75: =IF(H55<=H63, "Yes", "No") -> Yes
C76: Is the sale price at or below Appraised Value for Model 4? | H76: =IF(H56<=H64, "Yes", "No") -> Yes
C77: Total Cost to Develop Model 1 | H77: =+Lists!B82+Lists!C82 -> 
C78: Total Cost to Develop Model 2 | H78: =+Lists!B83+Lists!C83 -> 
C79: Total Cost to Develop Model 3 | H79: =+Lists!B84+Lists!C84 -> 
C80: Total Cost to Develop Model 4 | H80: =+Lists!B85+Lists!C85 -> 
B81: 12 | C81: Does the Project require a development subsidy for Model 1 ? | H81: =IF(H48>H61, "Yes", "No") -> No
C82: Does the Project require a development subsidy for Model 2? | H82: =IF(H49>H62, "Yes", "No") -> No
C83: Does the Project require a development subsidy for Model 3? | H83: =IF(H50>H63, "Yes", "No") -> No
C84: Does the Project require a development subsidy for Model 4? | H84: =IF(H51>H64, "Yes", "No") -> No
B85: 13 | C85: What is the estimated amount of the required development subsidy per unit for Model 1? | H85: =IF(+H48-Lists!N114<= 0, 0, H48-H61) -> 0
C86: What is the estimated amount of the required development subsidy per unit for Model 2? | H86: =IF(+H49-H62<= 0, 0, H49-H62) -> 0
C87: What is the estimated amount of the required development subsidy per unit for Model 3.? | H87: =IF(+H50-H63>= 0, H50-H63, 0) -> 0
C88: What is the estimated amount of the required development subsidy per unit for Model 4? | H88: =IF(+H51-H64<= 0, 0, H51-H64) -> 0
C89: Is the development subsidy for mode 1 acceptable? | H89: =IF(H85<=Lists!N114, "Yes","No") -> Yes
C90: Is the development subsidy for mode 2 acceptable? | H90: =IF(H86<=Lists!N115, "Yes","No") -> Yes
C91: Is the development subsidy for mode 3 acceptable? | H91: =IF(H87<=Lists!N116, "Yes","No") -> Yes
C92: Is the development subsidy for mode 4 acceptable? | H92: =IF(H88<=Lists!N117, "Yes","No") -> Yes
C93: Total Development Subsidy Required of the project | H93: =+Lists!G86 -> 0
C94: According to the application will the project require a a homebuyer affordability subsidy for Model 1 ? | H94: =IF('Home Buyer Mortgage Analysis 1'!D49>0, "Yes", "No") -> No
C95: According to the application will the project require a a homebuyer affordability subsidy for Model 2 ? | H95: =IF('Home Buyer Mortgage Analysis 2'!D49>0, "Yes", "No") -> No
C96: According to the application will the project require a a homebuyer affordability subsidy for Model 3 ? | H96: =IF('Home Buyer Mortgage Analysis 3'!D49>0, "Yes", "No") -> No
C97: According to the application will the project require a a homebuyer affordability subsidy for Model 4 ? | H97: =IF('Home Buyer Mortgage Analysis 4'!D49>0, "Yes","No") -> No
C98: According to the application what is the per buyer amount of homebuyer subsidy for Model 1 | H98: =+'Home Buyer Mortgage Analysis 1'!D49 -> 0 | I98: =IF(H98/H77>=0.1, "Subsidy amount is too high. According to 24 CFR 92.300 (a)(6)(i) Homebuyer Assistance provided by the CHDO from HOME funds cannot exceed 10%","") -> 
C99: According to the application what is the per buyer amount of homebuyer subsidy for Model 2 | H99: =+'Home Buyer Mortgage Analysis 2'!D49 -> 0 | I99: =IF(H99/H78>=0.1, "Subsidy amount is too high. According to 24 CFR 92.300 (a)(6)(i) Homebuyer Assistance provided by the CHDO from HOME funds cannot exceed 10%","") -> 
C100: According to the application what is the per buyer amount of homebuyer subsidy for Model 3 | H100: =+'Home Buyer Mortgage Analysis 3'!D49 -> 0
C101: According to the application what is the per buyer amount of homebuyer subsidy for Model 4 | H101: =+'Home Buyer Mortgage Analysis 4'!D49 -> 0
C102: Total homebuyer affordability subsidy for Model 1? | H102: =+H98*Lists!E82 -> 0
C103: Total homebuyer affordability subsidy for Model 2? | H103: =+H99*Lists!E83 -> 0
C104: Total homebuyer affordability subsidy for Model 3? | H104: =+H100*Lists!E84 -> 0
C105: Total homebuyer affordability subsidy for Model 4? | H105: =+H101*Lists!E85 -> 0
C106: Total homebuyer affordability subsidy for the project. | H106: =SUM(H102:H105) -> 0
C107: TOTAL SUBSIDY (DEVELOPMENT AND HOMEBUYER) | H107: =+H93+H106 -> 0
C108: Funds subject to be reimbursed absent a CHDO reuse plan | H108: =+H14-H107 -> 
C109: Subsidy as a percentage of TDC | H109: =IF(H13,+H107/H13,0) -> 
C110: Subsidy as a percentage of HOME Assistance | H110: =IF(H14,H107/H14,0) -> 
B111: 14 | C111: Is the HOME Investment at least $1,000 per HOME assisted unit? | H111: =IF(H14/H30>=1000, "Yes","No") ->  | I111: =IF(H111="No", "Ineligible as submitted", " ") -> 
B113: Underwriting and subsidy layering.
C115: Costs
B116: 1 | C116: Has a complete budget been submitted?
B117: 2 | C117: Do Sources equal Uses? | H117: =IF(#REF!=#REF!, "Yes","no") -> 
C118: Does the Developer have site control?
C119: How is site control evidenced?
C120: Is Site Control in the Name of the Tax Payer?
B121: 3 | C121: Are all sources backed up with commitment letters?
B122: 4 | C122: Has a Cost Reasonableness Analysis (CRA) been done? | I122: =IF(H122="No", "A CRA must be done before a decision can be made to fund", " ") -> 
B123: 5 | C123: What is the CRA estimate to construct?
B124: 6 | C124: Have the costs been determined reasonable? | I124: =IF(H124="No", "Project must be redesigned or denied funding", " ") -> 
B125: 7 | C125: Is LHC-HOME contributing less than 85% of cost? | H125: =IF(#REF!/#REF!<=0.85, "Yes", "No") -> 
C126: Has the project been environmentaly cleared (Part 58)? | I126: Project needs environmental clearance prior to undertaking any choice limiting activities
B127: 8 | C127: Has an In-House (LHC) Cost Allocation been completed(the standard LHC SLR).
C128: Does the Project pass the SLR?
C129: Has a Construction Contract or Preliminary Bid Been submitted?
C130: Has the Construction Contract/Preliminay Bid Been Found Acceptable?
C131: Have the Professions Services Contracts Been Found Acceptable and Reasonable?
C135: Market Demand
B136: 1 | C136: Has a market study been completed?
B137: 2 | C137: Does the market study show demand for the homes?
B138: 3 | C138: Does the Market Study indace absorption within 9 months?
B139: 4 | C139: Is the project located in an LHC defined Area of Demonstrated Need? | H139: =+Lists!E130 ->  | I139: =IF(H139="YES", "AODN Underwriting Applies", "Standard Underwriting Applies") -> 
C140: Developer Capacity
B141: 1 | C141: Has the developer undertaken a similar project?
B142: 2 | C142: Did the developer complete the earlier project?
B143: 3 | C143: Has the developer submitted audited financials?
B144: 4 | C144: Does LHC believe the developer has the capacity to undertake the proposed project?
B145: 5 | C145: Has an experienced marketing agent been identified?
B146: 6 | C146: Has an Affirmitive Marketing Plan been submitted?
B147: 7 | C147: Is the project expected to start construction within 12 months of the written agreement date?
B148: 8 | C148: Is the project expected to be completed within four (4) years of the written agreement date?
B149: 9 | C149: Is the Developer a CHDO?
B150: 10 | C150: Has the CHDO submitted changes to staff or certified that no changes existed at the time of application?
C153: Developer Profit
B154: 1 | C154: Is there an identity of interest between the developer and builder?
B155: 2 | C155: What is the builders overhead and profit?
B156: 3 | C156: What is the Developer Fee? | H156: =+'Development Budget'!D41 -> 0
B157: 4 | C157: Is Developer Fee less than or equal to 15% of development costs? | H157: =IF('Development Budget'!D41<='Development Budget'!D42*0.15, "Yes", "No") -> 
B158: 5 | C158: Has CHDO submitted a Proceeds Reuse Plan?
B159: 6 | C159: Will CHDO be allowed to retain all proceeds?
B160: 7 | C160: How many new units are estimated to be assisted with CHDO Proceeds?
B161: 8 | C161: Will any of the proceeds be left in the project to provide affordability assistance to the buyer?
B162: 9 | C162: What is the maximum estimated amount of affordability assistance to be provided to buyers? | H162: =+Lists!B94 -> 0
B163: 10 | C163: Is the total amount of subsidies (development and homebuyer) the minimum necessary to provide affordable housing
C165: General Requirement
B166: 1 | C166: According to the Cash Flow / Sales Plan will the units be sold in 9 months or less | H166: =IF('Cash Flow (Sales Plan)'!D10<= 9, "YES", "NO") -> YES | I166: =IF(H166="NO", "Project is ineligible to proceed. Federal Regulations require sale within 9 months of completions", "") -> 
B183: Attache to this analysis copies of:
B184: Underwriting Reivew
B185: Market Study
B186: Letters of Financial Commitment
B187: Cost Reasonable Analysis
B188: List of Previous Projects
B189: Copy of Audited Financials
B190: Legal Description of Property
A193: Prepared By: | G193: Date: _______/_______/______________

Sheet AODN Data
A1: =+Cover!D8 -> SFAH06012022.01 | B1: AREA OF DEMONSTRATED NEED CENSUS TRACT DATA
A2: Parish | B2: City | C2: Tracts.Tract | D2: Census Tract Extended | E2: QCT | F2: QTC Numeric | G2: Points QCT | H2: LHC Unique Identification Number | I2: State | J2: Louisiana.MHV | K2: Census Tract MHV | L2: CitiesTownsVillages.MHV | M2: MHVPerc | N2: MHV | O2: Points MHV | P2: Louisiana.MHHI | Q2: Census Tract MHHI | R2: CitiesTownsVillages.MHHI | S2: HHMIPerc | T2: MHHI | U2: Points MHHI | V2: Louisiana.Poverty | W2: Census Tract Poverty | X2: CitiesTownsVillages.Poverty | Y2: Poverty Perc | Z2: POV | AE2: Points POV | AF2: Area of Demonstrated Need | AG2: Area of Demonstrated Need | AH2: Total Points AODN | AI2: AODN Numeric
A3: Acadia | B3: Church Point | C3: 9601 | D3: 22001960100 | E3: TRUE | F3: =IF(E3=TRUE,1,0) -> 1 | G3: =IF(E3=TRUE,4,0) -> 4 | H3: 71420210006 | I3: Louisiana | J3: 172100 | K3: 84300 | L3: 84300 | M3: =+L3/J3 -> 0.4898314933 | N3: =IF(M3<=50%,TRUE,"") -> TRUE | O3: =IF(N3=TRUE,4,0) -> 4 | P3: 51073 | Q3: 36071 | R3: 34309 | S3: =+R3/P3 -> 0.6717639457 | T3: =IF(S3<=65%,TRUE,"") ->  | U3: =IF(T3=TRUE, 4,0) -> 0 | V3: 0.19 | W3: 0.279 | X3: 0.295 | Y3: =+V3*1.5 -> 0.285 | Z3: =IF(X3>Y3,"TRUE", "") -> TRUE | AA3: =IF(N3=TRUE,1,0) -> 1 | AB3: =IF(T3=TRUE,1,0) -> 0 | AC3: =IF(Z3=TRUE,1,0) -> 0 | AD3: =SUM(AA3:AC3) -> 1 | AE3: =IF(Z3=TRUE, 4,0) -> 0 | AF3: =IF(AND(E3=TRUE,AD3>1),"YES","NO") -> NO | AG3: =IF(AND(F3=1,AD3>1), "YES","NO") -> NO | AH3: =+G3+O3+U3+AE3 -> 8 | AI3: =IF(AG3="YES",1,"") ->  | AJ3: =+B3 -> Church Point
A4: Acadia | B4: Branch | C4: 9602 | D4: 22001960200 | F4: =IF(E4=TRUE,1,0) -> 0 | G4: =IF(E4=TRUE,4,0) -> 0 | H4: 71420210003 | I4: Louisiana | J4: 172100 | K4: 0 | L4: 0 | M4: =+L4/J4 -> 0 | N4: =IF(M4<=50%,TRUE,"") -> TRUE | O4: =IF(N4=TRUE,4,0) -> 4 | P4: 51073 | Q4: 71125 | R4: 0 | S4: =+R4/P4 -> 0 | T4: =IF(S4<=65%,TRUE,"") -> TRUE | U4: =IF(T4=TRUE, 4,0) -> 4 | V4: 0.19 | W4: 0.03 | X4: 0.134 | Y4: =+V4*1.5 -> 0.285 | Z4: =IF(X4>Y4,"TRUE", "") ->  | AA4: =IF(N4=TRUE,1,0) -> 1 | AB4: =IF(T4=TRUE,1,0) -> 1 | AC4: =IF(Z4="TRUE",1,0) -> 0 | AD4: =SUM(AA4:AC4) -> 2 | AE4: =IF(Z4=TRUE, 4,0) -> 0 | AF4: =IF(AND(E4=TRUE,AD4>1),"YES","NO") -> NO | AG4: =IF(AND(F4=1,AD4>1), "YES","NO") -> NO | AH4: =+G4+O4+U4+AE4 -> 8 | AI4: =IF(AG4="YES",1,"") ->  | AJ4: =+B4 -> Branch
A5: Acadia | B5: Iota | C5: 9603 | D5: 22001960300 | F5: 0 | G5: 0 | H5: 71420210004 | I5: Louisiana | J5: 172100 | K5: 84300 | L5: 131500 | M5: 0.764090645 | O5: 0 | P5: 51073 | Q5: 47500 | R5: 43654 | S5: 0.8547373368 | U5: 0 | V5: 0.19 | W5: 0.243 | X5: 0.168 | Y5: 0.285 | AA5: 0 | AB5: 0 | AC5: 0 | AD5: 0 | AE5: 0 | AF5: NO | AG5: NO | AH5: 0 | AJ5: Iota
A6: Acadia | B6: Iota | C6: 9604 | D6: 22001960400 | F6: 0 | G6: 0 | H6: 71420210005 | I6: Louisiana | J6: 172100 | K6: 115300 | L6: 131500 | M6: 0.764090645 | O6: 0 | P6: 51073 | Q6: 60407 | R6: 43654 | S6: 0.8547373368 | U6: 0 | V6: 0.19 | W6: 0.157 | X6: 0.168 | Y6: 0.285 | AA6: 0 | AB6: 0 | AC6: 0 | AD6: 0 | AE6: 0 | AF6: NO | AG6: NO | AH6: 0 | AJ6: Iota
A7: Acadia | B7: Church Point | C7: 9602 | D7: 22001960200 | F7: 0 | G7: 0 | H7: 71420210007 | I7: Louisiana | J7: 172100 | K7: 114200 | L7: 84300 | M7: 0.4898314933 | N7: TRUE | O7: 4 | P7: 51073 | Q7: 71125 | R7: 34309 | S7: 0.6717639457 | U7: 0 | V7: 0.19 | W7: 0.03 | X7: 0.295 | Y7: 0.285 | Z7: TRUE | AA7: 1 | AB7: 0 | AC7: 1 | AD7: 2 | AE7: 0 | AF7: NO | AG7: NO | AH7: 4 | AJ7: Church Point
A8: Acadia | B8: Rayne | C8: 9604 | D8: 22001960400 | F8: 0 | G8: 0 | H8: 71420210008 | I8: Louisiana | J8: 172100 | K8: 131500 | L8: 114800 | M8: 0.6670540383 | O8: 0 | P8: 51073 | Q8: 60407 | R8: 32266 | S8: 0.6317623793 | T8: TRUE | U8: 4 | V8: 0.19 | W8: 0.157 | X8: 0.304 | Y8: 0.285 | Z8: TRUE | AA8: 0 | AB8: 1 | AC8: 1 | AD8: 2 | AE8: 0 | AF8: NO | AG8: NO | AH8: 4 | AJ8: Rayne
A9: Acadia | B9: Crowley | C9: 9602 | D9: 22001960200 | F9: 0 | G9: 0 | H9: 71420210014 | I9: Louisiana | J9: 172100 | K9: 0 | L9: 115300 | M9: 0.669959326 | O9: 0 | P9: 51073 | Q9: 71125 | R9: 26972 | S9: 0.5281068275 | T9: TRUE | U9: 4 | V9: 0.19 | W9: 0.03 | X9: 0.371 | Y9: 0.285 | Z9: TRUE | AA9: 0 | AB9: 1 | AC9: 1 | AD9: 2 | AE9: 0 | AF9: NO | AG9: NO | AH9: 4 | AJ9: Crowley
A10: Acadia | B10: Jennings | C10: 9603 | D10: 22001960300 | F10: 0 | G10: 0 | H10: 71420210015 | I10: Louisiana | J10: 172100 | K10: 115300 | L10: 113000 | M10: 0.6565950029 | O10: 0 | P10: 51073 | Q10: 47500 | R10: 29819 | S10: 0.5838505668 | T10: TRUE | U10: 4 | V10: 0.19 | W10: 0.243 | X10: 0.257 | Y10: 0.285 | AA10: 0 | AB10: 1 | AC10: 0 | AD10: 1 | AE10: 0 | AF10: NO | AG10: NO | AH10: 4 | AJ10: Jennings
A11: Acadia | B11: Duson | C11: 9606 | D11: 22001960600 | F11: 0 | G11: 0 | H11: 71420210016 | I11: Louisiana | J11: 172100 | K11: 117800 | L11: 79400 | M11: 0.4613596746 | N11: TRUE | O11: 4 | P11: 51073 | Q11: 37451 | R11: 27604 | S11: 0.5404812719 | T11: TRUE | U11: 4 | V11: 0.19 | W11: 0.247 | X11: 0.27 | Y11: 0.285 | AA11: 1 | AB11: 1 | AC11: 0 | AD11: 2 | AE11: 0 | AF11: NO | AG11: NO | AH11: 8 | AJ11: Duson
A12: Acadia | B12: Rayne | C12: 9606 | D12: 22001960600 | F12: 0 | G12: 0 | H12: 71420210017 | I12: Louisiana | J12: 172100 | L12: 114800 | M12: 0.6670540383 | O12: 0 | P12: 51073 | Q12: 37451 | R12: 32266 | S12: 0.6317623793 | T12: TRUE | U12: 4 | V12: 0.19 | W12: 0.247 | X12: 0.304 | Y12: 0.285 | Z12: TRUE | AA12: 0 | AB12: 1 | AC12: 1 | AD12: 2 | AE12: 0 | AF12: NO | AG12: NO | AH12: 4 | AJ12: Rayne
A13: Acadia | B13: Rayne | C13: 9607 | D13: 22001960700 | E13: TRUE | F13: 1 | G13: 4 | H13: 71420210018 | I13: Louisiana | J13: 172100 | K13: 131500 | L13: 114800 | M13: 0.6670540383 | O13: 0 | P13: 51073 | Q13: 33542 | R13: 32266 | S13: 0.6317623793 | T13: TRUE | U13: 4 | V13: 0.19 | W13: 0.34 | X13: 0.304 | Y13: 0.285 | Z13: TRUE | AA13: 0 | AB13: 1 | AC13: 1 | AD13: 2 | AE13: 0 | AF13: YES | AG13: YES | AH13: 8 | AI13: 1 | AJ13: Rayne
A14: Acadia | B14: Crowley | C14: 9608 | D14: 22001960800 | E14: TRUE | F14: 1 | G14: 4 | H14: 71420210019 | I14: Louisiana | J14: 172100 | K14: 114800 | L14: 115300 | M14: 0.669959326 | O14: 0 | P14: 51073 | Q14: 31916 | R14: 26972 | S14: 0.5281068275 | T14: TRUE | U14: 4 | V14: 0.19 | W14: 0.262 | X14: 0.371 | Y14: 0.285 | Z14: TRUE | AA14: 0 | AB14: 1 | AC14: 1 | AD14: 2 | AE14: 0 | AF14: YES | AG14: YES | AH14: 8 | AI14: 1 | AJ14: Crowley
A15: Acadia | B15: Crowley | C15: 9611 | D15: 22001961100 | F15: 0 | G15: 0 | H15: 71420210020 | I15: Louisiana | J15: 172100 | K15: 0 | L15: 115300 | M15: 0.669959326 | O15: 0 | P15: 51073 | Q15: 38750 | R15: 26972 | S15: 0.5281068275 | T15: TRUE | U15: 4 | V15: 0.19 | W15: 0.257 | X15: 0.371 | Y15: 0.285 | Z15: TRUE | AA15: 0 | AB15: 1 | AC15: 1 | AD15: 2 | AE15: 0 | AF15: NO | AG15: NO | AH15: 4 | AJ15: Crowley
A16: Acadia | B16: Branch | C16: 9605 | D16: 22001960500 | F16: 0 | G16: 0 | H16: 71420210022 | I16: Louisiana | J16: 172100 | K16: 84300 | L16: 0 | M16: 0 | N16: TRUE | O16: 4 | P16: 51073 | Q16: 76339 | R16: 0 | S16: 0 | T16: TRUE | U16: 4 | V16: 0.19 | W16: 0.135 | X16: 0.134 | Y16: 0.285 | AA16: 1 | AB16: 1 | AC16: 0 | AD16: 2 | AE16: 0 | AF16: NO | AG16: NO | AH16: 8 | AJ16: Branch
A17: Acadia | B17: Morse | C17: 9612 | D17: 22001961200 | F17: 0 | G17: 0 | H17: 71420210023 | I17: Louisiana | J17: 172100 | K17: 114800 | L17: 71300 | M17: 0.4142940151 | N17: TRUE | O17: 4 | P17: 51073 | Q17: 48393 | R17: 48333 | S17: 0.9463513011 | U17: 0 | V17: 0.19 | W17: 0.176 | X17: 0.213 | Y17: 0.285 | AA17: 1 | AB17: 0 | AC17: 0 | AD17: 1 | AE17: 0 | AF17: NO | AG17: NO | AH17: 4 | AJ17: Morse
A18: Acadia | B18: Branch | C18: 9604 | D18: 22001960400 | F18: 0 | G18: 0 | H18: 71420210029 | I18: Louisiana | J18: 172100 | K18: 114800 | L18: 0 | M18: 0 | N18: TRUE | O18: 4 | P18: 51073 | Q18: 60407 | R18: 0 | S18: 0 | T18: TRUE | U18: 4 | V18: 0.19 | W18: 0.157 | X18: 0.134 | Y18: 0.285 | AA18: 1 | AB18: 1 | AC18: 0 | AD18: 2 | AE18: 0 | AF18: NO | AG18: NO | AH18: 8 | AJ18: Branch
A19: Acadia | B19: Rayne | C19: 9608 | D19: 22001960800 | E19: TRUE | F19: 1 | G19: 4 | H19: 71420210030 | I19: Louisiana | J19: 172100 | K19: 115300 | L19: 114800 | M19: 0.6670540383 | O19: 0 | P19: 51073 | Q19: 31916 | R19: 32266 | S19: 0.6317623793 | T19: TRUE | U19: 4 | V19: 0.19 | W19: 0.262 | X19: 0.304 | Y19: 0.285 | Z19: TRUE | AA19: 0 | AB19: 1 | AC19: 1 | AD19: 2 | AE19: 0 | AF19: YES | AG19: YES | AH19: 8 | AI19: 1 | AJ19: Rayne
A20: Acadia | B20: Eunice | C20: 9602 | D20: 22001960200 | F20: 0 | G20: 0 | H20: 71420210031 | I20: Louisiana | J20: 172100 | K20: 115300 | L20: 114200 | M20: 0.6635676932 | O20: 0 | P20: 51073 | Q20: 71125 | R20: 34573 | S20: 0.6769330174 | U20: 0 | V20: 0.19 | W20: 0.03 | X20: 0.298 | Y20: =+(V20*1.5) -> 0.285 | Z20: TRUE | AA20: 0 | AB20: 0 | AC20: 1 | AD20: 1 | AE20: 0 | AF20: NO | AG20: NO | AH20: 0 | AJ20: Eunice
A21: Acadia | B21: Basile | C21: 9603 | D21: 22001960300 | F21: 0 | G21: 0 | H21: 71420210032 | I21: Louisiana | J21: 172100 | K21: 115300 | L21: 54300 | M21: 0.3155142359 | N21: TRUE | O21: 4 | P21: 51073 | Q21: 47500 | R21: 26354 | S21: 0.5160065005 | T21: TRUE | U21: 4 | V21: 0.19 | W21: 0.243 | X21: 0.321 | Y21: =+V21*1.5 -> 0.285 | Z21: TRUE | AA21: 1 | AB21: 1 | AC21: 1 | AD21: 3 | AE21: 0 | AF21: NO | AG21: NO | AH21: 8 | AJ21: Basile
A22: Acadia | B22: Morse | C22: 9611 | D22: 22001961100 | F22: 0 | G22: 0 | H22: 71420210033 | I22: Louisiana | J22: 172100 | K22: 67300 | L22: 71300 | M22: 0.4142940151 | N22: TRUE | O22: 4 | P22: 51073 | Q22: 38750 | R22: 48333 | S22: 0.9463513011 | U22: 0 | V22: 0.19 | W22: 0.257 | X22: 0.213 | Y22: 0.285 | AA22: 1 | AB22: 0 | AC22: 0 | AD22: 1 | AE22: 0 | AF22: NO | AG22: NO | AH22: 4 | AJ22: Morse
A23: Acadia | B23: Crowley | C23: 9612 | D23: 22001961200 | F23: 0 | G23: 0 | H23: 71420210034 | I23: Louisiana | J23: 172100 | K23: 79700 | L23: 115300 | M23: 0.669959326 | O23: 0 | P23: 51073 | Q23: 48393 | R23: 26972 | S23: 0.5281068275 | T23: TRUE | U23: 4 | V23: 0.19 | W23: 0.176 | X23: 0.371 | Y23: 0.285 | Z23: TRUE | AA23: 0 | AB23: 1 | AC23: 1 | AD23: 2 | AE23: 0 | AF23: NO | AG23: NO | AH23: 4 | AJ23: Crowley
A24: Acadia | B24: Eunice | C24: 9603 | D24: 22001960300 | F24: 0 | G24: 0 | H24: 71420210039 | I24: Louisiana | J24: 172100 | K24: 74400 | L24: 114200 | M24: 0.6635676932 | O24: 0 | P24: 51073 | Q24: 47500 | R24: 34573 | S24: 0.6769330174 | U24: 0 | V24: 0.19 | W24: 0.243 | X24: 0.298 | Y24: 0.285 | Z24: TRUE | AA24: 0 | AB24: 0 | AC24: 1 | AD24: 1 | AE24: 0 | AF24: NO | AG24: NO | AH24: 0 | AJ24: Eunice
A25: Acadia | B25: Crowley | C25: 9604 | D25: 22001960400 | F25: 0 | G25: 0 | H25: 71420210040 | I25: Louisiana | J25: 172100 | K25: 74400 | L25: 115300 | M25: 0.669959326 | O25: 0 | P25: 51073 | Q25: 60407 | R25: 26972 | S25: 0.5281068275 | T25: TRUE | U25: 4 | V25: 0.19 | W25: 0.157 | X25: 0.371 | Y25: 0.285 | Z25: TRUE | AA25: 0 | AB25: 1 | AC25: 1 | AD25: 2 | AE25: 0 | AF25: NO | AG25: NO | AH25: 4 | AJ25: Crowley
A26: Acadia | B26: Iota | C26: 9602 | D26: 22001960200 | F26: 0 | G26: 0 | H26: 71420210041 | I26: Louisiana | J26: 172100 | K26: 74400 | L26: 131500 | M26: 0.764090645 | O26: 0 | P26: 51073 | Q26: 71125 | R26: 43654 | S26: 0.8547373368 | U26: 0 | V26: 0.19 | W26: 0.03 | X26: 0.168 | Y26: 0.285 | AA26: 0 | AB26: 0 | AC26: 0 | AD26: 0 | AE26: 0 | AF26: NO | AG26: NO | AH26: 0 | AJ26: Iota
A27: Acadia | B27: Evangeline | C27: 9603 | D27: 22001960300 | F27: 0 | G27: 0 | H27: 71420210042 | I27: Louisiana | J27: 172100 | M27: 0 | N27: TRUE | O27: 4 | P27: 51073 | Q27: 47500 | S27: 0 | T27: TRUE | U27: 4 | V27: 0.19 | W27: 0.243 | X27: 0 | Y27: 0.285 | AA27: 1 | AB27: 1 | AC27: 0 | AD27: 2 | AE27: 0 | AF27: NO | AG27: NO | AH27: 8 | AJ27: Evangeline
A28: Acadia | B28: Egan | C28: 9604 | D28: 22001960400 | F28: 0 | G28: 0 | H28: 71420210043 | I28: Louisiana | J28: 172100 | K28: 79300 | L28: 117800 | M28: 0.6844857641 | O28: 0 | P28: 51073 | Q28: 60407 | R28: 0 | S28: 0 | T28: TRUE | U28: 4 | V28: 0.19 | W28: 0.157 | X28: 0.313 | Y28: 0.285 | Z28: TRUE | AA28: 0 | AB28: 1 | AC28: 1 | AD28: 2 | AE28: 0 | AF28: NO | AG28: NO | AH28: 4 | AJ28: Egan
A29: Acadia | B29: Crowley | C29: 9609 | D29: 22001960900 | E29: TRUE | F29: 1 | G29: 4 | H29: 71420210044 | I29: Louisiana | J29: 172100 | L29: 115300 | M29: 0.669959326 | O29: 0 | P29: 51073 | Q29: 20000 | R29: 26972 | S29: 0.5281068275 | T29: TRUE | U29: 4 | V29: 0.19 | W29: 0.432 | X29: 0.371 | Y29: 0.285 | Z29: TRUE | AA29: 0 | AB29: 1 | AC29: 1 | AD29: 2 | AE29: 0 | AF29: YES | AG29: YES | AH29: 8 | AI29: 1 | AJ29: Crowley
A30: Acadia | B30: Crowley | C30: 9610 | D30: 22001961000 | E30: TRUE | F30: 1 | G30: 4 | H30: 71420210045 | I30: Louisiana | J30: 172100 | L30: 115300 | M30: 0.669959326 | O30: 0 | P30: 51073 | Q30: 27889 | R30: 26972 | S30: 0.5281068275 | T30: TRUE | U30: 4 | V30: 0.19 | W30: 0.448 | X30: 0.371 | Y30: 0.285 | Z30: TRUE | AA30: 0 | AB30: 1 | AC30: 1 | AD30: 2 | AE30: 0 | AF30: YES | AG30: YES | AH30: 8 | AI30: 1 | AJ30: Crowley
A31: Acadia | B31: Estherwood | C31: 9611 | D31: 22001961100 | F31: 0 | G31: 0 | H31: 71420210046 | I31: Louisiana | J31: 172100 | K31: 69400 | L31: 67300 | M31: 0.3910517141 | N31: TRUE | O31: 4 | P31: 51073 | Q31: 38750 | R31: 33977 | S31: 0.6652634464 | U31: 0 | V31: 0.19 | W31: 0.257 | X31: 0.198 | Y31: 0.285 | AA31: 1 | AB31: 0 | AC31: 0 | AD31: 1 | AE31: 0 | AF31: NO | AG31: NO | AH31: 4 | AJ31: Estherwood
A32: Acadia | B32: Evangeline | C32: 9604 | D32: 22001960400 | F32: 0 | G32: 0 | H32: 71420210047 | I32: Louisiana | J32: 172100 | K32: 81000 | M32: 0 | N32: TRUE | O32: 4 | P32: 51073 | Q32: 60407 | S32: 0 | T32: TRUE | U32: 4 | V32: 0.19 | W32: 0.157 | X32: 0 | Y32: 0.285 | AA32: 1 | AB32: 1 | AC32: 0 | AD32: 2 | AE32: 0 | AF32: NO | AG32: NO | AH32: 8 | AJ32: Evangeline
A33: Acadia | B33: Branch | C33: 9605 | D33: 22001960500 | F33: 0 | G33: 0 | H33: 71420210048 | I33: Louisiana | J33: 172100 | K33: 85500 | L33: 0 | M33: 0 | N33: TRUE | O33: 4 | P33: 51073 | Q33: 76339 | R33: 0 | S33: 0 | T33: TRUE | U33: 4 | V33: 0.19 | W33: 0.135 | X33: 0.134 | Y33: 0.285 | AA33: 1 | AB33: 1 | AC33: 0 | AD33: 2 | AE33: 0 | AF33: NO | AG33: NO | AH33: 8 | AJ33: Branch
A34: Acadia | B34: Church Point | C34: 9605 | D34: 22001960500 | F34: 0 | G34: 0 | H34: 71420210049 | I34: Louisiana | J34: 172100 | K34: 85500 | L34: 84300 | M34: 0.4898314933 | N34: TRUE | O34: 4 | P34: 51073 | Q34: 76339 | R34: 34309 | S34: 0.6717639457 | U34: 0 | V34: 0.19 | W34: 0.135 | X34: 0.295 | Y34: 0.285 | Z34: TRUE | AA34: 1 | AB34: 0 | AC34: 1 | AD34: 2 | AE34: 0 | AF34: NO | AG34: NO | AH34: 4 | AJ34: Church Point
A35: Acadia | B35: Rayne | C35: 9605 | D35: 22001960500 | F35: 0 | G35: 0 | H35: 71420210050 | I35: Louisiana | J35: 172100 | K35: 85500 | L35: 114800 | M35: 0.6670540383 | O35: 0 | P35: 51073 | Q35: 76339 | R35: 32266 | S35: 0.6317623793 | T35: TRUE | U35: 4 | V35: 0.19 | W35: 0.135 | X35: 0.304 | Y35: 0.285 | Z35: TRUE | AA35: 0 | AB35: 1 | AC35: 1 | AD35: 2 | AE35: 0 | AF35: NO | AG35: NO | AH35: 4 | AJ35: Rayne
A36: Acadia | B36: Rayne | C36: 9606 | D36: 22001960600 | F36: 0 | G36: 0 | H36: 71420210051 | I36: Louisiana | J36: 172100 | K36: 69400 | L36: 114800 | M36: 0.6670540383 | O36: 0 | P36: 51073 | Q36: 37451 | R36: 32266 | S36: 0.6317623793 | T36: TRUE | U36: 4 | V36: 0.19 | W36: 0.247 | X36: 0.304 | Y36: 0.285 | Z36: TRUE | AA36: 0 | AB36: 1 | AC36: 1 | AD36: 2 | AE36: =IF(Z36=TRUE, 4,0) -> 0 | AF36: NO | AG36: NO | AH36: 4 | AJ36: Rayne
A37: Acadia | B37: Mermentau | C37: 9611 | D37: 22001961100 | F37: 0 | G37: 0 | H37: 71420210052 | I37: Louisiana | J37: 172100 | K37: 69400 | L37: 79700 | M37: 0.4631028472 | N37: TRUE | O37: 4 | P37: 51073 | Q37: 38750 | R37: 34583 | S37: 0.6771288156 | U37: 0 | V37: 0.19 | W37: 0.257 | X37: 0.238 | Y37: 0.285 | AA37: 1 | AB37: 0 | AC37: 0 | AD37: 1 | AE37: 0 | AF37: NO | AG37: NO | AH37: 4 | AJ37: Mermentau
A38: Acadia | B38: Rayne | C38: 9612 | D38: 22001961200 | F38: 0 | G38: 0 | H38: 71420210053 | I38: Louisiana | J38: 172100 | K38: 69400 | L38: 114800 | M38: 0.6670540383 | O38: 0 | P38: 51073 | Q38: 48393 | R38: 32266 | S38: 0.6317623793 | T38: TRUE | U38: 4 | V38: 0.19 | W38: 0.176 | X38: 0.304 | Y38: 0.285 | Z38: TRUE | AA38: 0 | AB38: 1 | AC38: 1 | AD38: 2 | AE38: 0 | AF38: NO | AG38: NO | AH38: 4 | AJ38: Rayne
A39: Allen | B39: Kinder | C39: 9501 | D39: 22003950100 | F39: 0 | G39: 0 | H39: 71420210009 | I39: Louisiana | J39: 172100 | K39: 54300 | L39: 79300 | M39: 0.4607786171 | N39: TRUE | O39: 4 | P39: 51073 | Q39: 44460 | R39: 45721 | S39: 0.8952088187 | U39: 0 | V39: 0.19 | W39: 0.111 | X39: 0.15 | Y39: 0.285 | AA39: 1 | AB39: 0 | AC39: 0 | AD39: 1 | AE39: 0 | AF39: NO | AG39: NO | AH39: 4 | AJ39: Kinder
A40: Allen | B40: Leblanc | C40: 9501 | D40: 22003950100 | F40: 0 | G40: 0 | H40: 71420210010 | I40: Louisiana | J40: 172100 | K40: 114200 | M40: 0 | N40: TRUE | O40: 4 | P40: 51073 | Q40: 44460 | S40: 0 | T40: TRUE | U40: 4 | V40: 0.19 | W40: 0.111 | X40: 0 | Y40: 0.285 | AA40: 1 | AB40: 1 | AC40: 0 | AD40: 2 | AE40: 0 | AF40: NO | AG40: NO | AH40: 8 | AJ40: Leblanc
A41: Allen | B41: Mittie | C41: 9501 | D41: 22003950100 | F41: 0 | G41: 0 | H41: 71420210011 | I41: Louisiana | J41: 172100 | M41: 0 | N41: TRUE | O41: 4 | P41: 51073 | Q41: 44460 | S41: 0 | T41: TRUE | U41: 4 | V41: 0.19 | W41: 0.111 | X41: 0 | Y41: 0.285 | AA41: 1 | AB41: 1 | AC41: 0 | AD41: 2 | AE41: 0 | AF41: NO | AG41: NO | AH41: 8 | AJ41: Mittie
A42: Allen | B42: Reeves | C42: 9501 | D42: 22003950100 | F42: 0 | G42: 0 | H42: 71420210012 | I42: Louisiana | J42: 172100 | K42: 131500 | L42: 85500 | M42: 0.4968041836 | N42: TRUE | O42: 4 | P42: 51073 | Q42: 44460 | R42: 29250 | S42: 0.5727096509 | T42: TRUE | U42: 4 | V42: 0.19 | W42: 0.111 | X42: 0.285 | Y42: 0.285 | AA42: 1 | AB42: 1 | AC42: 0 | AD42: 2 | AE42: 0 | AF42: NO | AG42: NO | AH42: 8 | AJ42: Reeves
A43: Allen | B43: Oakdale | C43: 9502 | D43: 22003950200 | F43: 0 | G43: 0 | H43: 71420210013 | I43: Louisiana | J43: 172100 | K43: 113000 | L43: 69400 | M43: 0.4032539221 | N43: TRUE | O43: 4 | P43: 51073 | Q43: 52721 | R43: 32538 | S43: 0.6370880896 | T43: TRUE | U43: 4 | V43: 0.19 | W43: 0.155 | X43: 0.179 | Y43: 0.285 | AA43: 1 | AB43: 1 | AC43: 0 | AD43: 2 | AE43: 0 | AF43: NO | AG43: NO | AH43: 8 | AJ43: Oakdale
A44: Allen | B44: Oakdale | C44: 9502 | D44: 22003950200 | F44: 0 | G44: 0 | H44: 71420210021 | I44: Louisiana | J44: 172100 | K44: 0 | L44: 69400 | M44: 0.4032539221 | N44: TRUE | O44: 4 | P44: 51073 | Q44: 52721 | R44: 32538 | S44: 0.6370880896 | T44: TRUE | U44: 4 | V44: 0.19 | W44: 0.155 | X44: 0.179 | Y44: 0.285 | AA44: 1 | AB44: 1 | AC44: 0 | AD44: 2 | AE44: 0 | AF44: NO | AG44: NO | AH44: 8 | AJ44: Oakdale
A45: Allen | B45: Elizabeth | C45: 9501 | D45: 22003950100 | F45: 0 | G45: 0 | H45: 71420210024 | I45: Louisiana | J45: 172100 | K45: 79400 | L45: 74400 | M45: 0.4323067984 | N45: TRUE | O45: 4 | P45: 51073 | Q45: 44460 | R45: 44792 | S45: 0.8770191686 | U45: 0 | V45: 0.19 | W45: 0.111 | X45: 0.132 | Y45: 0.285 | AA45: 1 | AB45: 0 | AC45: 0 | AD45: 1 | AE45: 0 | AF45: NO | AG45: NO | AH45: 4 | AJ45: Elizabeth
A46: Allen | B46: Elizabeth | C46: 9501 | D46: 22003950100 | F46: 0 | G46: 0 | H46: 71420210025 | I46: Louisiana | J46: 172100 | K46: 114800 | L46: 74400 | M46: 0.4323067984 | N46: TRUE | O46: 4 | P46: 51073 | Q46: 44460 | R46: 44792 | S46: 0.8770191686 | U46: 0 | V46: 0.19 | W46: 0.111 | X46: 0.132 | Y46: 0.285 | AA46: 1 | AB46: 0 | AC46: 0 | AD46: 1 | AE46: 0 | AF46: NO | AG46: NO | AH46: 4 | AJ46: Elizabeth
A47: Allen | B47: Elizabeth | C47: 9501 | D47: 22003950100 | F47: 0 | G47: 0 | H47: 71420210026 | I47: Louisiana | J47: 172100 | K47: 114800 | L47: 74400 | M47: 0.4323067984 | N47: TRUE | O47: 4 | P47: 51073 | Q47: 44460 | R47: 44792 | S47: 0.8770191686 | U47: 0 | V47: 0.19 | W47: 0.111 | X47: 0.132 | Y47: 0.285 | AA47: 1 | AB47: 0 | AC47: 0 | AD47: 1 | AE47: 0 | AF47: NO | AG47: NO | AH47: 4 | AJ47: Elizabeth
A48: Allen | B48: Grant | C48: 9501 | D48: 22003950100 | F48: 0 | G48: 0 | H48: 71420210027 | I48: Louisiana | J48: 172100 | K48: 114800 | M48: 0 | N48: TRUE | O48: 4 | P48: 51073 | Q48: 44460 | S48: 0 | T48: TRUE | U48: 4 | V48: 0.19 | W48: 0.111 | X48: 0 | Y48: 0.285 | AA48: 1 | AB48: 1 | AC48: 0 | AD48: 2 | AE48: 0 | AF48: NO | AG48: NO | AH48: 8 | AJ48: Grant
A49: Allen | B49: Oakdale | C49: 9503 | D49: 22003950300 | E49: TRUE | F49: 1 | G49: 4 | H49: 71420210028 | I49: Louisiana | J49: 172100 | K49: 115300 | L49: 69400 | M49: 0.4032539221 | N49: TRUE | O49: 4 | P49: 51073 | Q49: 26611 | R49: 32538 | S49: 0.6370880896 | T49: TRUE | U49: 4 | V49: 0.19 | W49: 0.182 | X49: 0.179 | Y49: 0.285 | AA49: 1 | AB49: 1 | AC49: 0 | AD49: 2 | AE49: 0 | AF49: YES | AG49: YES | AH49: 12 | AI49: 1 | AJ49: Oakdale
A50: Allen | B50: Oakdale | C50: 9501 | D50: 22003950100 | F50: 0 | G50: 0 | H50: 71420210035 | I50: Louisiana | J50: 172100 | K50: 71300 | L50: 69400 | M50: 0.4032539221 | N50: TRUE | O50: 4 | P50: 51073 | Q50: 44460 | R50: 32538 | S50: 0.6370880896 | T50: TRUE | U50: 4 | V50: 0.19 | W50: 0.111 | X50: 0.179 | Y50: 0.285 | AA50: 1 | AB50: 1 | AC50: 0 | AD50: 2 | AE50: 0 | AF50: NO | AG50: NO | AH50: 8 | AJ50: Oakdale
A51: Allen | B51: Oberlin | C51: 9501 | D51: 22003950100 | F51: 0 | G51: 0 | H51: 71420210036 | I51: Louisiana | J51: 172100 | K51: 115300 | L51: 81000 | M51: 0.470656595 | N51: TRUE | O51: 4 | P51: 51073 | Q51: 44460 | R51: 33750 | S51: 0.660818828 | U51: 0 | V51: 0.19 | W51: 0.111 | X51: 0.287 | Y51: 0.285 | Z51: TRUE | AA51: 1 | AB51: 0 | AC51: 1 | AD51: 2 | AE51: 0 | AF51: NO | AG51: NO | AH51: 4 | AJ51: Oberlin
A52: Allen | B52: Reeves | C52: 9501 | D52: 22003950100 | F52: 0 | G52: 0 | H52: 71420210037 | I52: Louisiana | J52: 172100 | K52: 71300 | L52: 85500 | M52: 0.4968041836 | N52: TRUE | O52: 4 | P52: 51073 | Q52: 44460 | R52: 29250 | S52: 0.5727096509 | T52: TRUE | U52: 4 | V52: 0.19 | W52: 0.111 | X52: 0.285 | Y52: 0.285 | AA52: 1 | AB52: 1 | AC52: 0 | AD52: 2 | AE52: 0 | AF52: NO | AG52: NO | AH52: 8 | AJ52: Reeves
A53: Allen | B53: Reeves | C53: 9501 | D53: 22003950100 | F53: 0 | G53: 0 | H53: 71420210038 | I53: Louisiana | J53: 172100 | K53: 114800 | L53: 85500 | M53: 0.4968041836 | N53: TRUE | O53: 4 | P53: 51073 | Q53: 44460 | R53: 29250 | S53: 0.5727096509 | T53: TRUE | U53: 4 | V53: 0.19 | W53: 0.111 | X53: 0.285 | Y53: 0.285 | AA53: 1 | AB53: 1 | AC53: 0 | AD53: 2 | AE53: 0 | AF53: NO | AG53: NO | AH53: 8 | AJ53: Reeves
A54: Allen | B54: Kinder | C54: 9504 | D54: 22003950400 | F54: 0 | G54: 0 | H54: 71420210054 | I54: Louisiana | J54: 172100 | K54: 79300 | L54: 79300 | M54: 0.4607786171 | N54: TRUE | O54: 4 | P54: 51073 | Q54: 47898 | R54: 45721 | S54: 0.8952088187 | U54: 0 | V54: 0.19 | W54: 0.182 | X54: 0.15 | Y54: 0.285 | AA54: 1 | AB54: 0 | AC54: 0 | AD54: 1 | AE54: 0 | AF54: NO | AG54: NO | AH54: 4 | AJ54: Kinder
A55: Allen | B55: Oakdale | C55: 9504 | D55: 22003950400 | F55: 0 | G55: 0 | H55: 71420210055 | I55: Louisiana | J55: 172100 | K55: 69400 | L55: 69400 | M55: 0.4032539221 | N55: TRUE | O55: 4 | P55: 51073 | Q55: 47898 | R55: 32538 | S55: 0.6370880896 | T55: TRUE | U55: 4 | V55: 0.19 | W55: 0.182 | X55: 0.179 | Y55: 0.285 | AA55: 1 | AB55: 1 | AC55: 0 | AD55: 2 | AE55: 0 | AF55: NO | AG55: NO | AH55: 8 | AJ55: Oakdale
A56: Allen | B56: Oberlin | C56: 9504 | D56: 22003950400 | F56: 0 | G56: 0 | H56: 71420210056 | I56: Louisiana | J56: 172100 | K56: 81000 | L56: 81000 | M56: 0.470656595 | N56: TRUE | O56: 4 | P56: 51073 | Q56: 47898 | R56: 33750 | S56: 0.660818828 | U56: 0 | V56: 0.19 | W56: 0.182 | X56: 0.287 | Y56: 0.285 | Z56: TRUE | AA56: 1 | AB56: 0 | AC56: 1 | AD56: 2 | AE56: 0 | AF56: NO | AG56: NO | AH56: 4 | AJ56: Oberlin
A57: Allen | B57: Oberlin | C57: 9504 | D57: 22003950400 | F57: 0 | G57: 0 | H57: 71420210057 | I57: Louisiana | J57: 172100 | K57: 81000 | L57: 81000 | M57: 0.470656595 | N57: TRUE | O57: 4 | P57: 51073 | Q57: 47898 | R57: 33750 | S57: 0.660818828 | U57: 0 | V57: 0.19 | W57: 0.182 | X57: 0.287 | Y57: 0.285 | Z57: TRUE | AA57: 1 | AB57: 0 | AC57: 1 | AD57: 2 | AE57: 0 | AF57: NO | AG57: NO | AH57: 4 | AJ57: Oberlin
A58: Allen | B58: Kinder | C58: 9505 | D58: 22003950500 | F58: 0 | G58: 0 | H58: 71420210062 | I58: Louisiana | J58: 172100 | K58: 161200 | L58: 79300 | M58: 0.4607786171 | N58: TRUE | O58: 4 | P58: 51073 | Q58: 54313 | R58: 45721 | S58: 0.8952088187 | U58: 0 | V58: 0.19 | W58: 0.13 | X58: 0.15 | Y58: 0.285 | AA58: 1 | AB58: 0 | AC58: 0 | AD58: 1 | AE58: 0 | AF58: NO | AG58: NO | AH58: 4 | AJ58: Kinder
A59: Allen | B59: Kinder | C59: 9505 | D59: 22003950500 | F59: 0 | G59: 0 | H59: 71420210063 | I59: Louisiana | J59: 172100 | K59: 236500 | L59: 79300 | M59: 0.4607786171 | N59: TRUE | O59: 4 | P59: 51073 | Q59: 54313 | R59: 45721 | S59: 0.8952088187 | U59: 0 | V59: 0.19 | W59: 0.13 | X59: 0.15 | Y59: 0.285 | AA59: 1 | AB59: 0 | AC59: 0 | AD59: 1 | AE59: 0 | AF59: NO | AG59: NO | AH59: 4 | AJ59: Kinder
A60: Allen | B60: Kinder | C60: 9505 | D60: 22003950500 | F60: 0 | G60: 0 | H60: 71420210064 | I60: Louisiana | J60: 172100 | K60: 161200 | L60: 79300 | M60: 0.4607786171 | N60: TRUE | O60: 4 | P60: 51073 | Q60: 54313 | R60: 45721 | S60: 0.8952088187 | U60: 0 | V60: 0.19 | W60: 0.13 | X60: 0.15 | Y60: 0.285 | AA60: 1 | AB60: 0 | AC60: 0 | AD60: 1 | AE60: 0 | AF60: NO | AG60: NO | AH60: 4 | AJ60: Kinder
A61: Allen | B61: Oberlin | C61: 9505 | D61: 22003950500 | F61: 0 | G61: 0 | H61: 71420210071 | I61: Louisiana | J61: 172100 | L61: 81000 | M61: 0.470656595 | N61: TRUE | O61: 4 | P61: 51073 | Q61: 54313 | R61: 33750 | S61: 0.660818828 | U61: 0 | V61: 0.19 | W61: 0.13 | X61: 0.287 | Y61: 0.285 | Z61: TRUE | AA61: 1 | AB61: 0 | AC61: 1 | AD61: 2 | AE61: 0 | AF61: NO | AG61: NO | AH61: 4 | AJ61: Oberlin
A62: Ascension | B62: Saint Amant | C62: 301.02 | D62: 22005030102 | F62: 0 | G62: 0 | H62: 71420210058 | I62: Louisiana | J62: 172100 | K62: 79300 | M62: 0 | N62: TRUE | O62: 4 | P62: 51073 | Q62: 62125 | S62: 0 | T62: TRUE | U62: 4 | V62: 0.19 | W62: 0.096 | X62: 0 | Y62: 0.285 | AA62: 1 | AB62: 1 | AC62: 0 | AD62: 2 | AE62: 0 | AF62: NO | AG62: NO | AH62: 8 | AJ62: Saint Amant
A63: Ascension | B63: Saint Amant | C63: 301.03 | D63: 22005030103 | F63: 0 | G63: 0 | H63: 71420210059 | I63: Louisiana | J63: 172100 | K63: 79300 | M63: 0 | N63: TRUE | O63: 4 | P63: 51073 | Q63: 84132 | S63: 0 | T63: TRUE | U63: 4 | V63: 0.19 | W63: 0.105 | X63: 0 | Y63: 0.285 | AA63: 1 | AB63: 1 | AC63: 0 | AD63: 2 | AE63: 0 | AF63: NO | AG63: NO | AH63: 8 | AJ63: Saint Amant
A64: Ascension | B64: Duplessis | C64: 302.05 | D64: 22005030205 | F64: 0 | G64: 0 | H64: 71420210060 | I64: Louisiana | J64: 172100 | K64: 79300 | M64: 0 | N64: TRUE | O64: 4 | P64: 51073 | Q64: 107907 | S64: 0 | T64: TRUE | U64: 4 | V64: 0.19 | W64: 0.045 | X64: 0 | Y64: 0.285 | AA64: 1 | AB64: 1 | AC64: 0 | AD64: 2 | AE64: 0 | AF64: NO | AG64: NO | AH64: 8 | AJ64: Duplessis
A65: Ascension | B65: Gonzales | C65: 302.05 | D65: 22005030205 | F65: 0 | G65: 0 | H65: 71420210061 | I65: Louisiana | J65: 172100 | K65: 81000 | L65: 161200 | M65: 0.9366647298 | O65: 0 | P65: 51073 | Q65: 107907 | R65: 52923 | S65: 1.036222662 | U65: 0 | V65: 0.19 | W65: 0.045 | X65: 0.192 | Y65: 0.285 | AA65: 0 | AB65: 0 | AC65: 0 | AD65: 0 | AE65: 0 | AF65: NO | AG65: NO | AH65: 0 | AJ65: Gonzales
A66: Ascension | B66: Prairieville | C66: 301.01 | D66: 22005030101 | F66: 0 | G66: 0 | H66: 71420210065 | I66: Louisiana | J66: 172100 | L66: 236500 | M66: 1.374201046 | O66: 0 | P66: 51073 | Q66: 76288 | R66: 99953 | S66: 1.957061461 | U66: 0 | V66: 0.19 | W66: 0.129 | X66: 0.051 | Y66: 0.285 | AA66: 0 | AB66: 0 | AC66: 0 | AD66: 0 | AE66: 0 | AF66: NO | AG66: NO | AH66: 0 | AJ66: Prairieville
A67: Ascension | B67: Gonzales | C67: 301.02 | D67: 22005030102 | F67: 0 | G67: 0 | H67: 71420210066 | I67: Louisiana | J67: 172100 | K67: 161200 | L67: 161200 | M67: 0.9366647298 | O67: 0 | P67: 51073 | Q67: 62125 | R67: 52923 | S67: 1.036222662 | U67: 0 | V67: 0.19 | W67: 0.096 | X67: 0.192 | Y67: 0.285 | AA67: 0 | AB67: 0 | AC67: 0 | AD67: 0 | AE67: 0 | AF67: NO | AG67: NO | AH67: 0 | AJ67: Gonzales
A68: Ascension | B68: Gonzales | C68: 301.03 | D68: 22005030103 | F68: =IF(E68=TRUE,1,0) -> 0 | G68: =IF(E68=TRUE,4,0) -> 0 | H68: 71420210067 | I68: Louisiana | J68: 172100 | K68: 236500 | L68: 161200 | M68: =+L68/J68 -> 0.9366647298 | N68: =IF(M68<=50%,TRUE,"") ->  | O68: =IF(N68=TRUE,4,0) -> 0 | P68: 51073 | Q68: 84132 | R68: 52923 | S68: =+R68/P68 -> 1.036222662 | T68: =IF(S68<=65%,TRUE,"") ->  | U68: =IF(T68=TRUE, 4,0) -> 0 | V68: 0.19 | W68: 0.105 | X68: 0.192 | Y68: 0.285 | Z68: =IF(X68>Y68,"TRUE", "") ->  | AA68: =IF(N68=TRUE,1,0) -> 0 | AB68: =IF(T68=TRUE,1,0) -> 0 | AC68: =IF(Z68="TRUE",1,0) -> 0 | AD68: =SUM(AA68:AC68) -> 0 | AE68: =IF(Z68=TRUE, 4,0) -> 0 | AF68: =IF(AND(E68=TRUE,AD68>1),"YES","NO") -> NO | AG68: =IF(AND(F68=1,AD68>1), "YES","NO") -> NO | AH68: =+G68+O68+U68+AE68 -> 0 | AI68: =IF(AG68="YES",1,"") ->  | AJ68: =+B68 -> Gonzales
A69: Ascension | B69: Prairieville | C69: 302.04 | D69: 22005030204 | F69: 0 | G69: 0 | H69: 71420210068 | I69: Louisiana | J69: 172100 | L69: 236500 | M69: 1.374201046 | O69: 0 | P69: 51073 | Q69: 89914 | R69: 99953 | S69: 1.957061461 | U69: 0 | V69: 0.19 | W69: 0.075 | X69: 0.051 | Y69: 0.285 | AA69: 0 | AB69: 0 | AC69: 0 | AD69: 0 | AE69: 0 | AF69: NO | AG69: NO | AH69: 0 | AJ69: Prairieville
A70: Ascension | B70: Prairieville | C70: 302.05 | D70: 22005030205 | F70: 0 | G70: 0 | H70: 71420210069 | I70: Louisiana | J70: 172100 | K70: 236500 | L70: 236500 | M70: 1.374201046 | O70: 0 | P70: 51073 | Q70: 107907 | R70: 99953 | S70: 1.957061461 | U70: 0 | V70: 0.19 | W70: 0.045 | X70: 0.051 | Y70: 0.285 | AA70: 0 | AB70: 0 | AC70: 0 | AD70: 0 | AE70: 0 | AF70: NO | AG70: NO | AH70: 0 | AJ70: Prairieville
A71: Ascension | B71: Gonzales | C71: 302.06 | D71: 22005030206 | F71: 0 | G71: 0 | H71: 71420210070 | I71: Louisiana | J71: 172100 | K71: 236500 | L71: 161200 | M71: 0.9366647298 | O71: 0 | P71: 51073 | Q71: 76319 | R71: 52923 | S71: 1.036222662 | U71: 0 | V71: 0.19 | W71: 0.07 | X71: 0.192 | Y71: 0.285 | AA71: 0 | AB71: 0 | AC71: 0 | AD71: 0 | AE71: 0 | AF71: NO | AG71: NO | AH71: 0 | AJ71: Gonzales
A72: Ascension | B72: Prairieville | C72: 301.03 | D72: 22005030103 | F72: 0 | G72: 0 | H72: 71420210072 | I72: Louisiana | J72: 172100 | K72: 161200 | L72: 236500 | M72: 1.374201046 | O72: 0 | P72: 51073 | Q72: 84132 | R72: 99953 | S72: 1.957061461 | U72: 0 | V72: 0.19 | W72: 0.105 | X72: 0.051 | Y72: 0.285 | AA72: 0 | AB72: 0 | AC72: 0 | AD72: 0 | AE72: 0 | AF72: NO | AG72: NO | AH72: 0 | AJ72: Prairieville
A73: Ascension | B73: Prairieville | C73: 302.03 | D73: 22005030203 | F73: 0 | G73: 0 | H73: 71420210073 | I73: Louisiana | J73: 172100 | K73: 236500 | L73: 236500 | M73: 1.374201046 | O73: 0 | P73: 51073 | Q73: 113839 | R73: 99953 | S73: 1.957061461 | U73: 0 | V73: 0.19 | W73: 0.038 | X73: 0.051 | Y73: 0.285 | AA73: 0 | AB73: 0 | AC73: 0 | AD73: 0 | AE73: 0 | AF73: NO | AG73: NO | AH73: 0 | AJ73: Prairieville
A74: Ascension | B74: Gonzales | C74: 301.01 | D74: 22005030101 | F74: 0 | G74: 0 | H74: 71420210074 | I74: Louisiana | J74: 172100 | K74: 161200 | L74: 161200 | M74: 0.9366647298 | O74: 0 | P74: 51073 | Q74: 76288 | R74: 52923 | S74: 1.036222662 | U74: 0 | V74: 0.19 | W74: 0.129 | X74: 0.192 | Y74: 0.285 | AA74: 0 | AB74: 0 | AC74: 0 | AD74: 0 | AE74: 0 | AF74: NO | AG74: NO | AH74: 0 | AJ74: Gonzales
A75: Ascension | B75: Sorrento | C75: 306 | D75: 22005030600 | F75: 0 | G75: 0 | H75: 71420210076 | I75: Louisiana | J75: 172100 | L75: 165700 | M75: 0.9628123184 | O75: 0 | P75: 51073 | Q75: 62135 | R75: 61207 | S75: 1.198421867 | U75: 0 | V75: 0.19 | W75: 0.168 | X75: 0.07 | Y75: 0.285 | AA75: 0 | AB75: 0 | AC75: 0 | AD75: 0 | AE75: 0 | AF75: NO | AG75: NO | AH75: 0 | AJ75: Sorrento
A76: Ascension | B76: Gonzales | C76: 305 | D76: 22005030500 | F76: 0 | G76: 0 | H76: 71420210082 | I76: Louisiana | J76: 172100 | L76: 161200 | M76: 0.9366647298 | O76: 0 | P76: 51073 | Q76: 64360 | R76: 52923 | S76: 1.036222662 | U76: 0 | V76: 0.19 | W76: 0.077 | X76: 0.192 | Y76: 0.285 | AA76: 0 | AB76: 0 | AC76: 0 | AD76: 0 | AE76: 0 | AF76: NO | AG76: NO | AH76: 0 | AJ76: Gonzales
A77: Ascension | B77: Donaldsonville | C77: 309 | D77: 22005030900 | E77: TRUE | F77: 1 | G77: 4 | H77: 71420210083 | I77: Louisiana | J77: 172100 | K77: 161200 | L77: 113000 | M77: 0.6565950029 | O77: 0 | P77: 51073 | Q77: 36369 | R77: 25551 | S77: 0.5002839073 | T77: TRUE | U77: 4 | V77: 0.19 | W77: 0.37 | X77: 0.385 | Y77: 0.285 | Z77: TRUE | AA77: 0 | AB77: 1 | AC77: 1 | AD77: 2 | AE77: 0 | AF77: YES | AG77: YES | AH77: 8 | AI77: 1 | AJ77: Donaldsonville
A78: Ascension | B78: Prairieville | C78: 302.06 | D78: 22005030206 | F78: 0 | G78: 0 | H78: 71420210084 | I78: Louisiana | J78: 172100 | K78: 161200 | L78: 236500 | M78: 1.374201046 | O78: 0 | P78: 51073 | Q78: 76319 | R78: 99953 | S78: 1.957061461 | U78: 0 | V78: 0.19 | W78: 0.07 | X78: 0.051 | Y78: 0.285 | AA78: 0 | AB78: 0 | AC78: 0 | AD78: 0 | AE78: 0 | AF78: NO | AG78: NO | AH78: 0 | AJ78: Prairieville
A79: Ascension | B79: Geismar | C79: 303 | D79: 22005030300 | F79: 0 | G79: 0 | H79: 71420210085 | I79: Louisiana | J79: 172100 | M79: 0 | N79: TRUE | O79: 4 | P79: 51073 | Q79: 103424 | S79: 0 | T79: TRUE | U79: 4 | V79: 0.19 | W79: 0.058 | X79: 0 | Y79: 0.285 | AA79: 1 | AB79: 1 | AC79: 0 | AD79: 2 | AE79: 0 | AF79: NO | AG79: NO | AH79: 8 | AJ79: Geismar
A80: Ascension | B80: Prairieville | C80: 303 | D80: 22005030300 | F80: 0 | G80: 0 | H80: 71420210086 | I80: Louisiana | J80: 172100 | K80: 165700 | L80: 236500 | M80: 1.374201046 | O80: 0 | P80: 51073 | Q80: 103424 | R80: 99953 | S80: 1.957061461 | U80: 0 | V80: 0.19 | W80: 0.058 | X80: 0.051 | Y80: 0.285 | AA80: 0 | AB80: 0 | AC80: 0 | AD80: 0 | AE80: 0 | AF80: NO | AG80: NO | AH80: 0 | AJ80: Prairieville
A81: Ascension | B81: Saint Amant | C81: 305 | D81: 22005030500 | F81: 0 | G81: 0 | H81: 71420210087 | I81: Louisiana | J81: 172100 | K81: 165700 | M81: 0 | N81: TRUE | O81: 4 | P81: 51073 | Q81: 64360 | S81: 0 | T81: TRUE | U81: 4 | V81: 0.19 | W81: 0.077 | X81: 0 | Y81: 0.285 | AA81: 1 | AB81: 1 | AC81: 0 | AD81: 2 | AE81: 0 | AF81: NO | AG81: NO | AH81: 8 | AJ81: Saint Amant
A82: Ascension | B82: Sorrento | C82: 305 | D82: 22005030500 | F82: 0 | G82: 0 | H82: 71420210088 | I82: Louisiana | J82: 172100 | K82: 161200 | L82: 165700 | M82: 0.9628123184 | O82: 0 | P82: 51073 | Q82: 64360 | R82: 61207 | S82: 1.198421867 | U82: 0 | V82: 0.19 | W82: 0.077 | X82: 0.07 | Y82: 0.285 | AA82: 0 | AB82: 0 | AC82: 0 | AD82: 0 | AE82: 0 | AF82: NO | AG82: NO | AH82: 0 | AJ82: Sorrento
A83: Ascension | B83: Donaldsonville | C83: 310 | D83: 22005031000 | E83: TRUE | F83: 1 | G83: 4 | H83: 71420210089 | I83: Louisiana | J83: 172100 | K83: 165700 | L83: 113000 | M83: 0.6565950029 | O83: 0 | P83: 51073 | Q83: 29449 | R83: 25551 | S83: 0.5002839073 | T83: TRUE | U83: 4 | V83: 0.19 | W83: 0.284 | X83: 0.385 | Y83: 0.285 | Z83: TRUE | AA83: 0 | AB83: 1 | AC83: 1 | AD83: 2 | AE83: 0 | AF83: YES | AG83: YES | AH83: 8 | AI83: 1 | AJ83: Donaldsonville
A84: Ascension | B84: Darrow | C84: 303 | D84: 22005030300 | F84: 0 | G84: 0 | H84: 71420210094 | I84: Louisiana | J84: 172100 | K84: 116000 | M84: 0 | N84: TRUE | O84: 4 | P84: 51073 | Q84: 103424 | S84: 0 | T84: TRUE | U84: 4 | V84: 0.19 | W84: 0.058 | X84: 0 | Y84: 0.285 | AA84: 1 | AB84: 1 | AC84: 0 | AD84: 2 | AE84: 0 | AF84: NO | AG84: NO | AH84: 8 | AJ84: Darrow
A85: Ascension | B85: Sorrento | C85: 303 | D85: 22005030300 | F85: 0 | G85: 0 | H85: 71420210095 | I85: Louisiana | J85: 172100 | K85: 116000 | L85: 165700 | M85: 0.9628123184 | O85: 0 | P85: 51073 | Q85: 103424 | R85: 61207 | S85: 1.198421867 | U85: 0 | V85: 0.19 | W85: 0.058 | X85: 0.07 | Y85: =+V85*1.5 -> 0.285 | AA85: 0 | AB85: 0 | AC85: 0 | AD85: 0 | AE85: 0 | AF85: NO | AG85: NO | AH85: 0 | AJ85: Sorrento
A86: Ascension | B86: Brittany | C86: 304.02 | D86: 22005030402 | F86: 0 | G86: 0 | H86: 71420210096 | I86: Louisiana | J86: 172100 | K86: 169200 | M86: 0 | N86: TRUE | O86: 4 | P86: 51073 | Q86: 57611 | S86: 0 | T86: TRUE | U86: 4 | V86: 0.19 | W86: 0.167 | X86: 0 | Y86: 0.285 | AA86: 1 | AB86: 1 | AC86: 0 | AD86: 2 | AE86: 0 | AF86: NO | AG86: NO | AH86: 8 | AJ86: Brittany
A87: Ascension | B87: Gonzales | C87: 304.02 | D87: 22005030402 | F87: 0 | G87: 0 | H87: 71420210097 | I87: Louisiana | J87: 172100 | K87: 74600 | L87: 161200 | M87: 0.9366647298 | O87: 0 | P87: 51073 | Q87: 57611 | R87: 52923 | S87: 1.036222662 | U87: 0 | V87: 0.19 | W87: 0.167 | X87: 0.192 | Y87: 0.285 | AA87: 0 | AB87: 0 | AC87: 0 | AD87: 0 | AE87: 0 | AF87: NO | AG87: NO | AH87: 0 | AJ87: Gonzales
A88: Ascension | B88: Sorrento | C88: 305 | D88: 22005030500 | F88: 0 | G88: 0 | H88: 71420210098 | I88: Louisiana | J88: 172100 | K88: 117800 | L88: 165700 | M88: 0.9628123184 | O88: 0 | P88: 51073 | Q88: 64360 | R88: 61207 | S88: 1.198421867 | U88: 0 | V88: 0.19 | W88: 0.077 | X88: 0.07 | Y88: 0.285 | AA88: 0 | AB88: 0 | AC88: 0 | AD88: 0 | AE88: 0 | AF88: NO | AG88: NO | AH88: 0 | AJ88: Sorrento
A89: Ascension | B89: Gonzales | C89: 306 | D89: 22005030600 | F89: 0 | G89: 0 | H89: 71420210099 | I89: Louisiana | J89: 172100 | L89: 161200 | M89: 0.9366647298 | O89: 0 | P89: 51073 | Q89: 62135 | R89: 52923 | S89: 1.036222662 | U89: 0 | V89: 0.19 | W89: 0.168 | X89: 0.192 | Y89: 0.285 | AA89: 0 | AB89: 0 | AC89: 0 | AD89: 0 | AE89: 0 | AF89: NO | AG89: NO | AH89: 0 | AJ89: Gonzales
A90: Ascension | B90: Gonzales | C90: 303 | D90: 22005030300 | F90: 0 | G90: 0 | H90: 71420210101 | I90: Louisiana | J90: 172100 | K90: 118000 | L90: 161200 | M90: 0.9366647298 | O90: 0 | P90: 51073 | Q90: 103424 | R90: 52923 | S90: 1.036222662 | U90: 0 | V90: 0.19 | W90: 0.058 | X90: 0.192 | Y90: 0.285 | AA90: 0 | AB90: 0 | AC90: 0 | AD90: 0 | AE90: 0 | AF90: NO | AG90: NO | AH90: 0 | AJ90: Gonzales
A91: Ascension | B91: Gonzales | C91: 304.01 | D91: 22005030401 | F91: 0 | G91: 0 | H91: 71420210102 | I91: Louisiana | J91: 172100 | K91: 74600 | L91: 161200 | M91: 0.9366647298 | O91: 0 | P91: 51073 | Q91: 59010 | R91: 52923 | S91: 1.036222662 | U91: 0 | V91: 0.19 | W91: 0.115 | X91: 0.192 | Y91: 0.285 | AA91: 0 | AB91: 0 | AC91: 0 | AD91: 0 | AE91: 0 | AF91: NO | AG91: NO | AH91: 0 | AJ91: Gonzales
A92: Assumption | B92: Pierre Part | C92: 502 | D92: 22007050200 | F92: 0 | G92: 0 | H92: 71420210075 | I92: Louisiana | J92: 172100 | K92: 236500 | L92: 116000 | M92: 0.6740267286 | O92: 0 | P92: 51073 | Q92: 37039 | R92: 50069 | S92: 0.9803418636 | U92: 0 | V92: 0.19 | W92: 0.134 | X92: 0.16 | Y92: 0.285 | AA92: 0 | AB92: 0 | AC92: 0 | AD92: 0 | AE92: 0 | AF92: NO | AG92: NO | AH92: 0 | AJ92: Pierre Part
A93: Assumption | B93: Napoleonville | C93: 505 | D93: 22007050500 | F93: 0 | G93: 0 | H93: 71420210077 | I93: Louisiana | J93: 172100 | L93: 74600 | M93: 0.4334689134 | N93: TRUE | O93: 4 | P93: 51073 | Q93: 41844 | R93: 23750 | S93: 0.4650206567 | T93: TRUE | U93: 4 | V93: 0.19 | W93: 0.228 | X93: 0.3 | Y93: 0.285 | Z93: TRUE | AA93: 1 | AB93: 1 | AC93: 1 | AD93: 3 | AE93: 0 | AF93: NO | AG93: NO | AH93: 8 | AJ93: Napoleonville
A94: Assumption | B94: Supreme | C94: 505 | D94: 22007050500 | F94: 0 | G94: 0 | H94: 71420210078 | I94: Louisiana | J94: 172100 | K94: 161200 | L94: 0 | M94: 0 | N94: TRUE | O94: 4 | P94: 51073 | Q94: 41844 | R94: 43586 | S94: 0.8534059092 | U94: 0 | V94: 0.19 | W94: 0.228 | X94: 0.186 | Y94: 0.285 | AA94: 1 | AB94: 0 | AC94: 0 | AD94: 1 | AE94: 0 | AF94: NO | AG94: NO | AH94: 4 | AJ94: Supreme
A95: Assumption | B95: Bayou L'Ourse | C95: 506 | D95: 22007050600 | F95: 0 | G95: 0 | H95: 71420210079 | I95: Louisiana | J95: 172100 | K95: 236500 | L95: 86100 | M95: 0.5002905288 | O95: 0 | P95: 51073 | Q95: 37500 | R95: 23457 | S95: 0.4592837703 | T95: TRUE | U95: 4 | V95: 0.19 | W95: 0.297 | X95: 0.505 | Y95: 0.285 | Z95: TRUE | AA95: 0 | AB95: 1 | AC95: 1 | AD95: 2 | AE95: 0 | AF95: NO | AG95: NO | AH95: 4 | AJ95: Bayou L'Ourse
A96: Assumption | B96: Bayou L'Ourse | C96: 506 | D96: 22007050600 | F96: 0 | G96: 0 | H96: 71420210080 | I96: Louisiana | J96: 172100 | K96: 165700 | L96: 86100 | M96: 0.5002905288 | O96: 0 | P96: 51073 | Q96: 37500 | R96: 23457 | S96: 0.4592837703 | T96: TRUE | U96: 4 | V96: 0.19 | W96: 0.297 | X96: 0.505 | Y96: 0.285 | Z96: TRUE | AA96: 0 | AB96: 1 | AC96: 1 | AD96: 2 | AE96: 0 | AF96: NO | AG96: NO | AH96: 4 | AJ96: Bayou L'Ourse
A97: Assumption | B97: Pierre Part | C97: 501 | D97: 22007050100 | F97: 0 | G97: 0 | H97: 71420210090 | I97: Louisiana | J97: 172100 | K97: 113000 | L97: 116000 | M97: 0.6740267286 | O97: 0 | P97: 51073 | Q97: 39472 | R97: 50069 | S97: 0.9803418636 | U97: 0 | V97: 0.19 | W97: 0.162 | X97: 0.16 | Y97: 0.285 | AA97: 0 | AB97: 0 | AC97: 0 | AD97: 0 | AE97: 0 | AF97: NO | AG97: NO | AH97: 0 | AJ97: Pierre Part
A98: Assumption | B98: Belle Rose | C98: 503 | D98: 22007050300 | F98: 0 | G98: 0 | H98: 71420210091 | I98: Louisiana | J98: 172100 | K98: 113000 | L98: 169200 | M98: 0.9831493318 | O98: 0 | P98: 51073 | Q98: 52370 | R98: 41854 | S98: 0.8194936659 | U98: 0 | V98: 0.19 | W98: 0.15 | X98: 0.173 | Y98: 0.285 | AA98: 0 | AB98: 0 | AC98: 0 | AD98: 0 | AE98: 0 | AF98: NO | AG98: NO | AH98: 0 | AJ98: Belle Rose
A99: Assumption | B99: Napoleonville | C99: 503 | D99: 22007050300 | F99: 0 | G99: 0 | H99: 71420210092 | I99: Louisiana | J99: 172100 | K99: 169200 | L99: 74600 | M99: 0.4334689134 | N99: TRUE | O99: 4 | P99: 51073 | Q99: 52370 | R99: 23750 | S99: 0.4650206567 | T99: TRUE | U99: 4 | V99: 0.19 | W99: 0.15 | X99: 0.3 | Y99: 0.285 | Z99: TRUE | AA99: 1 | AB99: 1 | AC99: 1 | AD99: 3 | AE99: 0 | AF99: NO | AG99: NO | AH99: 8 | AJ99: Napoleonville
A100: Assumption | B100: Napoleonville | C100: 504 | D100: 22007050400 | F100: 0 | G100: 0 | H100: 71420210093 | I100: Louisiana | J100: 172100 | K100: 169200 | L100: 74600 | M100: 0.4334689134 | N100: TRUE | O100: 4 | P100: 51073 | Q100: 49967 | R100: 23750 | S100: 0.4650206567 | T100: TRUE | U100: 4 | V100: 0.19 | W100: 0.186 | X100: 0.3 | Y100: 0.285 | Z100: TRUE | AA100: 1 | AB100: 1 | AC100: 1 | AD100: 3 | AE100: =IF(Z100=TRUE, 4,0) -> 0 | AF100: NO | AG100: NO | AH100: 8 | AJ100: Napoleonville
A101: Assumption | B101: Belle Rose | C101: 501 | D101: 22007050100 | F101: 0 | G101: 0 | H101: 71420210100 | I101: Louisiana | J101: 172100 | K101: 74600 | L101: 169200 | M101: 0.9831493318 | O101: 0 | P101: 51073 | Q101: 39472 | R101: 41854 | S101: 0.8194936659 | U101: 0 | V101: 0.19 | W101: 0.162 | X101: 0.173 | Y101: 0.285 | AA101: 0 | AB101: 0 | AC101: 0 | AD101: 0 | AE101: 0 | AF101: NO | AG101: NO | AH101: 0 | AJ101: Belle Rose
A102: Assumption | B102: Paincourtville | C102: 503 | D102: 22007050300 | F102: 0 | G102: 0 | H102: 71420210103 | I102: Louisiana | J102: 172100 | K102: 0 | L102: 117800 | M102: 0.6844857641 | O102: 0 | P102: 51073 | Q102: 52370 | R102: 70682 | S102: 1.383940634 | U102: 0 | V102: 0.19 | W102: 0.15 | X102: 0 | Y102: 0.285 | AA102: 0 | AB102: 0 | AC102: 0 | AD102: 0 | AE102: 0 | AF102: NO | AG102: NO | AH102: 0 | AJ102: Paincourtville
A103: Assumption | B103: Labadieville | C103: 506 | D103: 22007050600 | F103: 0 | G103: 0 | H103: 71420210104 | I103: Louisiana | J103: 172100 | K103: 86100 | L103: 118000 | M103: 0.6856478791 | O103: 0 | P103: 51073 | Q103: 37500 | R103: 61250 | S103: 1.199263799 | U103: 0 | V103: 0.19 | W103: 0.297 | X103: 0.104 | Y103: 0.285 | AA103: 0 | AB103: 0 | AC103: 0 | AD103: 0 | AE103: 0 | AF103: NO | AG103: NO | AH103: 0 | AJ103: Labadieville
A104: Assumption | B104: Belle Rose | C104: 501 | D104: 22007050100 | F104: 0 | G104: 0 | H104: 71420210105 | I104: Louisiana | J104: 172100 | K104: 86100 | L104: 169200 | M104: 0.9831493318 | O104: 0 | P104: 51073 | Q104: 39472 | R104: 41854 | S104: 0.8194936659 | U104: 0 | V104: 0.19 | W104: 0.162 | X104: 0.173 | Y104: 0.285 | AA104: 0 | AB104: 0 | AC104: 0 | AD104: 0 | AE104: 0 | AF104: NO | AG104: NO | AH104: 0 | AJ104: Belle Rose
A105: Assumption | B105: Plattenville | C105: 503 | D105: 22007050300 | F105: 0 | G105: 0 | H105: 71420210106 | I105: Louisiana | J105: 172100 | K105: 118000 | M105: 0 | N105: TRUE | O105: 4 | P105: 51073 | Q105: 52370 | S105: 0 | T105: TRUE | U105: 4 | V105: 0.19 | W105: 0.15 | X105: 0 | Y105: 0.285 | AA105: 1 | AB105: 1 | AC105: 0 | AD105: 2 | AE105: 0 | AF105: NO | AG105: NO | AH105: 8 | AJ105: Plattenville
A106: Assumption | B106: Labadieville | C106: 505 | D106: 22007050500 | F106: 0 | G106: 0 | H106: 71420210107 | I106: Louisiana | J106: 172100 | K106: 73000 | L106: 118000 | M106: 0.6856478791 | O106: 0 | P106: 51073 | Q106: 41844 | R106: 61250 | S106: 1.199263799 | U106: 0 | V106: 0.19 | W106: 0.228 | X106: 0.104 | Y106: 0.285 | AA106: 0 | AB106: 0 | AC106: 0 | AD106: 0 | AE106: 0 | AF106: NO | AG106: NO | AH106: 0 | AJ106: Labadieville
A107: Avoyelles | B107: Bordelonville | C107: 301 | D107: 22009030100 | F107: 0 | G107: 0 | H107: 71420210081 | I107: Louisiana | J107: 172100 | K107: 161200 | L107: 73000 | M107: 0.424171993 | N107: TRUE | O107: 4 | P107: 51073 | Q107: 43875 | R107: 38106 | S107: 0.7461085113 | U107: 0 | V107: 0.19 | W107: 0.129 | X107: 0.074 | Y107: 0.285 | AA107: 1 | AB107: 0 | AC107: 0 | AD107: 1 | AE107: 0 | AF107: NO | AG107: NO | AH107: 4 | AJ107: Bordelonville
A108: Avoyelles | B108: Mansura | C108: 301 | D108: 22009030100 | F108: 0 | G108: 0 | H108: 71420210108 | I108: Louisiana | J108: 172100 | K108: 105800 | L108: 105800 | M108: 0.6147588611 | O108: 0 | P108: 51073 | Q108: 43875 | R108: 17316 | S108: 0.3390441133 | T108: TRUE | U108: 4 | V108: 0.19 | W108: 0.129 | X108: 0.492 | Y108: 0.285 | Z108: TRUE | AA108: 0 | AB108: 1 | AC108: 1 | AD108: 2 | AE108: 0 | AF108: NO | AG108: NO | AH108: 4 | AJ108: Mansura
A109: Avoyelles | B109: Center Point | C109: 302 | D109: 22009030200 | F109: 0 | G109: 0 | H109: 71420210109 | I109: Louisiana | J109: 172100 | K109: 102600 | L109: 136400 | M109: 0.7925624637 | O109: 0 | P109: 51073 | Q109: 42833 | R109: 56167 | S109: 1.099739588 | U109: 0 | V109: 0.19 | W109: 0.157 | X109: 0.252 | Y109: 0.285 | AA109: 0 | AB109: 0 | AC109: 0 | AD109: 0 | AE109: 0 | AF109: NO | AG109: NO | AH109: 0 | AJ109: Center Point
A110: Avoyelles | B110: Marksville | C110: 303 | D110: 22009030300 | F110: 0 | G110: 0 | H110: 71420210110 | I110: Louisiana | J110: 172100 | K110: 122700 | L110: 102600 | M110: 0.5961650203 | O110: 0 | P110: 51073 | Q110: 46656 | R110: 25653 | S110: 0.5022810487 | T110: TRUE | U110: 4 | V110: 0.19 | W110: 0.228 | X110: 0.417 | Y110: 0.285 | Z110: TRUE | AA110: 0 | AB110: 1 | AC110: 1 | AD110: 2 | AE110: 0 | AF110: NO | AG110: NO | AH110: 4 | AJ110: Marksville
A111: Avoyelles | B111: Marksville | C111: 304 | D111: 22009030400 | E111: TRUE | F111: 1 | G111: 4 | H111: 71420210111 | I111: Louisiana | J111: 172100 | K111: 136400 | L111: 102600 | M111: 0.5961650203 | O111: 0 | P111: 51073 | Q111: 28049 | R111: 25653 | S111: 0.5022810487 | T111: TRUE | U111: 4 | V111: 0.19 | W111: 0.405 | X111: 0.417 | Y111: 0.285 | Z111: TRUE | AA111: 0 | AB111: 1 | AC111: 1 | AD111: 2 | AE111: 0 | AF111: YES | AG111: YES | AH111: 8 | AI111: 1 | AJ111: Marksville
A112: Avoyelles | B112: Center Point | C112: 302 | D112: 22009030200 | F112: 0 | G112: 0 | H112: 71420210112 | I112: Louisiana | J112: 172100 | K112: 136400 | L112: 136400 | M112: 0.7925624637 | O112: 0 | P112: 51073 | Q112: 42833 | R112: 56167 | S112: 1.099739588 | U112: 0 | V112: 0.19 | W112: 0.157 | X112: 0.252 | Y112: 0.285 | AA112: 0 | AB112: 0 | AC112: 0 | AD112: 0 | AE112: 0 | AF112: NO | AG112: NO | AH112: 0 | AJ112: Center Point
A113: Avoyelles | B113: Hessmer | C113: 303 | D113: 22009030300 | F113: 0 | G113: 0 | H113: 71420210113 | I113: Louisiana | J113: 172100 | K113: 136400 | L113: 153300 | M113: 0.8907611854 | O113: 0 | P113: 51073 | Q113: 46656 | R113: 31917 | S113: 0.6249290232 | T113: TRUE | U113: 4 | V113: 0.19 | W113: 0.228 | X113: 0.312 | Y113: 0.285 | Z113: TRUE | AA113: 0 | AB113: 1 | AC113: 1 | AD113: 2 | AE113: 0 | AF113: NO | AG113: NO | AH113: 4 | AJ113: Hessmer
A114: Avoyelles | B114: Mansura | C114: 304 | D114: 22009030400 | E114: TRUE | F114: 1 | G114: 4 | H114: 71420210114 | I114: Louisiana | J114: 172100 | L114: 105800 | M114: 0.6147588611 | O114: 0 | P114: 51073 | Q114: 28049 | R114: 17316 | S114: 0.3390441133 | T114: TRUE | U114: 4 | V114: 0.19 | W114: 0.405 | X114: 0.492 | Y114: 0.285 | Z114: TRUE | AA114: 0 | AB114: 1 | AC114: 1 | AD114: 2 | AE114: 0 | AF114: YES | AG114: YES | AH114: 8 | AI114: 1 | AJ114: Mansura
A115: Avoyelles | B115: Center Point | C115: 302 | D115: 22009030200 | F115: 0 | G115: 0 | H115: 71420210115 | I115: Louisiana | J115: 172100 | K115: 153300 | L115: 136400 | M115: 0.7925624637 | O115: 0 | P115: 51073 | Q115: 42833 | R115: 56167 | S115: 1.099739588 | U115: 0 | V115: 0.19 | W115: 0.157 | X115: 0.252 | Y115: 0.285 | AA115: 0 | AB115: 0 | AC115: 0 | AD115: 0 | AE115: 0 | AF115: NO | AG115: NO | AH115: 0 | AJ115: Center Point
A116: Avoyelles | B116: Marksville | C116: 301 | D116: 22009030100 | F116: 0 | G116: 0 | H116: 71420210116 | I116: Louisiana | J116: 172100 | K116: 102600 | L116: 102600 | M116: 0.5961650203 | O116: 0 | P116: 51073 | Q116: 43875 | R116: 25653 | S116: 0.5022810487 | T116: TRUE | U116: 4 | V116: 0.19 | W116: 0.129 | X116: 0.417 | Y116: 0.285 | Z116: TRUE | AA116: 0 | AB116: 1 | AC116: 1 | AD116: 2 | AE116: 0 | AF116: NO | AG116: NO | AH116: 4 | AJ116: Marksville
A117: Avoyelles | B117: Moreauville | C117: 301 | D117: 22009030100 | F117: 0 | G117: 0 | H117: 71420210117 | I117: Louisiana | J117: 172100 | K117: 105800 | L117: 122700 | M117: 0.7129575828 | O117: 0 | P117: 51073 | Q117: 43875 | R117: 27875 | S117: 0.5457874023 | T117: TRUE | U117: 4 | V117: 0.19 | W117: 0.129 | X117: 0.287 | Y117: 0.285 | Z117: TRUE | AA117: 0 | AB117: 1 | AC117: 1 | AD117: 2 | AE117: 0 | AF117: NO | AG117: NO | AH117: 4 | AJ117: Moreauville
A118: Avoyelles | B118: Bunkie | C118: 305 | D118: 22009030500 | F118: 0 | G118: 0 | H118: 71420210118 | I118: Louisiana | J118: 172100 | K118: 102600 | L118: 89800 | M118: 0.5217896572 | O118: 0 | P118: 51073 | Q118: 36875 | R118: 28465 | S118: 0.5573394944 | T118: TRUE | U118: 4 | V118: 0.19 | W118: 0.209 | X118: 0.119 | Y118: 0.285 | AA118: 0 | AB118: 1 | AC118: 0 | AD118: 1 | AE118: 0 | AF118: NO | AG118: NO | AH118: 4 | AJ118: Bunkie
A119: Avoyelles | B119: Effie | C119: 302 | D119: 22009030200 | F119: 0 | G119: 0 | H119: 71420210119 | I119: Louisiana | J119: 172100 | K119: 89800 | M119: 0 | N119: TRUE | O119: 4 | P119: 51073 | Q119: 42833 | S119: 0 | T119: TRUE | U119: 4 | V119: 0.19 | W119: 0.157 | X119: 0 | Y119: 0.285 | AA119: 1 | AB119: 1 | AC119: 0 | AD119: 2 | AE119: 0 | AF119: NO | AG119: NO | AH119: 8 | AJ119: Effie
A120: Avoyelles | B120: Hessmer | C120: 305 | D120: 22009030500 | F120: 0 | G120: 0 | H120: 71420210120 | I120: Louisiana | J120: 172100 | K120: 153300 | L120: 153300 | M120: 0.8907611854 | O120: 0 | P120: 51073 | Q120: 36875 | R120: 31917 | S120: 0.6249290232 | T120: TRUE | U120: 4 | V120: 0.19 | W120: 0.209 | X120: 0.312 | Y120: 0.285 | Z120: TRUE | AA120: 0 | AB120: 1 | AC120: 1 | AD120: 2 | AE120: 0 | AF120: NO | AG120: NO | AH120: 4 | AJ120: Hessmer
A121: Avoyelles | B121: Cottonport | C121: 308 | D121: 22009030800 | F121: 0 | G121: 0 | H121: 71420210121 | I121: Louisiana | J121: 172100 | K121: 105800 | L121: 98000 | M121: 0.5694363742 | O121: 0 | P121: 51073 | Q121: 43047 | R121: 18986 | S121: 0.3717424079 | T121: TRUE | U121: 4 | V121: 0.19 | W121: 0.122 | X121: 0.459 | Y121: 0.285 | Z121: TRUE | AA121: 0 | AB121: 1 | AC121: 1 | AD121: 2 | AE121: 0 | AF121: NO | AG121: NO | AH121: 4 | AJ121: Cottonport
A122: Avoyelles | B122: Plaucheville | C122: 308 | D122: 22009030800 | F122: 0 | G122: 0 | H122: 71420210122 | I122: Louisiana | J122: 172100 | K122: 89800 | L122: 142500 | M122: 0.8280069727 | O122: 0 | P122: 51073 | Q122: 43047 | R122: 31500 | S122: 0.6167642394 | T122: TRUE | U122: 4 | V122: 0.19 | W122: 0.122 | X122: 0.217 | Y122: 0.285 | AA122: 0 | AB122: 1 | AC122: 0 | AD122: 1 | AE122: 0 | AF122: NO | AG122: NO | AH122: 4 | AJ122: Plaucheville
A123: Avoyelles | B123: Plaucheville | C123: 308 | D123: 22009030800 | F123: 0 | G123: 0 | H123: 71420210123 | I123: Louisiana | J123: 172100 | K123: 89800 | L123: 142500 | M123: 0.8280069727 | O123: 0 | P123: 51073 | Q123: 43047 | R123: 31500 | S123: 0.6167642394 | T123: TRUE | U123: 4 | V123: 0.19 | W123: 0.122 | X123: 0.217 | Y123: 0.285 | AA123: 0 | AB123: 1 | AC123: 0 | AD123: 1 | AE123: 0 | AF123: NO | AG123: NO | AH123: 4 | AJ123: Plaucheville
A124: Avoyelles | B124: Bunkie | C124: 307 | D124: 22009030700 | F124: 0 | G124: 0 | H124: 71420210126 | I124: Louisiana | J124: 172100 | K124: 85000 | L124: 89800 | M124: 0.5217896572 | O124: 0 | P124: 51073 | Q124: 42230 | R124: 28465 | S124: 0.5573394944 | T124: TRUE | U124: 4 | V124: 0.19 | W124: 0.282 | X124: 0.119 | Y124: 0.285 | AA124: 0 | AB124: 1 | AC124: 0 | AD124: 1 | AE124: 0 | AF124: NO | AG124: NO | AH124: 4 | AJ124: Bunkie
A125: Avoyelles | B125: Hamburg | C125: 309 | D125: 22009030900 | E125: TRUE | F125: 1 | G125: 4 | H125: 71420210128 | I125: Louisiana | J125: 172100 | K125: 122700 | M125: 0 | N125: TRUE | O125: 4 | P125: 51073 | Q125: 26582 | S125: 0 | T125: TRUE | U125: 4 | V125: 0.19 | W125: 0.44 | X125: 0 | Y125: 0.285 | AA125: 1 | AB125: 1 | AC125: 0 | AD125: 2 | AE125: 0 | AF125: YES | AG125: YES | AH125: 12 | AI125: 1 | AJ125: Hamburg
A126: Avoyelles | B126: Cottonport | C126: 307 | D126: 22009030700 | F126: 0 | G126: 0 | H126: 71420210131 | I126: Louisiana | J126: 172100 | L126: 98000 | M126: 0.5694363742 | O126: 0 | P126: 51073 | Q126: 42230 | R126: 18986 | S126: 0.3717424079 | T126: TRUE | U126: 4 | V126: 0.19 | W126: 0.282 | X126: 0.459 | Y126: 0.285 | Z126: TRUE | AA126: 0 | AB126: 1 | AC126: 1 | AD126: 2 | AE126: 0 | AF126: NO | AG126: NO | AH126: 4 | AJ126: Cottonport
A127: Avoyelles | B127: Moreauville | C127: 309 | D127: 22009030900 | E127: TRUE | F127: 1 | G127: 4 | H127: 71420210132 | I127: Louisiana | J127: 172100 | K127: 85000 | L127: 122700 | M127: 0.7129575828 | O127: 0 | P127: 51073 | Q127: 26582 | R127: 27875 | S127: 0.5457874023 | T127: TRUE | U127: 4 | V127: 0.19 | W127: 0.44 | X127: 0.287 | Y127: 0.285 | Z127: TRUE | AA127: 0 | AB127: 1 | AC127: 1 | AD127: 2 | AE127: 0 | AF127: YES | AG127: YES | AH127: 8 | AI127: 1 | AJ127: Moreauville
A128: Avoyelles | B128: Evergreen | C128: 307 | D128: 22009030700 | F128: 0 | G128: 0 | H128: 71420210135 | I128: Louisiana | J128: 172100 | L128: 85000 | M128: 0.493898896 | N128: TRUE | O128: 4 | P128: 51073 | Q128: 42230 | R128: 28295 | S128: 0.5540109255 | T128: TRUE | U128: 4 | V128: 0.19 | W128: 0.282 | X128: 0.309 | Y128: 0.285 | Z128: TRUE | AA128: 1 | AB128: 1 | AC128: 1 | AD128: 3 | AE128: 0 | AF128: NO | AG128: NO | AH128: 8 | AJ128: Evergreen
A129: Avoyelles | B129: Dupont | C129: 308 | D129: 22009030800 | F129: 0 | G129: 0 | H129: 71420210136 | I129: Louisiana | J129: 172100 | K129: 122700 | M129: 0 | N129: TRUE | O129: 4 | P129: 51073 | Q129: 43047 | S129: 0 | T129: TRUE | U129: 4 | V129: 0.19 | W129: 0.122 | X129: 0 | Y129: 0.285 | AA129: 1 | AB129: 1 | AC129: 0 | AD129: 2 | AE129: 0 | AF129: NO | AG129: NO | AH129: 8 | AJ129: Dupont
A130: Avoyelles | B130: Mansura | C130: 305 | D130: 22009030500 | F130: 0 | G130: 0 | H130: 71420210137 | I130: Louisiana | J130: 172100 | K130: 142500 | L130: 105800 | M130: 0.6147588611 | O130: 0 | P130: 51073 | Q130: 36875 | R130: 17316 | S130: 0.3390441133 | T130: TRUE | U130: 4 | V130: 0.19 | W130: 0.209 | X130: 0.492 | Y130: 0.285 | Z130: TRUE | AA130: 0 | AB130: 1 | AC130: 1 | AD130: 2 | AE130: 0 | AF130: NO | AG130: NO | AH130: 4 | AJ130: Mansura
A131: Avoyelles | B131: Moreauville | C131: 307 | D131: 22009030700 | F131: 0 | G131: 0 | H131: 71420210138 | I131: Louisiana | J131: 172100 | K131: 52800 | L131: 122700 | M131: 0.7129575828 | O131: 0 | P131: 51073 | Q131: 42230 | R131: 27875 | S131: 0.5457874023 | T131: TRUE | U131: 4 | V131: 0.19 | W131: 0.282 | X131: 0.287 | Y131: 0.285 | Z131: TRUE | AA131: 0 | AB131: 1 | AC131: 1 | AD131: 2 | AE131: 0 | AF131: NO | AG131: NO | AH131: 4 | AJ131: Moreauville
A132: Avoyelles | B132: Evergreen | C132: 308 | D132: 22009030800 | F132: =IF(E132=TRUE,1,0) -> 0 | G132: =IF(E132=TRUE,4,0) -> 0 | H132: 71420210139 | I132: Louisiana | J132: 172100 | K132: 52800 | L132: 85000 | M132: =+L132/J132 -> 0.493898896 | N132: =IF(M132<=50%,TRUE,"") -> TRUE | O132: =IF(N132=TRUE,4,0) -> 4 | P132: 51073 | Q132: 43047 | R132: 28295 | S132: =+R132/P132 -> 0.5540109255 | T132: =IF(S132<=65%,TRUE,"") -> TRUE | U132: =IF(T132=TRUE, 4,0) -> 4 | V132: 0.19 | W132: 0.122 | X132: 0.309 | Y132: 0.285 | Z132: =IF(X132>Y132,"TRUE", "") -> TRUE | AA132: =IF(N132=TRUE,1,0) -> 1 | AB132: =IF(T132=TRUE,1,0) -> 1 | AC132: =IF(Z132="TRUE",1,0) -> 1 | AD132: =SUM(AA132:AC132) -> 3 | AE132: =IF(Z132=TRUE, 4,0) -> 0 | AF132: =IF(AND(E132=TRUE,AD132>1),"YES","NO") -> NO | AG132: =IF(AND(F132=1,AD132>1), "YES","NO") -> NO | AH132: =+G132+O132+U132+AE132 -> 8 | AI132: =IF(AG132="YES",1,"") ->  | AJ132: =+B132 -> Evergreen
A133: Avoyelles | B133: Plaucheville | C133: 309 | D133: 22009030900 | E133: TRUE | F133: 1 | G133: 4 | H133: 71420210140 | I133: Louisiana | J133: 172100 | K133: 144500 | L133: 142500 | M133: 0.8280069727 | O133: 0 | P133: 51073 | Q133: 26582 | R133: 31500 | S133: 0.6167642394 | T133: TRUE | U133: 4 | V133: 0.19 | W133: 0.44 | X133: 0.217 | Y133: 0.285 | AA133: 0 | AB133: 1 | AC133: 0 | AD133: 1 | AE133: 0 | AF133: NO | AG133: NO | AH133: 8 | AJ133: Plaucheville
A134: Avoyelles | B134: Bunkie | C134: 306 | D134: 22009030600 | F134: 0 | G134: 0 | H134: 71420210141 | I134: Louisiana | J134: 172100 | L134: 89800 | M134: 0.5217896572 | O134: 0 | P134: 51073 | Q134: 33646 | R134: 28465 | S134: 0.5573394944 | T134: TRUE | U134: 4 | V134: 0.19 | W134: 0.107 | X134: 0.119 | Y134: 0.285 | AA134: 0 | AB134: 1 | AC134: 0 | AD134: 1 | AE134: 0 | AF134: NO | AG134: NO | AH134: 4 | AJ134: Bunkie
A135: Avoyelles | B135: Mansura | C135: 307 | D135: 22009030700 | F135: 0 | G135: 0 | H135: 71420210142 | I135: Louisiana | J135: 172100 | K135: 0 | L135: 105800 | M135: 0.6147588611 | O135: 0 | P135: 51073 | Q135: 42230 | R135: 17316 | S135: 0.3390441133 | T135: TRUE | U135: 4 | V135: 0.19 | W135: 0.282 | X135: 0.492 | Y135: 0.285 | Z135: TRUE | AA135: 0 | AB135: 1 | AC135: 1 | AD135: 2 | AE135: 0 | AF135: NO | AG135: NO | AH135: 4 | AJ135: Mansura
A136: Avoyelles | B136: Plaucheville | C136: 307 | D136: 22009030700 | F136: 0 | G136: 0 | H136: 71420210143 | I136: Louisiana | J136: 172100 | L136: 142500 | M136: 0.8280069727 | O136: 0 | P136: 51073 | Q136: 42230 | R136: 31500 | S136: 0.6167642394 | T136: TRUE | U136: 4 | V136: 0.19 | W136: 0.282 | X136: 0.217 | Y136: 0.285 | AA136: 0 | AB136: 1 | AC136: 0 | AD136: 1 | AE136: 0 | AF136: NO | AG136: NO | AH136: 4 | AJ136: Plaucheville
A137: Avoyelles | B137: Bunkie | C137: 306 | D137: 22009030600 | F137: 0 | G137: 0 | H137: 71420210145 | I137: Louisiana | J137: 172100 | K137: 144500 | L137: 89800 | M137: 0.5217896572 | O137: 0 | P137: 51073 | Q137: 33646 | R137: 28465 | S137: 0.5573394944 | T137: TRUE | U137: 4 | V137: 0.19 | W137: 0.107 | X137: 0.119 | Y137: 0.285 | AA137: 0 | AB137: 1 | AC137: 0 | AD137: 1 | AE137: 0 | AF137: NO | AG137: NO | AH137: 4 | AJ137: Bunkie
A138: Avoyelles | B138: Simmesport | C138: 309 | D138: 22009030900 | E138: TRUE | F138: 1 | G138: 4 | H138: 71420210146 | I138: Louisiana | J138: 172100 | K138: 63300 | L138: 52800 | M138: 0.306798373 | N138: TRUE | O138: 4 | P138: 51073 | Q138: 26582 | R138: 17120 | S138: 0.3352064692 | T138: TRUE | U138: 4 | V138: 0.19 | W138: 0.44 | X138: 0.599 | Y138: 0.285 | Z138: TRUE | AA138: 1 | AB138: 1 | AC138: 1 | AD138: 3 | AE138: 0 | AF138: YES | AG138: YES | AH138: 12 | AI138: 1 | AJ138: Simmesport
A139: Avoyelles | B139: Simmesport | C139: 309 | D139: 22009030900 | E139: TRUE | F139: 1 | G139: 4 | H139: 71420210148 | I139: Louisiana | J139: 172100 | K139: 144500 | L139: 52800 | M139: 0.306798373 | N139: TRUE | O139: 4 | P139: 51073 | Q139: 26582 | R139: 17120 | S139: 0.3352064692 | T139: TRUE | U139: 4 | V139: 0.19 | W139: 0.44 | X139: 0.599 | Y139: 0.285 | Z139: TRUE | AA139: 1 | AB139: 1 | AC139: 1 | AD139: 3 | AE139: 0 | AF139: YES | AG139: YES | AH139: 12 | AI139: 1 | AJ139: Simmesport
A140: Beauregard | B140: DeRidder | C140: 9605 | D140: 22011960500 | F140: 0 | G140: 0 | H140: 71420210124 | I140: Louisiana | J140: 172100 | K140: 89800 | L140: 144500 | M140: 0.8396281232 | O140: 0 | P140: 51073 | Q140: 56705 | R140: 45536 | S140: 0.8915865526 | U140: 0 | V140: 0.19 | W140: 0.159 | X140: 0.216 | Y140: 0.285 | AA140: 0 | AB140: 0 | AC140: 0 | AD140: 0 | AE140: 0 | AF140: NO | AG140: NO | AH140: 0 | AJ140: DeRidder
A141: Beauregard | B141: Merryville | C141: 9606 | D141: 22011960600 | F141: 0 | G141: 0 | H141: 71420210125 | I141: Louisiana | J141: 172100 | K141: 98000 | L141: 63300 | M141: 0.3678094131 | N141: TRUE | O141: 4 | P141: 51073 | Q141: 50648 | R141: 0 | S141: 0 | T141: TRUE | U141: 4 | V141: 0.19 | W141: 0.169 | X141: 0.296 | Y141: 0.285 | Z141: TRUE | AA141: 1 | AB141: 1 | AC141: 1 | AD141: 3 | AE141: 0 | AF141: NO | AG141: NO | AH141: 8 | AJ141: Merryville
A142: Beauregard | B142: DeRidder | C142: 9604 | D142: 22011960400 | F142: 0 | G142: 0 | H142: 71420210127 | I142: Louisiana | J142: 172100 | K142: 105800 | L142: 144500 | M142: 0.8396281232 | O142: 0 | P142: 51073 | Q142: 51650 | R142: 45536 | S142: 0.8915865526 | U142: 0 | V142: 0.19 | W142: 0.178 | X142: 0.216 | Y142: 0.285 | AA142: 0 | AB142: 0 | AC142: 0 | AD142: 0 | AE142: 0 | AF142: NO | AG142: NO | AH142: 0 | AJ142: DeRidder
A143: Beauregard | B143: DeRidder | C143: 9601 | D143: 22011960100 | F143: 0 | G143: 0 | H143: 71420210129 | I143: Louisiana | J143: 172100 | K143: 142500 | L143: 144500 | M143: 0.8396281232 | O143: 0 | P143: 51073 | Q143: 52602 | R143: 45536 | S143: 0.8915865526 | U143: 0 | V143: 0.19 | W143: 0.137 | X143: 0.216 | Y143: 0.285 | AA143: 0 | AB143: 0 | AC143: 0 | AD143: 0 | AE143: 0 | AF143: NO | AG143: NO | AH143: 0 | AJ143: DeRidder
A144: Beauregard | B144: Dry Creek | C144: 9601 | D144: 22011960100 | F144: 0 | G144: 0 | H144: 71420210130 | I144: Louisiana | J144: 172100 | K144: 98000 | M144: 0 | N144: TRUE | O144: 4 | P144: 51073 | Q144: 52602 | S144: 0 | T144: TRUE | U144: 4 | V144: 0.19 | W144: 0.137 | X144: 0 | Y144: 0.285 | AA144: 1 | AB144: 1 | AC144: 0 | AD144: 2 | AE144: 0 | AF144: NO | AG144: NO | AH144: 8 | AJ144: Dry Creek
A145: Beauregard | B145: Longville | C145: 9601 | D145: 22011960100 | F145: 0 | G145: 0 | H145: 71420210133 | I145: Louisiana | J145: 172100 | K145: 142500 | L145: 0 | M145: 0 | N145: TRUE | O145: 4 | P145: 51073 | Q145: 52602 | R145: 0 | S145: 0 | T145: TRUE | U145: 4 | V145: 0.19 | W145: 0.137 | X145: 0.165 | Y145: 0.285 | AA145: 1 | AB145: 1 | AC145: 0 | AD145: 2 | AE145: 0 | AF145: NO | AG145: NO | AH145: 8 | AJ145: Longville
A146: Beauregard | B146: Sugartown | C146: 9601 | D146: 22011960100 | F146: 0 | G146: 0 | H146: 71420210134 | I146: Louisiana | J146: 172100 | K146: 142500 | L146: 0 | M146: 0 | N146: TRUE | O146: 4 | P146: 51073 | Q146: 52602 | R146: 0 | S146: 0 | T146: TRUE | U146: 4 | V146: 0.19 | W146: 0.137 | X146: 0 | Y146: 0.285 | AA146: 1 | AB146: 1 | AC146: 0 | AD146: 2 | AE146: 0 | AF146: NO | AG146: NO | AH146: 8 | AJ146: Sugartown
A147: Beauregard | B147: DeRidder | C147: 9606 | D147: 22011960600 | F147: 0 | G147: 0 | H147: 71420210144 | I147: Louisiana | J147: 172100 | K147: 0 | L147: 144500 | M147: 0.8396281232 | O147: 0 | P147: 51073 | Q147: 50648 | R147: 45536 | S147: 0.8915865526 | U147: 0 | V147: 0.19 | W147: 0.169 | X147: 0.216 | Y147: 0.285 | AA147: 0 | AB147: 0 | AC147: 0 | AD147: 0 | AE147: 0 | AF147: NO | AG147: NO | AH147: 0 | AJ147: DeRidder
A148: Beauregard | B148: DeRidder | C148: 9602 | D148: 22011960200 | F148: 0 | G148: 0 | H148: 71420210147 | I148: Louisiana | J148: 172100 | K148: 144500 | L148: 144500 | M148: 0.8396281232 | O148: 0 | P148: 51073 | Q148: 65511 | R148: 45536 | S148: 0.8915865526 | U148: 0 | V148: 0.19 | W148: 0.118 | X148: 0.216 | Y148: 0.285 | AA148: 0 | AB148: 0 | AC148: 0 | AD148: 0 | AE148: 0 | AF148: NO | AG148: NO | AH148: 0 | AJ148: DeRidder
A149: Beauregard | B149: Ragley | C149: 9601 | D149: 22011960100 | F149: 0 | G149: 0 | H149: 71420210149 | I149: Louisiana | J149: 172100 | K149: 144500 | M149: 0 | N149: TRUE | O149: 4 | P149: 51073 | Q149: 52602 | S149: 0 | T149: TRUE | U149: 4 | V149: 0.19 | W149: 0.137 | X149: 0 | Y149: =+V149*1.5 -> 0.285 | AA149: 1 | AB149: 1 | AC149: 0 | AD149: 2 | AE149: 0 | AF149: NO | AG149: NO | AH149: 8 | AJ149: Ragley
A150: Beauregard | B150: Merryville | C150: 9602 | D150: 22011960200 | F150: 0 | G150: 0 | H150: 71420210150 | I150: Louisiana | J150: 172100 | K150: 144500 | L150: 63300 | M150: 0.3678094131 | N150: TRUE | O150: 4 | P150: 51073 | Q150: 65511 | R150: 0 | S150: 0 | T150: TRUE | U150: 4 | V150: 0.19 | W150: 0.118 | X150: 0.296 | Y150: 0.285 | Z150: TRUE | AA150: 1 | AB150: 1 | AC150: 1 | AD150: 3 | AE150: 0 | AF150: NO | AG150: NO | AH150: 8 | AJ150: Merryville
A151: Beauregard | B151: Merryville | C151: 9606 | D151: 22011960600 | F151: 0 | G151: 0 | H151: 71420210151 | I151: Louisiana | J151: 172100 | K151: 63300 | L151: 63300 | M151: 0.3678094131 | N151: TRUE | O151: 4 | P151: 51073 | Q151: 50648 | R151: 0 | S151: 0 | T151: TRUE | U151: 4 | V151: 0.19 | W151: 0.169 | X151: 0.296 | Y151: 0.285 | Z151: TRUE | AA151: 1 | AB151: 1 | AC151: 1 | AD151: 3 | AE151: 0 | AF151: NO | AG151: NO | AH151: 8 | AJ151: Merryville
A152: Beauregard | B152: DeRidder | C152: 9603 | D152: 22011960300 | F152: 0 | G152: 0 | H152: 71420210152 | I152: Louisiana | J152: 172100 | K152: 63300 | L152: 144500 | M152: 0.8396281232 | O152: 0 | P152: 51073 | Q152: 43321 | R152: 45536 | S152: 0.8915865526 | U152: 0 | V152: 0.19 | W152: 0.229 | X152: 0.216 | Y152: 0.285 | AA152: 0 | AB152: 0 | AC152: 0 | AD152: 0 | AE152: 0 | AF152: NO | AG152: NO | AH152: 0 | AJ152: DeRidder
A153: Beauregard | B153: Oretta | C153: 9607 | D153: 22011960700 | F153: 0 | G153: 0 | H153: 71420210153 | I153: Louisiana | J153: 172100 | K153: 62600 | L153: 62200 | M153: 0.3614177804 | N153: TRUE | O153: 4 | P153: 51073 | Q153: 55893 | R153: 43140 | S153: 0.8446733108 | U153: 0 | V153: 0.19 | W153: 0.137 | X153: 0.105 | Y153: 0.285 | AA153: 1 | AB153: 0 | AC153: 0 | AD153: 1 | AE153: 0 | AF153: NO | AG153: NO | AH153: 4 | AJ153: Oretta
A154: Beauregard | B154: Singer | C154: 9606 | D154: 22011960600 | F154: 0 | G154: 0 | H154: 71420210163 | I154: Louisiana | J154: 172100 | K154: 59400 | L154: 62600 | M154: 0.3637420105 | N154: TRUE | O154: 4 | P154: 51073 | Q154: 50648 | R154: 0 | S154: 0 | T154: TRUE | U154: 4 | V154: 0.19 | W154: 0.169 | X154: 0.338 | Y154: 0.285 | Z154: TRUE | AA154: 1 | AB154: 1 | AC154: 1 | AD154: 3 | AE154: 0 | AF154: NO | AG154: NO | AH154: 8 | AJ154: Singer
A155: Beauregard | B155: Ragley | C155: 9607 | D155: 22011960700 | F155: 0 | G155: 0 | H155: 71420210164 | I155: Louisiana | J155: 172100 | K155: 266700 | M155: 0 | N155: TRUE | O155: 4 | P155: 51073 | Q155: 55893 | S155: 0 | T155: TRUE | U155: 4 | V155: 0.19 | W155: 0.137 | X155: 0 | Y155: 0.285 | AA155: 1 | AB155: 1 | AC155: 0 | AD155: 2 | AE155: 0 | AF155: NO | AG155: NO | AH155: 8 | AJ155: Ragley
A156: Beauregard | B156: Singer | C156: 9607 | D156: 22011960700 | F156: 0 | G156: 0 | H156: 71420210165 | I156: Louisiana | J156: 172100 | L156: 62600 | M156: 0.3637420105 | N156: TRUE | O156: 4 | P156: 51073 | Q156: 55893 | R156: 0 | S156: 0 | T156: TRUE | U156: 4 | V156: 0.19 | W156: 0.137 | X156: 0.338 | Y156: 0.285 | Z156: TRUE | AA156: 1 | AB156: 1 | AC156: 1 | AD156: 3 | AE156: 0 | AF156: NO | AG156: NO | AH156: 8 | AJ156: Singer
A157: Beauregard | B157: DeRidder | C157: 9607 | D157: 22011960700 | F157: 0 | G157: 0 | H157: 71420210169 | I157: Louisiana | J157: 172100 | K157: 0 | L157: 144500 | M157: 0.8396281232 | O157: 0 | P157: 51073 | Q157: 55893 | R157: 45536 | S157: 0.8915865526 | U157: 0 | V157: 0.19 | W157: 0.137 | X157: 0.216 | Y157: 0.285 | AA157: 0 | AB157: 0 | AC157: 0 | AD157: 0 | AE157: 0 | AF157: NO | AG157: NO | AH157: 0 | AJ157: DeRidder
A158: Beauregard | B158: Longville | C158: 9607 | D158: 22011960700 | F158: 0 | G158: 0 | H158: 71420210176 | I158: Louisiana | J158: 172100 | K158: 88000 | L158: 0 | M158: 0 | N158: TRUE | O158: 4 | P158: 51073 | Q158: 55893 | R158: 0 | S158: 0 | T158: TRUE | U158: 4 | V158: 0.19 | W158: 0.137 | X158: 0.165 | Y158: 0.285 | AA158: 1 | AB158: 1 | AC158: 0 | AD158: 2 | AE158: 0 | AF158: NO | AG158: NO | AH158: 8 | AJ158: Longville
A159: Bienville | B159: Arcadia | C159: 9702 | D159: 22013970200 | E159: TRUE | F159: 1 | G159: 4 | H159: 71420210154 | I159: Louisiana | J159: 172100 | K159: 144500 | L159: 83300 | M159: 0.4840209181 | N159: TRUE | O159: 4 | P159: 51073 | Q159: 27740 | R159: 23494 | S159: 0.4600082235 | T159: TRUE | U159: 4 | V159: 0.19 | W159: 0.313 | X159: 0.419 | Y159: 0.285 | Z159: TRUE | AA159: 1 | AB159: 1 | AC159: 1 | AD159: 3 | AE159: 0 | AF159: YES | AG159: YES | AH159: 12 | AI159: 1 | AJ159: Arcadia
A160: Bienville | B160: Gibsland | C160: 9702 | D160: 22013970200 | E160: TRUE | F160: 1 | G160: 4 | H160: 71420210155 | I160: Louisiana | J160: 172100 | K160: 0 | L160: 59400 | M160: 0.3451481697 | N160: TRUE | O160: 4 | P160: 51073 | Q160: 27740 | R160: 19896 | S160: 0.3895600415 | T160: TRUE | U160: 4 | V160: 0.19 | W160: 0.313 | X160: 0.575 | Y160: 0.285 | Z160: TRUE | AA160: 1 | AB160: 1 | AC160: 1 | AD160: 3 | AE160: 0 | AF160: YES | AG160: YES | AH160: 12 | AI160: 1 | AJ160: Gibsland
A161: Bienville | B161: Mount Lebanon | C161: 9702 | D161: 22013970200 | E161: TRUE | F161: 1 | G161: 4 | H161: 71420210156 | I161: Louisiana | J161: 172100 | K161: 62200 | L161: 266700 | M161: 1.549680418 | O161: 0 | P161: 51073 | Q161: 27740 | R161: 24844 | S161: 0.4864409766 | T161: TRUE | U161: 4 | V161: 0.19 | W161: 0.313 | X161: 0.042 | Y161: 0.285 | AA161: 0 | AB161: 1 | AC161: 0 | AD161: 1 | AE161: 0 | AF161: NO | AG161: NO | AH161: 8 | AJ161: Mount Lebanon
A162: Bienville | B162: Taylor | C162: 9702 | D162: 22013970200 | E162: TRUE | F162: 1 | G162: 4 | H162: 71420210157 | I162: Louisiana | J162: 172100 | M162: 0 | N162: TRUE | O162: 4 | P162: 51073 | Q162: 27740 | S162: 0 | T162: TRUE | U162: 4 | V162: 0.19 | W162: 0.313 | X162: 0 | Y162: 0.285 | AA162: 1 | AB162: 1 | AC162: 0 | AD162: 2 | AE162: 0 | AF162: YES | AG162: YES | AH162: 12 | AI162: 1 | AJ162: Taylor
A163: Bienville | B163: Ringgold | C163: 9703 | D163: 22013970300 | F163: 0 | G163: 0 | H163: 71420210158 | I163: Louisiana | J163: 172100 | K163: 62600 | L163: 68600 | M163: 0.3986054619 | N163: TRUE | O163: 4 | P163: 51073 | Q163: 26484 | R163: 19077 | S163: 0.3735241713 | T163: TRUE | U163: 4 | V163: 0.19 | W163: 0.344 | X163: 0.421 | Y163: 0.285 | Z163: TRUE | AA163: 1 | AB163: 1 | AC163: 1 | AD163: 3 | AE163: 0 | AF163: NO | AG163: NO | AH163: 8 | AJ163: Ringgold
A164: Bienville | B164: Castor | C164: 9704 | D164: 22013970400 | F164: 0 | G164: 0 | H164: 71420210159 | I164: Louisiana | J164: 172100 | K164: 83300 | L164: 0 | M164: 0 | N164: TRUE | O164: 4 | P164: 51073 | Q164: 56426 | R164: 29000 | S164: 0.5678146966 | T164: TRUE | U164: 4 | V164: 0.19 | W164: 0.245 | X164: 0.168 | Y164: 0.285 | AA164: 1 | AB164: 1 | AC164: 0 | AD164: 2 | AE164: =IF(Z164=TRUE, 4,0) -> 0 | AF164: NO | AG164: NO | AH164: 8 | AJ164: Castor
A165: Bienville | B165: Gibsland | C165: 9705 | D165: 22013970500 | F165: 0 | G165: 0 | H165: 71420210160 | I165: Louisiana | J165: 172100 | K165: 83300 | L165: 59400 | M165: 0.3451481697 | N165: TRUE | O165: 4 | P165: 51073 | Q165: 27925 | R165: 19896 | S165: 0.3895600415 | T165: TRUE | U165: 4 | V165: 0.19 | W165: 0.181 | X165: 0.575 | Y165: 0.285 | Z165: TRUE | AA165: 1 | AB165: 1 | AC165: 1 | AD165: 3 | AE165: 0 | AF165: NO | AG165: NO | AH165: 8 | AJ165: Gibsland
A166: Bienville | B166: Jamestown | C166: 9705 | D166: 22013970500 | F166: 0 | G166: 0 | H166: 71420210161 | I166: Louisiana | J166: 172100 | K166: 83300 | L166: 88000 | M166: 0.5113306217 | O166: 0 | P166: 51073 | Q166: 27925 | R166: 56429 | S166: 1.104869501 | U166: 0 | V166: 0.19 | W166: 0.181 | X166: 0.059 | Y166: 0.285 | AA166: 0 | AB166: 0 | AC166: 0 | AD166: 0 | AE166: 0 | AF166: NO | AG166: NO | AH166: 0 | AJ166: Jamestown
A167: Bienville | B167: Lucky | C167: 9705 | D167: 22013970500 | F167: 0 | G167: 0 | H167: 71420210162 | I167: Louisiana | J167: 172100 | K167: 49400 | L167: 39000 | M167: 0.2266124346 | N167: TRUE | O167: 4 | P167: 51073 | Q167: 27925 | R167: 12083 | S167: 0.2365829303 | T167: TRUE | U167: 4 | V167: 0.19 | W167: 0.181 | X167: 0.482 | Y167: 0.285 | Z167: TRUE | AA167: 1 | AB167: 1 | AC167: 1 | AD167: 3 | AE167: 0 | AF167: NO | AG167: NO | AH167: 8 | AJ167: Lucky
A168: Bienville | B168: Castor | C168: 9704 | D168: 22013970400 | F168: 0 | G168: 0 | H168: 71420210166 | I168: Louisiana | J168: 172100 | K168: 68600 | L168: 0 | M168: 0 | N168: TRUE | O168: 4 | P168: 51073 | Q168: 56426 | R168: 29000 | S168: 0.5678146966 | T168: TRUE | U168: 4 | V168: 0.19 | W168: 0.245 | X168: 0.168 | Y168: 0.285 | AA168: 1 | AB168: 1 | AC168: 0 | AD168: 2 | AE168: 0 | AF168: NO | AG168: NO | AH168: 8 | AJ168: Castor
A169: Bienville | B169: Bienville | C169: 9702 | D169: 22013970200 | E169: TRUE | F169: 1 | G169: 4 | H169: 71420210167 | I169: Louisiana | J169: 172100 | K169: 68600 | L169: 49400 | M169: 0.2870424172 | N169: TRUE | O169: 4 | P169: 51073 | Q169: 27740 | R169: 31719 | S169: 0.6210522194 | T169: TRUE | U169: 4 | V169: 0.19 | W169: 0.313 | X169: 0.263 | Y169: 0.285 | AA169: 1 | AB169: 1 | AC169: 0 | AD169: 2 | AE169: 0 | AF169: YES | AG169: YES | AH169: 12 | AI169: 1 | AJ169: Bienville
A170: Bienville | B170: Ringgold | C170: 9703 | D170: 22013970300 | F170: 0 | G170: 0 | H170: 71420210168 | I170: Louisiana | J170: 172100 | K170: 0 | L170: 68600 | M170: 0.3986054619 | N170: TRUE | O170: 4 | P170: 51073 | Q170: 26484 | R170: 19077 | S170: 0.3735241713 | T170: TRUE | U170: 4 | V170: 0.19 | W170: 0.344 | X170: 0.421 | Y170: 0.285 | Z170: TRUE | AA170: 1 | AB170: 1 | AC170: 1 | AD170: 3 | AE170: 0 | AF170: NO | AG170: NO | AH170: 8 | AJ170: Ringgold
A171: Bienville | B171: Arcadia | C171: 9701 | D171: 22013970100 | E171: TRUE | F171: 1 | G171: 4 | H171: 71420210170 | I171: Louisiana | J171: 172100 | K171: 0 | L171: 83300 | M171: 0.4840209181 | N171: TRUE | O171: 4 | P171: 51073 | Q171: 26680 | R171: 23494 | S171: 0.4600082235 | T171: TRUE | U171: 4 | V171: 0.19 | W171: 0.325 | X171: 0.419 | Y171: 0.285 | Z171: TRUE | AA171: 1 | AB171: 1 | AC171: 1 | AD171: 3 | AE171: 0 | AF171: YES | AG171: YES | AH171: 12 | AI171: 1 | AJ171: Arcadia
A172: Bienville | B172: Jamestown | C172: 9704 | D172: 22013970400 | F172: 0 | G172: 0 | H172: 71420210171 | I172: Louisiana | J172: 172100 | K172: 88000 | L172: 88000 | M172: 0.5113306217 | O172: 0 | P172: 51073 | Q172: 56426 | R172: 56429 | S172: 1.104869501 | U172: 0 | V172: 0.19 | W172: 0.245 | X172: 0.059 | Y172: 0.285 | AA172: 0 | AB172: 0 | AC172: 0 | AD172: 0 | AE172: 0 | AF172: NO | AG172: NO | AH172: 0 | AJ172: Jamestown
A173: Bienville | B173: Bienville | C173: 9705 | D173: 22013970500 | F173: 0 | G173: 0 | H173: 71420210172 | I173: Louisiana | J173: 172100 | K173: 68600 | L173: 49400 | M173: 0.2870424172 | N173: TRUE | O173: 4 | P173: 51073 | Q173: 27925 | R173: 31719 | S173: 0.6210522194 | T173: TRUE | U173: 4 | V173: 0.19 | W173: 0.181 | X173: 0.263 | Y173: 0.285 | AA173: 1 | AB173: 1 | AC173: 0 | AD173: 2 | AE173: 0 | AF173: NO | AG173: NO | AH173: 8 | AJ173: Bienville
A174: Bienville | B174: Castor | C174: 9705 | D174: 22013970500 | F174: 0 | G174: 0 | H174: 71420210173 | I174: Louisiana | J174: 172100 | K174: 49400 | L174: 0 | M174: 0 | N174: TRUE | O174: 4 | P174: 51073 | Q174: 27925 | R174: 29000 | S174: 0.5678146966 | T174: TRUE | U174: 4 | V174: 0.19 | W174: 0.181 | X174: 0.168 | Y174: 0.285 | AA174: 1 | AB174: 1 | AC174: 0 | AD174: 2 | AE174: 0 | AF174: NO | AG174: NO | AH174: 8 | AJ174: Castor
A175: Bienville | B175: Castor | C175: 9704 | D175: 22013970400 | F175: 0 | G175: 0 | H175: 71420210174 | I175: Louisiana | J175: 172100 | K175: 0 | L175: 0 | M175: 0 | N175: TRUE | O175: 4 | P175: 51073 | Q175: 56426 | R175: 29000 | S175: 0.5678146966 | T175: TRUE | U175: 4 | V175: 0.19 | W175: 0.245 | X175: 0.168 | Y175: 0.285 | AA175: 1 | AB175: 1 | AC175: 0 | AD175: 2 | AE175: 0 | AF175: NO | AG175: NO | AH175: 8 | AJ175: Castor
A176: Bienville | B176: Ringgold | C176: 9704 | D176: 22013970400 | F176: 0 | G176: 0 | H176: 71420210175 | I176: Louisiana | J176: 172100 | K176: 59400 | L176: 68600 | M176: 0.3986054619 | N176: TRUE | O176: 4 | P176: 51073 | Q176: 56426 | R176: 19077 | S176: 0.3735241713 | T176: TRUE | U176: 4 | V176: 0.19 | W176: 0.245 | X176: 0.421 | Y176: 0.285 | Z176: TRUE | AA176: 1 | AB176: 1 | AC176: 1 | AD176: 3 | AE176: 0 | AF176: NO | AG176: NO | AH176: 8 | AJ176: Ringgold
A177: Bienville | B177: Arcadia | C177: 9701 | D177: 22013970100 | E177: TRUE | F177: 1 | G177: 4 | H177: 71420210177 | I177: Louisiana | J177: 172100 | K177: 39000 | L177: 83300 | M177: 0.4840209181 | N177: TRUE | O177: 4 | P177: 51073 | Q177: 26680 | R177: 23494 | S177: 0.4600082235 | T177: TRUE | U177: 4 | V177: 0.19 | W177: 0.325 | X177: 0.419 | Y177: 0.285 | Z177: TRUE | AA177: 1 | AB177: 1 | AC177: 1 | AD177: 3 | AE177: 0 | AF177: YES | AG177: YES | AH177: 12 | AI177: 1 | AJ177: Arcadia
A178: Bienville | B178: Lucky | C178: 9705 | D178: 22013970500 | F178: 0 | G178: 0 | H178: 71420210178 | I178: Louisiana | J178: 172100 | K178: 39000 | L178: 39000 | M178: 0.2266124346 | N178: TRUE | O178: 4 | P178: 51073 | Q178: 27925 | R178: 12083 | S178: 0.2365829303 | T178: TRUE | U178: 4 | V178: 0.19 | W178: 0.181 | X178: 0.482 | Y178: 0.285 | Z178: TRUE | AA178: 1 | AB178: 1 | AC178: 1 | AD178: 3 | AE178: 0 | AF178: NO | AG178: NO | AH178: 8 | AJ178: Lucky
A179: Bienville | B179: Lucky | C179: 9705 | D179: 22013970500 | F179: 0 | G179: 0 | H179: 71420210179 | I179: Louisiana | J179: 172100 | K179: 39000 | L179: 39000 | M179: 0.2266124346 | N179: TRUE | O179: 4 | P179: 51073 | Q179: 27925 | R179: 12083 | S179: 0.2365829303 | T179: TRUE | U179: 4 | V179: 0.19 | W179: 0.181 | X179: 0.482 | Y179: 0.285 | Z179: TRUE | AA179: 1 | AB179: 1 | AC179: 1 | AD179: 3 | AE179: 0 | AF179: NO | AG179: NO | AH179: 8 | AJ179: Lucky
A180: Bienville | B180: Lucky | C180: 9705 | D180: 22013970500 | F180: 0 | G180: 0 | H180: 71420210183 | I180: Louisiana | J180: 172100 | K180: 148100 | L180: 39000 | M180: 0.2266124346 | N180: TRUE | O180: 4 | P180: 51073 | Q180: 27925 | R180: 12083 | S180: 0.2365829303 | T180: TRUE | U180: 4 | V180: 0.19 | W180: 0.181 | X180: 0.482 | Y180: 0.285 | Z180: TRUE | AA180: 1 | AB180: 1 | AC180: 1 | AD180: 3 | AE180: 0 | AF180: NO | AG180: NO | AH180: 8 | AJ180: Lucky
A181: Bienville | B181: Saline | C181: 9705 | D181: 22013970500 | F181: 0 | G181: 0 | H181: 71420210188 | I181: Louisiana | J181: 172100 | K181: 163500 | L181: 66000 | M181: 0.3834979663 | N181: TRUE | O181: 4 | P181: 51073 | Q181: 27925 | R181: 48750 | S181: 0.9545160848 | U181: 0 | V181: 0.19 | W181: 0.181 | X181: 0.11 | Y181: 0.285 | AA181: 1 | AB181: 0 | AC181: 0 | AD181: 1 | AE181: 0 | AF181: NO | AG181: NO | AH181: 4 | AJ181: Saline
A182: Bossier | B182: Bossier City | C182: 106.02 | D182: 22015010602 | F182: 0 | G182: 0 | H182: 71420210180 | I182: Louisiana | J182: 172100 | K182: 39000 | L182: 163500 | M182: 0.9500290529 | O182: 0 | P182: 51073 | Q182: 31719 | R182: 50340 | S182: 0.985647994 | U182: 0 | V182: 0.19 | W182: 0.276 | X182: 0.197 | Y182: 0.285 | AA182: 0 | AB182: 0 | AC182: 0 | AD182: 0 | AE182: 0 | AF182: NO | AG182: NO | AH182: 0 | AJ182: Bossier City
A183: Bossier | B183: Bossier City | C183: 107.01 | D183: 22015010701 | F183: 0 | G183: 0 | H183: 71420210181 | I183: Louisiana | J183: 172100 | K183: 66000 | L183: 163500 | M183: 0.9500290529 | O183: 0 | P183: 51073 | Q183: 27566 | R183: 50340 | S183: 0.985647994 | U183: 0 | V183: 0.19 | W183: 0.225 | X183: 0.197 | Y183: 0.285 | AA183: 0 | AB183: 0 | AC183: 0 | AD183: 0 | AE183: 0 | AF183: NO | AG183: NO | AH183: 0 | AJ183: Bossier City
A184: Bossier | B184: Bossier City | C184: 107.02 | D184: 22015010702 | F184: 0 | G184: 0 | H184: 71420210182 | I184: Louisiana | J184: 172100 | K184: 163500 | L184: 163500 | M184: 0.9500290529 | O184: 0 | P184: 51073 | Q184: 39039 | R184: 50340 | S184: 0.985647994 | U184: 0 | V184: 0.19 | W184: 0.225 | X184: 0.197 | Y184: 0.285 | AA184: 0 | AB184: 0 | AC184: 0 | AD184: 0 | AE184: 0 | AF184: NO | AG184: NO | AH184: 0 | AJ184: Bossier City
A185: Bossier | B185: Bossier City | C185: 106.01 | D185: 22015010601 | F185: 0 | G185: 0 | H185: 71420210184 | I185: Louisiana | J185: 172100 | K185: 148100 | L185: 163500 | M185: 0.9500290529 | O185: 0 | P185: 51073 | Q185: 34806 | R185: 50340 | S185: 0.985647994 | U185: 0 | V185: 0.19 | W185: 0.315 | X185: 0.197 | Y185: 0.285 | AA185: 0 | AB185: 0 | AC185: 0 | AD185: 0 | AE185: 0 | AF185: NO | AG185: NO | AH185: 0 | AJ185: Bossier City
A186: Bossier | B186: Shreveport | C186: 104 | D186: 22015010400 | E186: TRUE | F186: 1 | G186: 4 | H186: 71420210185 | I186: Louisiana | J186: 172100 | K186: 148100 | L186: 148100 | M186: 0.8605461941 | O186: 0 | P186: 51073 | Q186: 19775 | R186: 39090 | S186: 0.7653750514 | U186: 0 | V186: 0.19 | W186: 0.569 | X186: 0.257 | Y186: 0.285 | AA186: 0 | AB186: 0 | AC186: 0 | AD186: 0 | AF186: NO | AG186: NO | AH186: 4 | AJ186: Shreveport
A187: Bossier | B187: Bossier City | C187: 106.01 | D187: 22015010601 | F187: 0 | G187: 0 | H187: 71420210186 | I187: Louisiana | J187: 172100 | K187: 163500 | L187: 163500 | M187: 0.9500290529 | O187: 0 | P187: 51073 | Q187: 34806 | R187: 50340 | S187: 0.985647994 | U187: 0 | V187: 0.19 | W187: 0.315 | X187: 0.197 | Y187: 0.285 | AA187: 0 | AB187: 0 | AC187: 0 | AD187: 0 | AE187: =IF(Z187=TRUE, 4,0) -> 0 | AF187: NO | AG187: NO | AH187: 0 | AJ187: Bossier City
A188: Bossier | B188: Bossier City | C188: 108.01 | D188: 22015010801 | F188: 0 | G188: 0 | H188: 71420210187 | I188: Louisiana | J188: 172100 | K188: 163500 | L188: 163500 | M188: 0.9500290529 | O188: 0 | P188: 51073 | Q188: 26286 | R188: 50340 | S188: 0.985647994 | U188: 0 | V188: 0.19 | W188: 0.463 | X188: 0.197 | Y188: 0.285 | AA188: 0 | AB188: 0 | AC188: 0 | AD188: 0 | AE188: =IF(Z188=TRUE, 4,0) -> 0 | AF188: NO | AG188: NO | AH188: 0 | AJ188: Bossier City
A189: Bossier | B189: Bossier City | C189: 106.02 | D189: 22015010602 | F189: 0 | G189: 0 | H189: 71420210189 | I189: Louisiana | J189: 172100 | K189: 163500 | L189: 163500 | M189: 0.9500290529 | O189: 0 | P189: 51073 | Q189: 31719 | R189: 50340 | S189: 0.985647994 | U189: 0 | V189: 0.19 | W189: 0.276 | X189: 0.197 | Y189: 0.285 | AA189: 0 | AB189: 0 | AC189: 0 | AD189: 0 | AE189: =IF(Z189=TRUE, 4,0) -> 0 | AF189: NO | AG189: NO | AH189: 0 | AJ189: Bossier City
A190: Bossier | B190: Bossier City | C190: 107.01 | D190: 22015010701 | F190: 0 | G190: 0 | H190: 71420210190 | I190: Louisiana | J190: 172100 | K190: 163500 | L190: 163500 | M190: 0.9500290529 | O190: 0 | P190: 51073 | Q190: 27566 | R190: 50340 | S190: 0.985647994 | U190: 0 | V190: 0.19 | W190: 0.225 | X190: 0.197 | Y190: 0.285 | AA190: 0 | AB190: 0 | AC190: 0 | AD190: 0 | AE190: =IF(Z190=TRUE, 4,0) -> 0 | AF190: NO | AG190: NO | AH190: 0 | AJ190: Bossier City
A191: Bossier | B191: Shreveport | C191: 104 | D191: 22015010400 | E191: TRUE | F191: 1 | G191: 4 | H191: 71420210191 | I191: Louisiana | J191: 172100 | K191: 163500 | L191: 148100 | M191: 0.8605461941 | O191: 0 | P191: 51073 | Q191: 19775 | R191: 39090 | S191: 0.7653750514 | U191: 0 | V191: 0.19 | W191: 0.569 | X191: 0.257 | Y191: 0.285 | AA191: 0 | AB191: 0 | AC191: 0 | AD191: 0 | AF191: NO | AG191: NO | AH191: 4 | AJ191: Shreveport
A192: Bossier | B192: Bossier City | C192: 106.02 | D192: 22015010602 | F192: 0 | G192: 0 | H192: 71420210192 | I192: Louisiana | J192: 172100 | K192: 163500 | L192: 163500 | M192: 0.9500290529 | O192: 0 | P192: 51073 | Q192: 31719 | R192: 50340 | S192: 0.985647994 | U192: 0 | V192: 0.19 | W192: 0.276 | X192: 0.197 | Y192: 0.285 | AA192: 0 | AB192: 0 | AC192: 0 | AD192: 0 | AE192: =IF(Z192=TRUE, 4,0) -> 0 | AF192: NO | AG192: NO | AH192: 0 | AJ192: Bossier City
A193: Bossier | B193: Shreveport | C193: 104 | D193: 22015010400 | E193: TRUE | F193: 1 | G193: 4 | H193: 71420210193 | I193: Louisiana | J193: 172100 | K193: 163500 | L193: 148100 | M193: 0.8605461941 | O193: 0 | P193: 51073 | Q193: 19775 | R193: 39090 | S193: 0.7653750514 | U193: 0 | V193: 0.19 | W193: 0.569 | X193: 0.257 | Y193: 0.285 | AA193: 0 | AB193: 0 | AC193: 0 | AD193: 0 | AF193: NO | AG193: NO | AH193: 4 | AJ193: Shreveport
A194: Bossier | B194: Bossier City | C194: 105 | D194: 22015010500 | F194: 0 | G194: 0 | H194: 71420210194 | I194: Louisiana | J194: 172100 | K194: 163500 | L194: 163500 | M194: 0.9500290529 | O194: 0 | P194: 51073 | Q194: 39625 | R194: 50340 | S194: 0.985647994 | U194: 0 | V194: 0.19 | W194: 0.28 | X194: 0.197 | Y194: 0.285 | AA194: 0 | AB194: 0 | AC194: 0 | AD194: 0 | AE194: =IF(Z194=TRUE, 4,0) -> 0 | AF194: NO | AG194: NO | AH194: 0 | AJ194: Bossier City
A195: Bossier | B195: Shreveport | C195: 108.01 | D195: 22015010801 | F195: 0 | G195: 0 | H195: 71420210195 | I195: Louisiana | J195: 172100 | K195: 163500 | L195: 148100 | M195: 0.8605461941 | O195: 0 | P195: 51073 | Q195: 26286 | R195: 39090 | S195: 0.7653750514 | U195: 0 | V195: 0.19 | W195: 0.463 | X195: 0.257 | Y195: 0.285 | AA195: 0 | AB195: 0 | AC195: 0 | AD195: 0 | AF195: NO | AG195: NO | AH195: 0 | AJ195: Shreveport
A196: Bossier | B196: Bossier City | C196: 106.02 | D196: 22015010602 | F196: =IF(E196=TRUE,1,0) -> 0 | G196: =IF(E196=TRUE,4,0) -> 0 | H196: 71420210196 | I196: Louisiana | J196: 172100 | K196: 163500 | L196: 163500 | M196: =+L196/J196 -> 0.9500290529 | N196: =IF(M196<=50%,TRUE,"") ->  | O196: =IF(N196=TRUE,4,0) -> 0 | P196: 51073 | Q196: 31719 | R196: 50340 | S196: =+R196/P196 -> 0.985647994 | T196: =IF(S196<=65%,TRUE,"") ->  | U196: =IF(T196=TRUE, 4,0) -> 0 | V196: 0.19 | W196: 0.276 | X196: 0.197 | Y196: 0.285 | Z196: =IF(X196>Y196,"TRUE", "") ->  | AA196: =IF(N196=TRUE,1,0) -> 0 | AB196: =IF(T196=TRUE,1,0) -> 0 | AC196: =IF(Z196="TRUE",1,0) -> 0 | AD196: =SUM(AA196:AC196) -> 0 | AE196: =IF(Z196=TRUE, 4,0) -> 0 | AF196: =IF(AND(E196=TRUE,AD196>1),"YES","NO") -> NO | AG196: =IF(AND(F196=1,AD196>1), "YES","NO") -> NO | AH196: =+G196+O196+U196+AE196 -> 0 | AI196: =IF(AG196="YES",1,"") ->  | AJ196: =+B196 -> Bossier City
A197: Bossier | B197: Bossier City | C197: 108.01 | D197: 22015010801 | F197: 0 | G197: 0 | H197: 71420210197 | I197: Louisiana | J197: 172100 | K197: 163500 | L197: 163500 | M197: 0.9500290529 | O197: 0 | P197: 51073 | Q197: 26286 | R197: 50340 | S197: 0.985647994 | U197: 0 | V197: 0.19 | W197: 0.463 | X197: 0.197 | Y197: 0.285 | AA197: 0 | AB197: 0 | AC197: 0 | AD197: 0 | AE197: 0 | AF197: NO | AG197: NO | AH197: 0 | AJ197: Bossier City
A198: Bossier | B198: Bossier City | C198: 108.04 | D198: 22015010804 | F198: 0 | G198: 0 | H198: 71420210198 | I198: Louisiana | J198: 172100 | K198: 148100 | L198: 163500 | M198: 0.9500290529 | O198: 0 | P198: 51073 | Q198: 62904 | R198: 50340 | S198: 0.985647994 | U198: 0 | V198: 0.19 | W198: 0.068 | X198: 0.197 | Y198: 0.285 | AA198: 0 | AB198: 0 | AC198: 0 | AD198: 0 | AE198: 0 | AF198: NO | AG198: NO | AH198: 0 | AJ198: Bossier City
A199: Bossier | B199: Bossier City | C199: 104 | D199: 22015010400 | E199: TRUE | F199: 1 | G199: 4 | H199: 71420210199 | I199: Louisiana | J199: 172100 | K199: 163500 | L199: 163500 | M199: 0.9500290529 | O199: 0 | P199: 51073 | Q199: 19775 | R199: 50340 | S199: 0.985647994 | U199: 0 | V199: 0.19 | W199: 0.569 | X199: 0.197 | Y199: 0.285 | AA199: 0 | AB199: 0 | AC199: 0 | AD199: 0 | AE199: 0 | AF199: NO | AG199: NO | AH199: 4 | AJ199: Bossier City
A200: Bossier | B200: Red Chute | C200: 111.03 | D200: 22015011103 | F200: 0 | G200: 0 | H200: 71420210200 | I200: Louisiana | J200: 172100 | K200: 163500 | L200: 162900 | M200: 0.9465427077 | O200: 0 | P200: 51073 | Q200: 67672 | R200: 52043 | S200: 1.018992423 | U200: 0 | V200: 0.19 | W200: 0.102 | X200: 0.191 | Y200: 0.285 | AA200: 0 | AB200: 0 | AC200: 0 | AD200: 0 | AE200: 0 | AF200: NO | AG200: NO | AH200: 0 | AJ200: Red Chute
... 2315 more rows

Sheet Limits
A1: 10122018.SA | C1: =+Cover!E11 -> 0
A2: The limits provided on these tables are for planning purposes. The numbers provided are upper limits and may not under any circumstance be exceed. Funded projects may be required to have lower actual numbers based on LHC underwriting and market analysis.
A7: 2020 Maximum Per Unit investment (234 Limits)
A8: Number of Bedrooms | B8: Limit
A9: 0 Bedroom | B9: =+Lists!W74 -> 
A10: 1 Bedroom | B10: =+Lists!X74 -> 
A11: 2 Bedroom | B11: =+Lists!Y74 -> 
A12: 3 Bedroom | B12: =+Lists!Z74 -> 
A13: 4 or More Bedroom | B13: =+Lists!AA74 -> 
A16: 2021 Maximum Value/Sales Price
A17: Number of Units in Building (Existing) | B17: Limit | C17: LHC Max Development Subsidy
A18: 1-Unit | B18: =+Lists!B165 ->  | C18: =+B18*0.4 -> 
A19: 2-Unit | B19: =+Lists!C165 ->  | C19: =+B19*0.4 -> 
A20: 3-Unit | B20: =+Lists!D165 ->  | C20: =+B20*0.4 -> 
A21: 4-Unit | B21: =+Lists!E165 ->  | C21: =+B21*0.4 -> 
A23: Number of Units in Building (New Construction) | B23: Limit
A24: 1-Unit | B24: =+Lists!G165 ->  | C24: =+C18 -> 
A25: 2-Unit | B25: =+Lists!H165 ->  | C25: =+C19 -> 
A26: 3-Unit | B26: =+Lists!I165 ->  | C26: =+C20 -> 
A27: 4-Unit | B27: =+Lists!J165 ->  | C27: =+C21 -> 

Sheet Properties
C1: =+Cover!E11 -> 0
A2: In the columns below enter the information for each property that may be a part of the HOME project. This information will be used in the Environmental Review, Regulatory Agreement and potentially other program documents. If a street name and number is not currently available indicate so but enter all other information. Lot, Block and Subdivision must be provided at time of application.
A3: Street Number | B3: Street Name | C3: City | D3: Zip | E3: Parish | F3: Lot | G3: Block | H3: Subdivision

Sheet Development Budget
A1: SINGLE-FAMILY HOUSING DEVELOPMENT | I1: =+Cover!D8 -> SFAH06012022.01 | K1: =+Cover!E11 -> 0
A2: Development Budget
A4: Project: | C4: =+'Primary Input'!E8 -> 0 | G4: Key
G5: White spaces indicate data entry
A6: DEVELOPMENT BUDGET
B7: ITEM | D7: Cost | E7: % Total
A8: ACQUISITION
B9: Building Acquisition | E9: =IF($D$42=0,"",D9/$D$42) ->  | O9: `
B10: Land Acquisition | E10: =IF($D$42=0,"",D10/$D$42) -> 
A11: UNIT CONSTRUCTION (see below) | D11: =G54 -> 0
A12: OTHER CONSTRUCTION
B13: Landscaping
B14: Permits
B15: Clearance and Demolition
B16: Utility Connections & Tap Fees
B17: Contingency
A18: INFRASTRUCTURE
B19: Streets and Sidewalks
B20: Water and Sewer
B21: Storm water & Drainage
B22: Impact Fees
A23: PROFESSIONAL FEES
B24: Site Planning
B25: Architecture & Engineering
B26: Real Estate Attorney
B27: Consultant
B28: Survey
B29: Market Study
B30: Environmental
B31: Organization Expense
A32: FINANCE COSTS
B33: Construction Loan Interest | D33: =+'Cash Flow (Sales Plan)'!E23 -> 
B34: Construction Origination
B35: Appraisal
B36: Construction Insurance
B37: Property Taxes
A38: SOFT COSTS
B39: Marketing
B40: Other
A41: DEVELOPER FEE
B42: TOTAL DEVELOPMENT COST | D42: =SUM(D9:D41) -> 
B45: Construction/Rehab. Costs
B46: Model Number | C46: Sq. Ft. | D46: Cost/Sq. Ft. | E46: Unit Cost | F46: # Units | G46: Total | H46: Sales Price | I46: As Built Appraised Value | J46: Per Unit Development Subsidy | K46: Type of Unit | L46: Type of Construction
B47: 1 | E47: =C47*D47 -> 0 | G47: =E47*F47 -> 0 | J47: =+Lists!G82 -> 0
B48: 2 | E48: =C48*D48 -> 0 | G48: 0 | J48: =+Lists!G83 -> 0
B49: 3 | E49: 0 | G49: 0 | J49: =+Lists!G84 -> 0
B50: 4 | E50: 0 | G50: 0 | J50: =+Lists!G85 -> 0
B51: 5 | E51: 0 | G51: 0
B52: 6 | E52: 0 | G52: 0
B53: 7 | E53: 0 | G53: 0
B54: Average | E54: =IF(F54=0,0,G54/F54) -> 0 | F54: =SUM(F47:F53) -> 0 | G54: =SUM(G47:G53) -> 0 | H54: =IF(F54=0,0,(H47*F47+H48*F48+H51*F51+H52*F52+H53*F53+H49*F49+H50*F50)/F54) -> 0

Sheet Cash Flow (Sales Plan)
A1: SINGLE FAMILY HOUSING DEVELOPMENT | O1: Key | R1: =+Cover!E11 -> 0
A2: Cash Flow Analysis | I2: % Debt | J2: % LHC HOME | K2: %Equity | O2: White spaces indicate data entry
B3: =+Cover!D8 -> SFAH06012022.01
D4: Project #s | G4: Acquisition | I4: 0 | J4: 0 | K4: =1-J4-I4 -> 1
B5: Construction cost | D5: =+'Development Budget'!E54 -> 0 | G5: Unit Construction | I5: 0 | J5: 0 | K5: =1-J5-I5 -> 1
B6: Sales price | D6: =+'Development Budget'!H54 -> 0 | G6: Other Construction | I6: 0 | J6: 0 | K6: 1
B7: Sales expense | D7: 0 | G7: Infrastructure | I7: 0 | J7: 0 | K7: 1
B8: Construction interest rate | D8: 0 | G8: Professional Fees | I8: 0 | J8: 0 | K8: 1
B9: Months to construct | D9: 0 | G9: Construction Interest | I9: 0 | J9: 0 | K9: 1
B10: Months to sell | D10: 0 | G10: Other Finance Costs | I10: 0 | J10: 0 | K10: 1
G11: Soft Costs | I11: 0 | J11: 0 | K11: 1
B13: MONTH | G13: 1 | H13: =1+G13 -> 2 | I13: 3 | J13: 4 | K13: 5 | L13: 6 | M13: 7 | N13: 8 | O13: 9 | P13: 10 | Q13: 11 | R13: 12 | S13: 13 | T13: 14 | U13: 15 | V13: 16 | W13: 17 | X13: 18 | Y13: 19 | Z13: 20 | AA13: 21 | AB13: 22 | AC13: 23 | AD13: 24 | AE13: 25 | AF13: 26 | AG13: 27 | AH13: 28 | AI13: 29 | AJ13: 30 | AK13: 31 | AL13: 32 | AM13: 33 | AN13: 34 | AO13: 35 | AP13: 36 | AQ13: 37 | AR13: 38 | AS13: 39 | AT13: 40 | AU13: 41 | AV13: 42 | AW13: 43 | AX13: 44 | AY13: 45 | AZ13: 46 | BA13: 47 | BB13: 48 | BC13: 49 | BD13: 50 | BE13: 51 | BF13: 52 | BG13: 53 | BH13: 54 | BI13: 55
A15: 1 | B15: # Housing Starts | D15: =IF(SUM(G15:BI15)='Development Budget'!F54,SUM(G15:BI15),"# must Equal Budget") -> 0 | G15: 0 | H15: 0 | I15: 0 | J15: 0 | K15: 0 | L15: 0 | M15: 0 | N15: 0 | O15: 0 | P15: 0 | Q15: 0 | R15: 0 | S15: 0 | T15: 0 | U15: 0 | V15: 0 | W15: 0 | X15: 0 | Y15: 0 | Z15: 0 | AA15: 0 | AB15: 0 | AC15: 0 | AD15: 0 | AE15: 0 | AF15: 0 | AG15: 0 | AH15: 0 | AI15: 0 | AJ15: 0 | AK15: 0 | AL15: 0 | AM15: 0 | AN15: 0 | AO15: 0 | AP15: 0 | AQ15: 0 | AR15: 0 | AS15: 0 | AT15: 0 | AU15: 0 | AV15: 0 | AW15: 0 | AX15: 0 | AY15: 0 | AZ15: 0
E16: Cumulative
A17: 2 | B17: Project Expenses | D17: Budget | E17: Expenditure
B18: Property Acquisition | D18: =+'Development Budget'!D9+'Development Budget'!D10 -> 0 | E18: =SUM(G18:BI18) -> 0 | G18: 0 | H18: 0 | I18: 0 | L18: 0 | M18: 0 | N18: 0 | O18: 0 | P18: 0 | Q18: 0 | R18: 0 | S18: 0 | T18: 0 | U18: 0 | V18: 0 | W18: 0 | X18: 0 | Y18: 0 | Z18: 0 | AA18: 0 | AB18: 0 | AC18: 0 | AD18: 0 | AE18: 0 | AF18: 0 | AG18: 0 | AH18: 0 | AI18: 0 | AJ18: 0 | AK18: 0 | AL18: 0 | AM18: 0 | AN18: 0 | AO18: 0 | AP18: 0 | AQ18: 0 | AR18: 0 | AS18: 0 | AT18: 0 | AU18: 0 | AV18: 0 | AW18: 0 | AX18: 0 | AY18: 0 | AZ18: 0 | BA18: 0 | BB18: 0 | BC18: 0 | BD18: 0 | BE18: 0 | BF18: 0 | BG18: 0 | BH18: 0 | BI18: 0
B19: Unit Construction | D19: =+'Development Budget'!D11 -> 0 | G19: =INDEX(G154:G162,$D$9) -> 
B20: Other Construction | D20: =SUM('Development Budget'!D13:D17) -> 0 | E20: 0 | G20: 0 | H20: 0 | I20: 0 | J20: 0 | K20: 0 | L20: 0 | M20: 0 | N20: 0 | O20: 0 | P20: 0 | Q20: 0 | R20: 0 | S20: 0 | T20: 0 | U20: 0 | V20: 0 | W20: 0 | X20: 0 | Y20: 0 | Z20: 0 | AA20: 0 | AB20: 0 | AG20: 0 | AH20: 0 | AI20: 0 | AJ20: 0 | AK20: 0 | AL20: 0 | AM20: 0 | AN20: 0 | AO20: 0 | AP20: 0 | AQ20: 0 | AR20: 0 | AS20: 0 | AT20: 0 | AU20: 0 | AV20: 0 | AW20: 0 | AX20: 0 | AY20: 0 | AZ20: 0 | BA20: 0 | BB20: 0 | BC20: 0 | BD20: 0 | BE20: 0 | BF20: 0 | BG20: 0 | BH20: 0 | BI20: 0
B21: Infrastructure | D21: =SUM('Development Budget'!D19:D22) -> 0 | E21: 0 | G21: 0 | H21: 0 | I21: 0 | J21: 0 | K21: 0 | L21: 0 | M21: 0 | N21: 0 | O21: 0 | P21: 0 | Q21: 0 | R21: 0 | S21: 0 | T21: 0 | U21: 0 | V21: 0 | W21: 0 | X21: 0 | Y21: 0 | Z21: 0 | AA21: 0 | AB21: 0 | AG21: 0 | AH21: 0 | AI21: 0 | AJ21: 0 | AK21: 0 | AL21: 0 | AM21: 0 | AN21: 0 | AO21: 0 | AP21: 0 | AQ21: 0 | AR21: 0 | AS21: 0 | AT21: 0 | AU21: 0 | AV21: 0 | AW21: 0 | AX21: 0 | AY21: 0 | AZ21: 0 | BA21: 0 | BB21: 0 | BC21: 0 | BD21: 0 | BE21: 0 | BF21: 0 | BG21: 0 | BH21: 0 | BI21: 0
B22: Professional Fees | D22: =SUM('Development Budget'!D24:D31) -> 0 | E22: 0 | G22: 0 | H22: 0 | I22: 0 | J22: 0 | K22: 0 | L22: 0 | M22: 0 | N22: 0 | O22: 0 | P22: 0 | Q22: 0 | R22: 0 | S22: 0 | T22: 0 | U22: 0 | V22: 0 | W22: 0 | X22: 0 | Y22: 0 | Z22: 0 | AA22: 0 | AB22: 0 | AG22: 0 | AH22: 0 | AI22: 0 | AJ22: 0 | AK22: 0 | AL22: 0 | AM22: 0 | AN22: 0 | AO22: 0 | AP22: 0 | AQ22: 0 | AR22: 0 | AS22: 0 | AT22: 0 | AU22: 0 | AV22: 0 | AW22: 0 | AX22: 0 | AY22: 0 | AZ22: 0 | BA22: 0 | BB22: 0 | BC22: 0 | BD22: 0 | BE22: 0 | BF22: 0 | BG22: 0 | BH22: 0 | BI22: 0
B23: Construction Interest | D23: =SUM(G23:BI23) ->  | G23: =IF(G31<$D$15,G56*$D$8/12,IF(AND(G31=$D$15,G30>0),G56*$D$8/12,0)) -> 0 | H23: 0 | I23: 0 | J23: 0 | K23: 0 | L23: 0 | M23: 0 | N23: 0 | O23: 0 | P23: 0 | Q23: 0 | R23: 0 | S23: 0 | T23: 0 | U23: 0 | V23: 0 | W23: 0 | X23: 0 | Y23: 0 | Z23: 0 | AA23: 0 | AB23: 0 | AC23: 0 | AD23: 0 | AE23: 0 | AF23: 0 | AG23: 0 | AH23: 0 | AI23: 0 | AJ23: 0 | AK23: 0 | AL23: 0 | AM23: 0 | AN23: 0 | AO23: 0 | AP23: 0 | AQ23: 0 | AR23: 0 | AS23: 0 | AT23: 0 | AU23: 0 | AV23: 0 | AW23: 0 | AX23: 0 | AY23: 0 | AZ23: 0 | BA23: 0 | BB23: 0 | BC23: 0 | BD23: 0 | BE23: 0 | BF23: 0 | BG23: 0 | BH23: 0
B24: Other Finance Costs | D24: =SUM('Development Budget'!D34:D37) -> 0 | E24: 0 | G24: 0 | H24: 0 | I24: 0 | J24: 0 | K24: 0 | L24: 0 | M24: 0 | N24: 0 | O24: 0 | P24: 0 | Q24: 0 | R24: 0 | S24: 0 | T24: 0 | U24: 0 | V24: 0 | W24: 0 | X24: 0 | Y24: 0 | Z24: 0 | AA24: 0 | AB24: 0 | AC24: 0 | AD24: 0 | AE24: 0 | AF24: 0 | AG24: 0 | AH24: 0 | AI24: 0 | AJ24: 0 | AK24: 0 | AL24: 0 | AM24: 0 | AN24: 0 | AO24: 0 | AP24: 0 | AQ24: 0 | AR24: 0 | AS24: 0 | AT24: 0 | AU24: 0 | AV24: 0 | AW24: 0 | AX24: 0 | AY24: 0 | AZ24: 0 | BA24: 0 | BB24: 0 | BC24: 0 | BD24: 0 | BE24: 0 | BF24: 0 | BG24: 0 | BH24: 0 | BI24: 0
B25: Soft Costs | D25: =SUM('Development Budget'!D39:D41) -> 0 | E25: 0 | G25: 0 | H25: 0 | I25: 0 | J25: 0 | K25: 0 | L25: 0 | M25: 0 | N25: 0 | O25: 0 | P25: 0 | Q25: 0 | R25: 0 | S25: 0 | T25: 0 | U25: 0 | V25: 0 | W25: 0 | X25: 0 | Y25: 0 | Z25: 0 | AA25: 0 | AB25: 0 | AC25: 0 | AD25: 0 | AE25: 0 | AF25: 0 | AG25: 0 | AH25: 0 | AI25: 0 | AJ25: 0 | AK25: 0 | AL25: 0 | AM25: 0 | AN25: 0 | AO25: 0 | AP25: 0 | AQ25: 0 | AR25: 0 | AS25: 0 | AT25: 0 | AU25: 0 | AV25: 0 | AW25: 0 | AX25: 0 | AY25: 0 | AZ25: 0 | BA25: 0 | BB25: 0 | BC25: 0 | BD25: 0 | BE25: 0 | BF25: 0 | BG25: 0 | BH25: 0 | BI25: 0
B26: Total Monthly Expenses | D26: =SUM(D18:D25) ->  | E26: =SUM(E18:E25) ->  | G26: =SUM(G18:G25) -> 
A28: 2a | B28: Cumulative Project Expenses | G28: =F28+G26 -> 
A30: 3 | B30: Number of New Constr. Sales | G30: =IF($D$9+$D$10>G13,0,INDEX($G$15:$BI$15,,G13-($D$9+$D$10-1))) -> 0 | H30: 0 | I30: 0 | J30: 0 | K30: 0 | L30: 0 | M30: 0 | N30: 0 | O30: 0 | P30: 0 | Q30: 0 | R30: 0 | S30: 0 | T30: 0 | U30: 0 | V30: 0 | W30: 0 | X30: 0 | Y30: 0 | Z30: 0 | AA30: 0 | AB30: 0 | AC30: 0 | AD30: 0 | AE30: 0 | AF30: 0 | AG30: 0 | AH30: 0 | AI30: 0 | AJ30: 0 | AK30: 0 | AL30: 0 | AM30: 0 | AN30: 0 | AO30: 0 | AP30: 0 | AQ30: 0 | AR30: 0 | AS30: 0 | AT30: 0 | AU30: 0 | AV30: 0 | AW30: 0 | AX30: 0 | AY30: 0 | AZ30: 0 | BA30: 0 | BB30: 0 | BC30: 0 | BD30: 0 | BE30: 0 | BF30: 0 | BG30: 0 | BH30: 0
G31: =+G30 -> 0 | H31: =+G31+H30 -> 0 | I31: =+H31+I30 -> 0 | J31: 0 | K31: 0 | L31: 0 | M31: 0 | N31: 0 | O31: 0 | P31: 0 | Q31: 0 | R31: 0 | S31: 0 | T31: 0 | U31: 0 | V31: 0 | W31: 0 | X31: 0 | Y31: 0 | Z31: 0 | AA31: 0 | AB31: 0 | AC31: 0 | AD31: 0 | AE31: 0 | AF31: 0 | AG31: 0 | AH31: 0 | AI31: 0 | AJ31: 0 | AK31: 0 | AL31: 0 | AM31: 0 | AN31: 0 | AO31: 0 | AP31: 0 | AQ31: 0 | AR31: 0 | AS31: 0 | AT31: 0 | AU31: 0 | AV31: 0 | AW31: 0 | AX31: 0 | AY31: 0 | AZ31: 0 | BA31: 0 | BB31: 0 | BC31: 0 | BD31: 0 | BE31: 0 | BF31: 0 | BG31: 0 | BH31: 0
A32: 4 | B32: Project Revenue
B33: Sales | G33: =$D$6*G30 -> 0 | H33: =$D$6*H30 -> 0 | I33: 0 | J33: 0 | K33: 0 | L33: 0 | M33: 0 | N33: 0 | O33: 0 | P33: 0 | Q33: 0 | R33: 0 | S33: 0 | T33: 0 | U33: 0 | V33: 0 | W33: 0 | X33: 0 | Y33: 0 | Z33: 0 | AA33: 0 | AB33: 0 | AC33: 0 | AD33: 0 | AE33: 0 | AF33: 0 | AG33: 0 | AH33: 0 | AI33: 0 | AJ33: 0 | AK33: 0 | AL33: 0 | AM33: 0 | AN33: 0 | AO33: 0 | AP33: 0 | AQ33: 0 | AR33: 0 | AS33: 0 | AT33: 0 | AU33: 0 | AV33: 0 | AW33: 0 | AX33: 0 | AY33: 0 | AZ33: 0 | BA33: 0 | BB33: 0 | BC33: 0 | BD33: 0 | BE33: 0 | BF33: 0 | BG33: 0 | BH33: 0
B34: - Cost of Sale | G34: =$D$7*G33 -> 0 | H34: 0 | I34: 0 | J34: 0 | K34: 0 | L34: 0 | M34: 0 | N34: 0 | O34: 0 | P34: 0 | Q34: 0 | R34: 0 | S34: 0 | T34: 0 | U34: 0 | V34: 0 | W34: 0 | X34: 0 | Y34: 0 | Z34: 0 | AA34: 0 | AB34: 0 | AC34: 0 | AD34: 0 | AE34: 0 | AF34: 0 | AG34: 0 | AH34: 0 | AI34: 0 | AJ34: 0 | AK34: 0 | AL34: 0 | AM34: 0 | AN34: 0 | AO34: 0 | AP34: 0 | AQ34: 0 | AR34: 0 | AS34: 0 | AT34: 0 | AU34: 0 | AV34: 0 | AW34: 0 | AX34: 0 | AY34: 0 | AZ34: 0 | BA34: 0 | BB34: 0 | BC34: 0 | BD34: 0 | BE34: 0 | BF34: 0 | BG34: 0 | BH34: 0
B35: = Net Monthly Revenue | G35: =G33-G34 -> 0 | H35: 0 | I35: 0 | J35: 0 | K35: 0 | L35: 0 | M35: 0 | N35: 0 | O35: 0 | P35: 0 | Q35: 0 | R35: 0 | S35: 0 | T35: 0 | U35: 0 | V35: 0 | W35: 0 | X35: 0 | Y35: 0 | Z35: 0 | AA35: 0 | AB35: 0 | AC35: 0 | AD35: 0 | AE35: 0 | AF35: 0 | AG35: 0 | AH35: 0 | AI35: 0 | AJ35: 0 | AK35: 0 | AL35: 0 | AM35: 0 | AN35: 0 | AO35: 0 | AP35: 0 | AQ35: 0 | AR35: 0 | AS35: 0 | AT35: 0 | AU35: 0 | AV35: 0 | AW35: 0 | AX35: 0 | AY35: 0 | AZ35: 0 | BA35: 0 | BB35: 0 | BC35: 0 | BD35: 0 | BE35: 0 | BF35: 0 | BG35: 0 | BH35: 0
A37: 5 | B37: Cash Flow
B38: Net Monthly Revenue (4) | G38: =G35 -> 0 | H38: 0 | I38: 0 | J38: 0 | K38: 0 | L38: 0 | M38: 0 | N38: 0 | O38: 0 | P38: 0 | Q38: 0 | R38: 0 | S38: 0 | T38: 0 | U38: 0 | V38: 0 | W38: 0 | X38: 0 | Y38: 0 | Z38: 0 | AA38: 0 | AB38: 0 | AC38: 0 | AD38: 0 | AE38: 0 | AF38: 0 | AG38: 0 | AH38: 0 | AI38: 0 | AJ38: 0 | AK38: 0 | AL38: 0 | AM38: 0 | AN38: 0 | AO38: 0 | AP38: 0 | AQ38: 0 | AR38: 0 | AS38: 0 | AT38: 0 | AU38: 0 | AV38: 0 | AW38: 0 | AX38: 0 | AY38: 0 | AZ38: 0 | BA38: 0 | BB38: 0 | BC38: 0 | BD38: 0 | BE38: 0 | BF38: 0 | BG38: 0 | BH38: 0
B39: - Total Monthly Expenses (2) | G39: =G26 -> 
B40: = Monthly Cash Flow (+ go to 6, - go to 7) | G40: =G35-G26 -> 
A42: 6 | B42: Uses of Cash Flow (CF)
A43: 6a | B43: Debt Repayment | G43: =IF(AND(AND(G40>0,G56>0),G56>G40),G40,G79) -> 
A44: 6b | B44: + Equity Repayment | G44: =IF(G56>G40,0,G99) -> 
B45: = Total Uses of Monthly CF | G45: =G43+G44 -> 
A47: 7 | B47: Sources of Investment
A48: 7a | B48: Debt | G48: =IF(AND(G45=0,G39>0),($I$4*G18+$I$5*G19+$I$6*G20+$I$7*G21+$I$8*G22+$I$9*G23+$I$10*G24+$I$11*G25)*(-G40)/G39,0) ->  | H48: =IF(AND(H45=0,H39>0),($I$4*H18+$I$5*H19+$I$6*H20+$I$7*H21+$I$8*H22+$I$9*H23+$I$10*H24+$I$11*H25)*(-H40)/H39,0) -> 
A49: 7a | B49: + Owner Equity | G49: =IF(G45=0,G51-G48-G50,0) -> 
A50: 7a | B50: + LHC Construction Loan | G50: =IF(AND(G45=0,G39>0),($J$4*G18+$J$5*G19+$J$6*G20+$J$7*G21+$J$8*G22+$J$9*G23+$J$10*G24+$J$11*G25)*(-G40)/G39,0) ->  | H50: =IF(AND(H45=0,H39>0),($J$4*H18+$J$5*H19+$J$6*H20+$J$7*H21+$J$8*H22+$J$9*H23+$J$10*H24+$J$11*H25)*(-H40)/H39,0) -> 
B51: = Total Sources of Monthly Investment | G51: =IF(G40<0,-G40,0) -> 
A53: INVESTMENT SUMMARY
B55: Outstanding Debt
B56: Previous Month's Outstanding Debt | G56: =F59 -> 0
B57: - CF for Debt Repayment (#6a) | G57: =-G43 -> 
B58: + This Month's Debt Invested (#7a) | G58: =G48 -> 
B59: = OUTSTANDING DEBT | G59: =SUM(G56:G58) -> 
B61: Equity Invested
B62: Previous Month's Outstanding Equity | G62: =F65 -> 0
B63: - CF for Equity Repayment (#6b) | G63: =-G44 -> 
B64: + This Month's Equity Invested (#7b) | G64: =G49 -> 
B65: = EQUITY INVESTED | G65: =SUM(G62:G64) -> 
B67: Project Cash Balance
B68: Cumulative Project Revenue ( #4) | G68: =SUM($F$35:G35) -> 0 | H68: =SUM($F$35:H35) -> 0 | I68: =SUM($F$35:I35) -> 0 | J68: =SUM($F$35:J35) -> 0 | K68: =SUM($F$35:K35) -> 0 | L68: =SUM($F$35:L35) -> 0 | M68: =SUM($F$35:M35) -> 0 | N68: =SUM($F$35:N35) -> 0 | O68: =SUM($F$35:O35) -> 0 | P68: =SUM($F$35:P35) -> 0 | Q68: =SUM($F$35:Q35) -> 0 | R68: =SUM($F$35:R35) -> 0 | S68: =SUM($F$35:S35) -> 0 | T68: =SUM($F$35:T35) -> 0 | U68: =SUM($F$35:U35) -> 0 | V68: =SUM($F$35:V35) -> 0 | W68: =SUM($F$35:W35) -> 0 | X68: =SUM($F$35:X35) -> 0 | Y68: =SUM($F$35:Y35) -> 0 | Z68: =SUM($F$35:Z35) -> 0 | AA68: =SUM($F$35:AA35) -> 0 | AB68: =SUM($F$35:AB35) -> 0 | AC68: =SUM($F$35:AC35) -> 0 | AD68: =SUM($F$35:AD35) -> 0 | AE68: =SUM($F$35:AE35) -> 0 | AF68: =SUM($F$35:AF35) -> 0 | AG68: =SUM($F$35:AG35) -> 0 | AH68: =SUM($F$35:AH35) -> 0 | AI68: =SUM($F$35:AI35) -> 0 | AJ68: =SUM($F$35:AJ35) -> 0 | AK68: =SUM($F$35:AK35) -> 0 | AL68: =SUM($F$35:AL35) -> 0 | AM68: =SUM($F$35:AM35) -> 0 | AN68: =SUM($F$35:AN35) -> 0 | AO68: =SUM($F$35:AO35) -> 0 | AP68: =SUM($F$35:AP35) -> 0 | AQ68: =SUM($F$35:AQ35) -> 0 | AR68: =SUM($F$35:AR35) -> 0 | AS68: =SUM($F$35:AS35) -> 0 | AT68: =SUM($F$35:AT35) -> 0 | AU68: =SUM($F$35:AU35) -> 0 | AV68: =SUM($F$35:AV35) -> 0 | AW68: =SUM($F$35:AW35) -> 0 | AX68: =SUM($F$35:AX35) -> 0 | AY68: =SUM($F$35:AY35) -> 0 | AZ68: =SUM($F$35:AZ35) -> 0 | BA68: =SUM($F$35:BA35) -> 0 | BB68: =SUM($F$35:BB35) -> 0 | BC68: =SUM($F$35:BC35) -> 0 | BD68: =SUM($F$35:BD35) -> 0 | BE68: =SUM($F$35:BE35) -> 0 | BF68: =SUM($F$35:BF35) -> 0 | BG68: =SUM($F$35:BG35) -> 0 | BH68: =SUM($F$35:BH35) -> 0 | BI68: =SUM($F$35:BI35) -> 
B69: - Cumulative Expenses | G69: =G28 ->  | H69: =H28 -> 
B70: + Cumulative LHC Construction Loan Invested | G70: =G50 ->  | H70: =SUM($G50:H50) ->  | I70: =SUM($G50:I50) ->  | J70: =SUM($G50:J50) ->  | K70: =SUM($G50:K50) ->  | L70: =SUM($G50:L50) ->  | M70: =SUM($G50:M50) ->  | N70: =SUM($G50:N50) ->  | O70: =SUM($G50:O50) ->  | P70: =SUM($G50:P50) ->  | Q70: =SUM($G50:Q50) ->  | R70: =SUM($G50:R50) ->  | S70: =SUM($G50:S50) ->  | T70: =SUM($G50:T50) ->  | U70: =SUM($G50:U50) ->  | V70: =SUM($G50:V50) ->  | W70: =SUM($G50:W50) ->  | X70: =SUM($G50:X50) ->  | Y70: =SUM($G50:Y50) ->  | Z70: =SUM($G50:Z50) ->  | AA70: =SUM($G50:AA50) ->  | AB70: =SUM($G50:AB50) ->  | AC70: =SUM($G50:AC50) ->  | AD70: =SUM($G50:AD50) ->  | AE70: =SUM($G50:AE50) ->  | AF70: =SUM($G50:AF50) ->  | AG70: =SUM($G50:AG50) ->  | AH70: =SUM($G50:AH50) ->  | AI70: =SUM($G50:AI50) ->  | AJ70: =SUM($G50:AJ50) ->  | AK70: =SUM($G50:AK50) ->  | AL70: =SUM($G50:AL50) ->  | AM70: =SUM($G50:AM50) ->  | AN70: =SUM($G50:AN50) ->  | AO70: =SUM($G50:AO50) ->  | AP70: =SUM($G50:AP50) ->  | AQ70: =SUM($G50:AQ50) ->  | AR70: =SUM($G50:AR50) ->  | AS70: =SUM($G50:AS50) ->  | AT70: =SUM($G50:AT50) ->  | AU70: =SUM($G50:AU50) ->  | AV70: =SUM($G50:AV50) ->  | AW70: =SUM($G50:AW50) ->  | AX70: =SUM($G50:AX50) ->  | AY70: =SUM($G50:AY50) ->  | AZ70: =SUM($G50:AZ50) ->  | BA70: =SUM($G50:BA50) ->  | BB70: =SUM($G50:BB50) ->  | BC70: =SUM($G50:BC50) ->  | BD70: =SUM($G50:BD50) ->  | BE70: =SUM($G50:BE50) ->  | BF70: =SUM($G50:BF50) ->  | BG70: =SUM($G50:BG50) ->  | BH70: =SUM($G50:BH50) ->  | BI70: =SUM($G50:BI50) -> 
B71: = CASH BALANCE | G71: =G68-G69+G70 ->  | H71: =H68-H69+H70 ->  | I71: =I68-I69+I70 -> 
B78: Do not print below this line
G79: =IF(G40<0,0,G80) -> 
G80: =IF(G40>G56,G56,0) -> 
A81: 1
A82: =1+A81 -> 2
A83: 3
A84: 4
A85: 5
A86: 6
A87: 7
A88: 8
A89: 9
A90: 10
A91: 11
A92: 12
A93: 13
A94: 14
A95: 15
A96: 16
A97: 17
A98: 18
A99: 19 | G99: =IF(AND(G40>0,G62-G40>0),G40-G43,G100) -> 
A100: 20 | G100: =IF(AND(G40>0,G40>(G56+G62)),G62,G40-G56) -> 
A101: 21
A102: 22
A103: 23
A104: 24
A105: 25
A106: 26
A107: 27
A108: 28
A109: 29
A110: 30
A111: 31
A112: 32
A113: 33
A114: 34
A115: 35
A116: 36
A117: 37
A118: 38
A119: 39
A120: 40
A121: 41
A122: 42
A123: 43
A124: 44
A125: 45
A126: 46
A127: 47
A128: 48
A137: DO NOT PRINT BELOW THIS LINE
G139: =IF(F86<0,0,G140) -> 0 | H139: 0 | I139: 0 | J139: 0 | K139: 0 | L139: 0 | M139: 0 | N139: 0 | O139: 0 | P139: 0 | Q139: 0 | R139: 0 | S139: 0 | T139: 0 | U139: 0 | V139: 0 | W139: 0 | X139: 0 | Y139: 0 | Z139: 0 | AA139: 0 | AB139: 0 | AC139: 0 | AD139: 0 | AE139: 0 | AF139: 0 | AG139: 0 | AH139: 0 | AI139: 0 | AJ139: 0 | AK139: 0 | AL139: 0 | AM139: 0 | AN139: 0 | AO139: 0 | AP139: 0 | AQ139: 0 | AR139: 0 | AS139: 0 | AT139: 0 | AU139: 0 | AV139: 0 | AW139: 0 | AX139: 0 | AY139: 0 | AZ139: 0 | BA139: 0 | BB139: 0 | BC139: 0 | BD139: 0 | BE139: 0 | BF139: 0 | BG139: 0 | BH139: 0 | BI139: 0 | BJ139: 0 | BK139: 0 | BL139: 0 | BM139: 0 | BN139: 0 | BO139: 0
G140: =IF(F86>F105,F105,0) -> 0 | H140: =IF(G86>G105,G105,0) -> 0 | I140: 0 | J140: 0 | K140: 0 | L140: 0 | M140: 0 | N140: 0 | O140: 0 | P140: 0 | Q140: 0 | R140: 0 | S140: 0 | T140: 0 | U140: 0 | V140: 0 | W140: 0 | X140: 0 | Y140: 0 | Z140: 0 | AA140: 0 | AB140: 0 | AC140: 0 | AD140: 0 | AE140: 0 | AF140: 0 | AG140: 0 | AH140: 0 | AI140: 0 | AJ140: 0 | AK140: 0 | AL140: 0 | AM140: 0 | AN140: 0 | AO140: 0 | AP140: 0 | AQ140: 0 | AR140: 0 | AS140: 0 | AT140: 0 | AU140: 0 | AV140: 0 | AW140: 0 | AX140: 0 | AY140: 0 | AZ140: 0 | BA140: 0 | BB140: 0 | BC140: 0 | BD140: 0 | BE140: 0 | BF140: 0 | BG140: 0 | BH140: 0 | BI140: 0 | BJ140: 0 | BK140: 0 | BL140: 0 | BM140: 0 | BN140: 0 | BO140: 0
A142: Months to construct | G142: Number under construction
A143: 1 | G143: =G$15 -> 0 | H143: =H15 -> 0 | I143: 0 | J143: 0 | K143: 0 | L143: 0 | M143: 0 | N143: 0 | O143: 0 | P143: 0 | Q143: 0 | R143: 0 | S143: 0 | T143: 0 | U143: 0 | V143: 0 | W143: 0 | X143: 0 | Y143: 0 | Z143: 0 | AA143: 0 | AB143: 0 | AC143: 0 | AD143: 0 | AE143: 0 | AF143: 0 | AG143: 0 | AH143: 0 | AI143: 0 | AJ143: 0 | AK143: 0 | AL143: 0 | AM143: 0 | AN143: 0 | AO143: 0 | AP143: 0 | AQ143: 0 | AR143: 0 | AS143: 0 | AT143: 0 | AU143: 0 | AV143: 0 | AW143: 0 | AX143: 0 | AY143: 0 | AZ143: 0 | BA143: 0 | BB143: 0 | BC143: 0 | BD143: 0 | BE143: 0 | BF143: 0 | BG143: 0 | BH143: 0 | BI143: 0
A144: 2 | G144: 0 | H144: =G15+H15 -> 0 | I144: =H15+I15 -> 0 | J144: 0 | K144: 0 | L144: 0 | M144: 0 | N144: 0 | O144: 0 | P144: 0 | Q144: 0 | R144: 0 | S144: 0 | T144: 0 | U144: 0 | V144: 0 | W144: 0 | X144: 0 | Y144: 0 | Z144: 0 | AA144: 0 | AB144: 0 | AC144: 0 | AD144: 0 | AE144: 0 | AF144: 0 | AG144: 0 | AH144: 0 | AI144: 0 | AJ144: 0 | AK144: 0 | AL144: 0 | AM144: 0 | AN144: 0 | AO144: 0 | AP144: 0 | AQ144: 0 | AR144: 0 | AS144: 0 | AT144: 0 | AU144: 0 | AV144: 0 | AW144: 0 | AX144: 0 | AY144: 0 | AZ144: 0 | BA144: 0 | BB144: 0 | BC144: 0 | BD144: 0 | BE144: =BD15+BE15 -> 0 | BF144: =BE15+BF15 -> 0 | BG144: =BF15+BG15 -> 0 | BH144: =BG15+BH15 -> 0 | BI144: =BH15+BI15 -> 0
A145: 3 | G145: 0 | H145: =G15+H15 -> 0 | I145: =G$15+H$15+I$15 -> 0 | J145: =H15+I15+J15 -> 0 | K145: 0 | L145: 0 | M145: 0 | N145: 0 | O145: 0 | P145: 0 | Q145: 0 | R145: 0 | S145: 0 | T145: 0 | U145: 0 | V145: 0 | W145: 0 | X145: 0 | Y145: 0 | Z145: 0 | AA145: 0 | AB145: 0 | AC145: 0 | AD145: 0 | AE145: 0 | AF145: 0 | AG145: 0 | AH145: 0 | AI145: 0 | AJ145: 0 | AK145: 0 | AL145: 0 | AM145: 0 | AN145: 0 | AO145: 0 | AP145: 0 | AQ145: 0 | AR145: 0 | AS145: 0 | AT145: 0 | AU145: 0 | AV145: 0 | AW145: 0 | AX145: 0 | AY145: 0 | AZ145: 0 | BA145: 0 | BB145: 0 | BC145: 0 | BD145: 0 | BE145: 0 | BF145: =BD15+BE15+BF15 -> 0 | BG145: =BE15+BF15+BG15 -> 0 | BH145: =BF15+BG15+BH15 -> 0 | BI145: =BG15+BH15+BI15 -> 0
A146: 4 | G146: 0 | H146: =G$15+H$15 -> 0 | I146: =G$15+H$15+I$15 -> 0 | J146: =H$15+I$15+J$15+G$15 -> 0 | K146: 0 | L146: 0 | M146: 0 | N146: 0 | O146: 0 | P146: 0 | Q146: 0 | R146: 0 | S146: 0 | T146: 0 | U146: 0 | V146: 0 | W146: 0 | X146: 0 | Y146: 0 | Z146: =X$15+Y$15+Z$15+W$15 -> 0 | AA146: 0 | AB146: 0 | AC146: 0 | AD146: 0 | AE146: 0 | AF146: 0 | AG146: 0 | AH146: 0 | AI146: 0 | AJ146: 0 | AK146: 0 | AL146: 0 | AM146: 0 | AN146: 0 | AO146: 0 | AP146: 0 | AQ146: 0 | AR146: 0 | AS146: 0 | AT146: 0 | AU146: 0 | AV146: 0 | AW146: 0 | AX146: 0 | AY146: 0 | AZ146: 0 | BA146: 0 | BB146: 0 | BC146: 0 | BD146: 0 | BE146: 0 | BF146: 0 | BG146: =BE$15+BF$15+BG$15+BD$15 -> 0 | BH146: =BF$15+BG$15+BH$15+BE$15 -> 0 | BI146: =BG$15+BH$15+BI$15+BF$15 -> 0
A147: 5 | G147: 0 | H147: 0 | I147: 0 | J147: =H$15+I$15+J$15+G$15 -> 0 | K147: =I$15+J$15+K$15+H$15+G$15 -> 0 | L147: =J$15+K$15+L$15+I$15+H$15 -> 0 | M147: 0 | N147: 0 | O147: 0 | P147: 0 | Q147: 0 | R147: 0 | S147: 0 | T147: 0 | U147: 0 | V147: 0 | W147: 0 | X147: 0 | Y147: 0 | Z147: 0 | AA147: 0 | AB147: 0 | AC147: 0 | AD147: 0 | AE147: 0 | AF147: 0 | AG147: 0 | AH147: 0 | AI147: 0 | AJ147: 0 | AK147: 0 | AL147: 0 | AM147: 0 | AN147: 0 | AO147: 0 | AP147: 0 | AQ147: 0 | AR147: 0 | AS147: 0 | AT147: 0 | AU147: 0 | AV147: 0 | AW147: 0 | AX147: 0 | AY147: 0 | AZ147: 0 | BA147: 0 | BB147: 0 | BC147: 0 | BD147: 0 | BE147: 0 | BF147: 0 | BG147: 0 | BH147: =BF$15+BG$15+BH$15+BE$15+BD$15 -> 0 | BI147: =BG$15+BH$15+BI$15+BF$15+BE$15 -> 0
A148: 6 | G148: 0 | H148: 0 | I148: 0 | J148: =H$15+I$15+J$15+G$15 -> 0 | K148: =I$15+J$15+K$15+H$15+G$15 -> 0 | L148: =J$15+K$15+L$15+I$15+H$15+G$15 -> 0 | M148: =K$15+L$15+M$15+J$15+I$15+H$15 -> 0 | N148: 0 | O148: 0 | P148: 0 | Q148: 0 | R148: 0 | S148: 0 | T148: 0 | U148: 0 | V148: 0 | W148: 0 | X148: 0 | Y148: 0 | Z148: 0 | AA148: 0 | AB148: 0 | AC148: 0 | AD148: 0 | AE148: 0 | AF148: 0 | AG148: 0 | AH148: 0 | AI148: 0 | AJ148: 0 | AK148: 0 | AL148: 0 | AM148: 0 | AN148: 0 | AO148: 0 | AP148: 0 | AQ148: 0 | AR148: 0 | AS148: 0 | AT148: 0 | AU148: 0 | AV148: 0 | AW148: 0 | AX148: 0 | AY148: 0 | AZ148: 0 | BA148: 0 | BB148: 0 | BC148: 0 | BD148: 0 | BE148: 0 | BF148: 0 | BG148: 0 | BH148: 0 | BI148: =BG$15+BH$15+BI$15+BF$15+BE$15+BD$15 -> 0
A149: 7 | G149: 0 | H149: 0 | I149: 0 | J149: =H$15+I$15+J$15+G$15 -> 0 | K149: =I$15+J$15+K$15+H$15+G$15 -> 0 | L149: =J$15+K$15+L$15+I$15+H$15+G$15 -> 0 | M149: =K$15+L$15+M$15+J$15+I$15+H$15+G$15 -> 0 | N149: =L$15+M$15+N$15+K$15+J$15+I$15+H$15 -> 0 | O149: 0 | P149: 0 | Q149: 0 | R149: 0 | S149: 0 | T149: 0 | U149: 0 | V149: 0 | W149: 0 | X149: 0 | Y149: 0 | Z149: 0 | AA149: 0 | AB149: 0 | AC149: 0 | AD149: 0 | AE149: 0 | AF149: 0 | AG149: 0 | AH149: 0 | AI149: 0 | AJ149: 0 | AK149: 0 | AL149: 0 | AM149: 0 | AN149: 0 | AO149: 0 | AP149: 0 | AQ149: 0 | AR149: 0 | AS149: 0 | AT149: 0 | AU149: 0 | AV149: 0 | AW149: 0 | AX149: 0 | AY149: 0 | AZ149: 0 | BA149: 0 | BB149: 0 | BC149: 0 | BD149: 0 | BE149: 0 | BF149: 0 | BG149: 0 | BH149: 0 | BI149: 0
A150: 8 | G150: 0 | H150: 0 | I150: 0 | J150: =H$15+I$15+J$15+G$15 -> 0 | K150: =I$15+J$15+K$15+H$15+G$15 -> 0 | L150: =J$15+K$15+L$15+I$15+H$15+G$15 -> 0 | M150: =K$15+L$15+M$15+J$15+I$15+H$15+G$15 -> 0 | N150: =L$15+M$15+N$15+K$15+J$15+I$15+H$15+G$15 -> 0 | O150: =M$15+N$15+O$15+L$15+K$15+J$15+I$15+H$15 -> 0 | P150: 0 | Q150: 0 | R150: 0 | S150: 0 | T150: 0 | U150: 0 | V150: 0 | W150: 0 | X150: 0 | Y150: 0 | Z150: 0 | AA150: 0 | AB150: 0 | AC150: 0 | AD150: 0 | AE150: 0 | AF150: 0 | AG150: 0 | AH150: 0 | AI150: 0 | AJ150: 0 | AK150: 0 | AL150: 0 | AM150: 0 | AN150: 0 | AO150: 0 | AP150: 0 | AQ150: 0 | AR150: 0 | AS150: 0 | AT150: 0 | AU150: 0 | AV150: 0 | AW150: 0 | AX150: 0 | AY150: 0 | AZ150: 0 | BA150: 0 | BB150: 0 | BC150: 0 | BD150: 0 | BE150: 0 | BF150: 0 | BG150: 0 | BH150: 0 | BI150: 0
A151: 9 | G151: 0 | H151: 0 | I151: 0 | J151: =H$15+I$15+J$15+G$15 -> 0 | K151: =I$15+J$15+K$15+H$15+G$15 -> 0 | L151: =J$15+K$15+L$15+I$15+H$15+G$15 -> 0 | M151: =K$15+L$15+M$15+J$15+I$15+H$15+G$15 -> 0 | N151: =L$15+M$15+N$15+K$15+J$15+I$15+H$15+G$15 -> 0 | O151: =M$15+N$15+O$15+L$15+K$15+J$15+I$15+H$15+G$15 -> 0 | P151: =N$15+O$15+P$15+M$15+L$15+K$15+J$15+I$15+H$15 -> 0 | Q151: 0 | R151: 0 | S151: 0 | T151: 0 | U151: 0 | V151: 0 | W151: 0 | X151: 0 | Y151: 0 | Z151: 0 | AA151: 0 | AB151: 0 | AC151: 0 | AD151: 0 | AE151: 0 | AF151: 0 | AG151: 0 | AH151: 0 | AI151: 0 | AJ151: 0 | AK151: 0 | AL151: 0 | AM151: 0 | AN151: 0 | AO151: 0 | AP151: 0 | AQ151: 0 | AR151: 0 | AS151: 0 | AT151: 0 | AU151: 0 | AV151: 0 | AW151: 0 | AX151: 0 | AY151: 0 | AZ151: 0 | BA151: 0 | BB151: 0 | BC151: 0 | BD151: 0 | BE151: 0 | BF151: 0 | BG151: 0 | BH151: 0 | BI151: 0
A153: Construction Costs per month | G153: Costs
A154: 1 | G154: =G143*$D$5/$D$9 -> 
A155: 2
A156: 3
A157: 4
A158: 5 | AP158: =AP147*$D$5/$D$9 -> 
A159: 6 | G159: =G148*$D$5/$D$9 -> 
A160: 7
A161: 8
A162: 9
A166: Number under rehab
A167: 1 | G167: =#REF! ->  | H167: =#REF! ->  | I167: =#REF! ->  | J167: =#REF! ->  | K167: =#REF! ->  | L167: =#REF! ->  | M167: =#REF! ->  | N167: =#REF! ->  | O167: =#REF! ->  | P167: =#REF! ->  | Q167: =#REF! ->  | R167: =#REF! ->  | S167: =#REF! ->  | T167: =#REF! ->  | U167: =#REF! ->  | V167: =#REF! ->  | W167: =#REF! ->  | X167: =#REF! ->  | Y167: =#REF! ->  | Z167: =#REF! ->  | AA167: =#REF! ->  | AB167: =#REF! ->  | AC167: =#REF! ->  | AD167: =#REF! ->  | AE167: =#REF! ->  | AF167: =#REF! ->  | AG167: =#REF! ->  | AH167: =#REF! ->  | AI167: =#REF! ->  | AJ167: =#REF! ->  | AK167: =#REF! ->  | AL167: =#REF! ->  | AM167: =#REF! ->  | AN167: =#REF! ->  | AO167: =#REF! ->  | AP167: =#REF! ->  | AQ167: =#REF! ->  | AR167: =#REF! ->  | AS167: =#REF! ->  | AT167: =#REF! ->  | AU167: =#REF! ->  | AV167: =#REF! ->  | AW167: =#REF! ->  | AX167: =#REF! ->  | AY167: =#REF! ->  | AZ167: =#REF! ->  | BA167: =#REF! ->  | BB167: =#REF! ->  | BC167: =#REF! ->  | BD167: =#REF! ->  | BE167: =#REF! ->  | BF167: =#REF! ->  | BG167: =#REF! ->  | BH167: =#REF! ->  | BI167: =#REF! -> 
A168: 2 | G168: =#REF! ->  | H168: =#REF!+#REF! ->  | I168: =#REF!+#REF! ->  | J168: =#REF!+#REF! ->  | K168: =#REF!+#REF! ->  | L168: =#REF!+#REF! ->  | M168: =#REF!+#REF! ->  | N168: =#REF!+#REF! ->  | O168: =#REF!+#REF! ->  | P168: =#REF!+#REF! ->  | Q168: =#REF!+#REF! ->  | R168: =#REF!+#REF! ->  | S168: =#REF!+#REF! ->  | T168: =#REF!+#REF! ->  | U168: =#REF!+#REF! ->  | V168: =#REF!+#REF! ->  | W168: =#REF!+#REF! ->  | X168: =#REF!+#REF! ->  | Y168: =#REF!+#REF! ->  | Z168: =#REF!+#REF! ->  | AA168: =#REF!+#REF! ->  | AB168: =#REF!+#REF! ->  | AC168: =#REF!+#REF! ->  | AD168: =#REF!+#REF! ->  | AE168: =#REF!+#REF! ->  | AF168: =#REF!+#REF! ->  | AG168: =#REF!+#REF! ->  | AH168: =#REF!+#REF! ->  | AI168: =#REF!+#REF! ->  | AJ168: =#REF!+#REF! ->  | AK168: =#REF!+#REF! ->  | AL168: =#REF!+#REF! ->  | AM168: =#REF!+#REF! ->  | AN168: =#REF!+#REF! ->  | AO168: =#REF!+#REF! ->  | AP168: =#REF!+#REF! ->  | AQ168: =#REF!+#REF! ->  | AR168: =#REF!+#REF! ->  | AS168: =#REF!+#REF! ->  | AT168: =#REF!+#REF! ->  | AU168: =#REF!+#REF! ->  | AV168: =#REF!+#REF! ->  | AW168: =#REF!+#REF! ->  | AX168: =#REF!+#REF! ->  | AY168: =#REF!+#REF! ->  | AZ168: =#REF!+#REF! ->  | BA168: =#REF!+#REF! ->  | BB168: =#REF!+#REF! ->  | BC168: =#REF!+#REF! ->  | BD168: =#REF!+#REF! ->  | BE168: =#REF!+#REF! ->  | BF168: =#REF!+#REF! ->  | BG168: =#REF!+#REF! ->  | BH168: =#REF!+#REF! ->  | BI168: =#REF!+#REF! -> 
A169: 3 | G169: =#REF! ->  | H169: =#REF!+#REF! ->  | I169: =#REF!+#REF!+#REF! ->  | J169: =#REF!+#REF!+#REF! ->  | K169: =#REF!+#REF!+#REF! ->  | L169: =#REF!+#REF!+#REF! ->  | M169: =#REF!+#REF!+#REF! ->  | N169: =#REF!+#REF!+#REF! ->  | O169: =#REF!+#REF!+#REF! ->  | P169: =#REF!+#REF!+#REF! ->  | Q169: =#REF!+#REF!+#REF! ->  | R169: =#REF!+#REF!+#REF! ->  | S169: =#REF!+#REF!+#REF! ->  | T169: =#REF!+#REF!+#REF! ->  | U169: =#REF!+#REF!+#REF! ->  | V169: =#REF!+#REF!+#REF! ->  | W169: =#REF!+#REF!+#REF! ->  | X169: =#REF!+#REF!+#REF! ->  | Y169: =#REF!+#REF!+#REF! ->  | Z169: =#REF!+#REF!+#REF! ->  | AA169: =#REF!+#REF!+#REF! ->  | AB169: =#REF!+#REF!+#REF! ->  | AC169: =#REF!+#REF!+#REF! ->  | AD169: =#REF!+#REF!+#REF! ->  | AE169: =#REF!+#REF!+#REF! ->  | AF169: =#REF!+#REF!+#REF! ->  | AG169: =#REF!+#REF!+#REF! ->  | AH169: =#REF!+#REF!+#REF! ->  | AI169: =#REF!+#REF!+#REF! ->  | AJ169: =#REF!+#REF!+#REF! ->  | AK169: =#REF!+#REF!+#REF! ->  | AL169: =#REF!+#REF!+#REF! ->  | AM169: =#REF!+#REF!+#REF! ->  | AN169: =#REF!+#REF!+#REF! ->  | AO169: =#REF!+#REF!+#REF! ->  | AP169: =#REF!+#REF!+#REF! ->  | AQ169: =#REF!+#REF!+#REF! ->  | AR169: =#REF!+#REF!+#REF! ->  | AS169: =#REF!+#REF!+#REF! ->  | AT169: =#REF!+#REF!+#REF! ->  | AU169: =#REF!+#REF!+#REF! ->  | AV169: =#REF!+#REF!+#REF! ->  | AW169: =#REF!+#REF!+#REF! ->  | AX169: =#REF!+#REF!+#REF! ->  | AY169: =#REF!+#REF!+#REF! ->  | AZ169: =#REF!+#REF!+#REF! ->  | BA169: =#REF!+#REF!+#REF! ->  | BB169: =#REF!+#REF!+#REF! ->  | BC169: =#REF!+#REF!+#REF! ->  | BD169: =#REF!+#REF!+#REF! ->  | BE169: =#REF!+#REF!+#REF! ->  | BF169: =#REF!+#REF!+#REF! ->  | BG169: =#REF!+#REF!+#REF! ->  | BH169: =#REF!+#REF!+#REF! ->  | BI169: =#REF!+#REF!+#REF! -> 
A170: 4 | G170: =#REF! ->  | H170: =#REF!+#REF! ->  | I170: =#REF!+#REF!+#REF! ->  | J170: =#REF!+#REF!+#REF!+#REF! ->  | K170: =#REF!+#REF!+#REF!+#REF! ->  | L170: =#REF!+#REF!+#REF!+#REF! ->  | M170: =#REF!+#REF!+#REF!+#REF! ->  | N170: =#REF!+#REF!+#REF!+#REF! ->  | O170: =#REF!+#REF!+#REF!+#REF! ->  | P170: =#REF!+#REF!+#REF!+#REF! ->  | Q170: =#REF!+#REF!+#REF!+#REF! ->  | R170: =#REF!+#REF!+#REF!+#REF! ->  | S170: =#REF!+#REF!+#REF!+#REF! ->  | T170: =#REF!+#REF!+#REF!+#REF! ->  | U170: =#REF!+#REF!+#REF!+#REF! ->  | V170: =#REF!+#REF!+#REF!+#REF! ->  | W170: =#REF!+#REF!+#REF!+#REF! ->  | X170: =#REF!+#REF!+#REF!+#REF! ->  | Y170: =#REF!+#REF!+#REF!+#REF! ->  | Z170: =#REF!+#REF!+#REF!+#REF! ->  | AA170: =#REF!+#REF!+#REF!+#REF! ->  | AB170: =#REF!+#REF!+#REF!+#REF! ->  | AC170: =#REF!+#REF!+#REF!+#REF! ->  | AD170: =#REF!+#REF!+#REF!+#REF! ->  | AE170: =#REF!+#REF!+#REF!+#REF! ->  | AF170: =#REF!+#REF!+#REF!+#REF! ->  | AG170: =#REF!+#REF!+#REF!+#REF! ->  | AH170: =#REF!+#REF!+#REF!+#REF! ->  | AI170: =#REF!+#REF!+#REF!+#REF! ->  | AJ170: =#REF!+#REF!+#REF!+#REF! ->  | AK170: =#REF!+#REF!+#REF!+#REF! ->  | AL170: =#REF!+#REF!+#REF!+#REF! ->  | AM170: =#REF!+#REF!+#REF!+#REF! ->  | AN170: =#REF!+#REF!+#REF!+#REF! ->  | AO170: =#REF!+#REF!+#REF!+#REF! ->  | AP170: =#REF!+#REF!+#REF!+#REF! ->  | AQ170: =#REF!+#REF!+#REF!+#REF! ->  | AR170: =#REF!+#REF!+#REF!+#REF! ->  | AS170: =#REF!+#REF!+#REF!+#REF! ->  | AT170: =#REF!+#REF!+#REF!+#REF! ->  | AU170: =#REF!+#REF!+#REF!+#REF! ->  | AV170: =#REF!+#REF!+#REF!+#REF! ->  | AW170: =#REF!+#REF!+#REF!+#REF! ->  | AX170: =#REF!+#REF!+#REF!+#REF! ->  | AY170: =#REF!+#REF!+#REF!+#REF! ->  | AZ170: =#REF!+#REF!+#REF!+#REF! ->  | BA170: =#REF!+#REF!+#REF!+#REF! ->  | BB170: =#REF!+#REF!+#REF!+#REF! ->  | BC170: =#REF!+#REF!+#REF!+#REF! ->  | BD170: =#REF!+#REF!+#REF!+#REF! ->  | BE170: =#REF!+#REF!+#REF!+#REF! ->  | BF170: =#REF!+#REF!+#REF!+#REF! ->  | BG170: =#REF!+#REF!+#REF!+#REF! ->  | BH170: =#REF!+#REF!+#REF!+#REF! ->  | BI170: =#REF!+#REF!+#REF!+#REF! -> 
A171: 5 | G171: =#REF! ->  | H171: =#REF!+#REF! ->  | I171: =#REF!+#REF!+#REF! ->  | J171: =#REF!+#REF!+#REF!+#REF! ->  | K171: =#REF!+#REF!+#REF!+#REF!+#REF! ->  | L171: =#REF!+#REF!+#REF!+#REF!+#REF! ->  | M171: =#REF!+#REF!+#REF!+#REF!+#REF! ->  | N171: =#REF!+#REF!+#REF!+#REF!+#REF! ->  | O171: =#REF!+#REF!+#REF!+#REF!+#REF! ->  | P171: =#REF!+#REF!+#REF!+#REF!+#REF! ->  | Q171: =#REF!+#REF!+#REF!+#REF!+#REF! ->  | R171: =#REF!+#REF!+#REF!+#REF!+#REF! ->  | S171: =#REF!+#REF!+#REF!+#REF!+#REF! ->  | T171: =#REF!+#REF!+#REF!+#REF!+#REF! ->  | U171: =#REF!+#REF!+#REF!+#REF!+#REF! ->  | V171: =#REF!+#REF!+#REF!+#REF!+#REF! ->  | W171: =#REF!+#REF!+#REF!+#REF!+#REF! ->  | X171: =#REF!+#REF!+#REF!+#REF!+#REF! ->  | Y171: =#REF!+#REF!+#REF!+#REF!+#REF! ->  | Z171: =#REF!+#REF!+#REF!+#REF!+#REF! ->  | AA171: =#REF!+#REF!+#REF!+#REF!+#REF! ->  | AB171: =#REF!+#REF!+#REF!+#REF!+#REF! ->  | AC171: =#REF!+#REF!+#REF!+#REF!+#REF! ->  | AD171: =#REF!+#REF!+#REF!+#REF!+#REF! ->  | AE171: =#REF!+#REF!+#REF!+#REF!+#REF! ->  | AF171: =#REF!+#REF!+#REF!+#REF!+#REF! ->  | AG171: =#REF!+#REF!+#REF!+#REF!+#REF! ->  | AH171: =#REF!+#REF!+#REF!+#REF!+#REF! ->  | AI171: =#REF!+#REF!+#REF!+#REF!+#REF! ->  | AJ171: =#REF!+#REF!+#REF!+#REF!+#REF! ->  | AK171: =#REF!+#REF!+#REF!+#REF!+#REF! ->  | AL171: =#REF!+#REF!+#REF!+#REF!+#REF! ->  | AM171: =#REF!+#REF!+#REF!+#REF!+#REF! ->  | AN171: =#REF!+#REF!+#REF!+#REF!+#REF! ->  | AO171: =#REF!+#REF!+#REF!+#REF!+#REF! ->  | AP171: =#REF!+#REF!+#REF!+#REF!+#REF! ->  | AQ171: =#REF!+#REF!+#REF!+#REF!+#REF! ->  | AR171: =#REF!+#REF!+#REF!+#REF!+#REF! ->  | AS171: =#REF!+#REF!+#REF!+#REF!+#REF! ->  | AT171: =#REF!+#REF!+#REF!+#REF!+#REF! ->  | AU171: =#REF!+#REF!+#REF!+#REF!+#REF! ->  | AV171: =#REF!+#REF!+#REF!+#REF!+#REF! ->  | AW171: =#REF!+#REF!+#REF!+#REF!+#REF! ->  | AX171: =#REF!+#REF!+#REF!+#REF!+#REF! ->  | AY171: =#REF!+#REF!+#REF!+#REF!+#REF! ->  | AZ171: =#REF!+#REF!+#REF!+#REF!+#REF! ->  | BA171: =#REF!+#REF!+#REF!+#REF!+#REF! ->  | BB171: =#REF!+#REF!+#REF!+#REF!+#REF! ->  | BC171: =#REF!+#REF!+#REF!+#REF!+#REF! ->  | BD171: =#REF!+#REF!+#REF!+#REF!+#REF! ->  | BE171: =#REF!+#REF!+#REF!+#REF!+#REF! ->  | BF171: =#REF!+#REF!+#REF!+#REF!+#REF! ->  | BG171: =#REF!+#REF!+#REF!+#REF!+#REF! ->  | BH171: =#REF!+#REF!+#REF!+#REF!+#REF! ->  | BI171: =#REF!+#REF!+#REF!+#REF!+#REF! -> 
A172: 6 | G172: =#REF! ->  | H172: =#REF!+#REF! ->  | I172: =#REF!+#REF!+#REF! ->  | J172: =#REF!+#REF!+#REF!+#REF! ->  | K172: =#REF!+#REF!+#REF!+#REF!+#REF! ->  | L172: =#REF!+#REF!+#REF!+#REF!+#REF!+#REF! ->  | M172: =#REF!+#REF!+#REF!+#REF!+#REF!+#REF! ->  | N172: =#REF!+#REF!+#REF!+#REF!+#REF!+#REF! ->  | O172: =#REF!+#REF!+#REF!+#REF!+#REF!+#REF! ->  | P172: =#REF!+#REF!+#REF!+#REF!+#REF!+#REF! ->  | Q172: =#REF!+#REF!+#REF!+#REF!+#REF!+#REF! ->  | R172: =#REF!+#REF!+#REF!+#REF!+#REF!+#REF! ->  | S172: =#REF!+#REF!+#REF!+#REF!+#REF!+#REF! ->  | T172: =#REF!+#REF!+#REF!+#REF!+#REF!+#REF! ->  | U172: =#REF!+#REF!+#REF!+#REF!+#REF!+#REF! ->  | V172: =#REF!+#REF!+#REF!+#REF!+#REF!+#REF! ->  | W172: =#REF!+#REF!+#REF!+#REF!+#REF!+#REF! ->  | X172: =#REF!+#REF!+#REF!+#REF!+#REF!+#REF! ->  | Y172: =#REF!+#REF!+#REF!+#REF!+#REF!+#REF! ->  | Z172: =#REF!+#REF!+#REF!+#REF!+#REF!+#REF! ->  | AA172: =#REF!+#REF!+#REF!+#REF!+#REF!+#REF! ->  | AB172: =#REF!+#REF!+#REF!+#REF!+#REF!+#REF! ->  | AC172: =#REF!+#REF!+#REF!+#REF!+#REF!+#REF! ->  | AD172: =#REF!+#REF!+#REF!+#REF!+#REF!+#REF! ->  | AE172: =#REF!+#REF!+#REF!+#REF!+#REF!+#REF! ->  | AF172: =#REF!+#REF!+#REF!+#REF!+#REF!+#REF! ->  | AG172: =#REF!+#REF!+#REF!+#REF!+#REF!+#REF! ->  | AH172: =#REF!+#REF!+#REF!+#REF!+#REF!+#REF! ->  | AI172: =#REF!+#REF!+#REF!+#REF!+#REF!+#REF! ->  | AJ172: =#REF!+#REF!+#REF!+#REF!+#REF!+#REF! ->  | AK172: =#REF!+#REF!+#REF!+#REF!+#REF!+#REF! ->  | AL172: =#REF!+#REF!+#REF!+#REF!+#REF!+#REF! ->  | AM172: =#REF!+#REF!+#REF!+#REF!+#REF!+#REF! ->  | AN172: =#REF!+#REF!+#REF!+#REF!+#REF!+#REF! ->  | AO172: =#REF!+#REF!+#REF!+#REF!+#REF!+#REF! ->  | AP172: =#REF!+#REF!+#REF!+#REF!+#REF!+#REF! ->  | AQ172: =#REF!+#REF!+#REF!+#REF!+#REF!+#REF! ->  | AR172: =#REF!+#REF!+#REF!+#REF!+#REF!+#REF! ->  | AS172: =#REF!+#REF!+#REF!+#REF!+#REF!+#REF! ->  | AT172: =#REF!+#REF!+#REF!+#REF!+#REF!+#REF! ->  | AU172: =#REF!+#REF!+#REF!+#REF!+#REF!+#REF! ->  | AV172: =#REF!+#REF!+#REF!+#REF!+#REF!+#REF! ->  | AW172: =#REF!+#REF!+#REF!+#REF!+#REF!+#REF! ->  | AX172: =#REF!+#REF!+#REF!+#REF!+#REF!+#REF! ->  | AY172: =#REF!+#REF!+#REF!+#REF!+#REF!+#REF! ->  | AZ172: =#REF!+#REF!+#REF!+#REF!+#REF!+#REF! ->  | BA172: =#REF!+#REF!+#REF!+#REF!+#REF!+#REF! ->  | BB172: =#REF!+#REF!+#REF!+#REF!+#REF!+#REF! ->  | BC172: =#REF!+#REF!+#REF!+#REF!+#REF!+#REF! ->  | BD172: =#REF!+#REF!+#REF!+#REF!+#REF!+#REF! ->  | BE172: =#REF!+#REF!+#REF!+#REF!+#REF!+#REF! ->  | BF172: =#REF!+#REF!+#REF!+#REF!+#REF!+#REF! ->  | BG172: =#REF!+#REF!+#REF!+#REF!+#REF!+#REF! ->  | BH172: =#REF!+#REF!+#REF!+#REF!+#REF!+#REF! ->  | BI172: =#REF!+#REF!+#REF!+#REF!+#REF!+#REF! -> 
A173: 7 | G173: =#REF! ->  | H173: =#REF!+#REF! ->  | I173: =#REF!+#REF!+#REF! ->  | J173: =#REF!+#REF!+#REF!+#REF! ->  | K173: =#REF!+#REF!+#REF!+#REF!+#REF! ->  | L173: =#REF!+#REF!+#REF!+#REF!+#REF!+#REF! ->  | M173: =#REF!+#REF!+#REF!+#REF!+#REF!+#REF!+#REF! ->  | N173: =#REF!+#REF!+#REF!+#REF!+#REF!+#REF!+#REF! ->  | O173: =#REF!+#REF!+#REF!+#REF!+#REF!+#REF!+#REF! ->  | P173: =#REF!+#REF!+#REF!+#REF!+#REF!+#REF!+#REF! ->  | Q173: =#REF!+#REF!+#REF!+#REF!+#REF!+#REF!+#REF! ->  | R173: =#REF!+#REF!+#REF!+#REF!+#REF!+#REF!+#REF! ->  | S173: =#REF!+#REF!+#REF!+#REF!+#REF!+#REF!+#REF! ->  | T173: =#REF!+#REF!+#REF!+#REF!+#REF!+#REF!+#REF! ->  | U173: =#REF!+#REF!+#REF!+#REF!+#REF!+#REF!+#REF! ->  | V173: =#REF!+#REF!+#REF!+#REF!+#REF!+#REF!+#REF! ->  | W173: =#REF!+#REF!+#REF!+#REF!+#REF!+#REF!+#REF! ->  | X173: =#REF!+#REF!+#REF!+#REF!+#REF!+#REF!+#REF! ->  | Y173: =#REF!+#REF!+#REF!+#REF!+#REF!+#REF!+#REF! ->  | Z173: =#REF!+#REF!+#REF!+#REF!+#REF!+#REF!+#REF! ->  | AA173: =#REF!+#REF!+#REF!+#REF!+#REF!+#REF!+#REF! ->  | AB173: =#REF!+#REF!+#REF!+#REF!+#REF!+#REF!+#REF! ->  | AC173: =#REF!+#REF!+#REF!+#REF!+#REF!+#REF!+#REF! ->  | AD173: =#REF!+#REF!+#REF!+#REF!+#REF!+#REF!+#REF! ->  | AE173: =#REF!+#REF!+#REF!+#REF!+#REF!+#REF!+#REF! ->  | AF173: =#REF!+#REF!+#REF!+#REF!+#REF!+#REF!+#REF! ->  | AG173: =#REF!+#REF!+#REF!+#REF!+#REF!+#REF!+#REF! ->  | AH173: =#REF!+#REF!+#REF!+#REF!+#REF!+#REF!+#REF! ->  | AI173: =#REF!+#REF!+#REF!+#REF!+#REF!+#REF!+#REF! ->  | AJ173: =#REF!+#REF!+#REF!+#REF!+#REF!+#REF!+#REF! ->  | AK173: =#REF!+#REF!+#REF!+#REF!+#REF!+#REF!+#REF! ->  | AL173: =#REF!+#REF!+#REF!+#REF!+#REF!+#REF!+#REF! ->  | AM173: =#REF!+#REF!+#REF!+#REF!+#REF!+#REF!+#REF! ->  | AN173: =#REF!+#REF!+#REF!+#REF!+#REF!+#REF!+#REF! ->  | AO173: =#REF!+#REF!+#REF!+#REF!+#REF!+#REF!+#REF! ->  | AP173: =#REF!+#REF!+#REF!+#REF!+#REF!+#REF!+#REF! ->  | AQ173: =#REF!+#REF!+#REF!+#REF!+#REF!+#REF!+#REF! ->  | AR173: =#REF!+#REF!+#REF!+#REF!+#REF!+#REF!+#REF! ->  | AS173: =#REF!+#REF!+#REF!+#REF!+#REF!+#REF!+#REF! ->  | AT173: =#REF!+#REF!+#REF!+#REF!+#REF!+#REF!+#REF! ->  | AU173: =#REF!+#REF!+#REF!+#REF!+#REF!+#REF!+#REF! ->  | AV173: =#REF!+#REF!+#REF!+#REF!+#REF!+#REF!+#REF! ->  | AW173: =#REF!+#REF!+#REF!+#REF!+#REF!+#REF!+#REF! ->  | AX173: =#REF!+#REF!+#REF!+#REF!+#REF!+#REF!+#REF! ->  | AY173: =#REF!+#REF!+#REF!+#REF!+#REF!+#REF!+#REF! ->  | AZ173: =#REF!+#REF!+#REF!+#REF!+#REF!+#REF!+#REF! ->  | BA173: =#REF!+#REF!+#REF!+#REF!+#REF!+#REF!+#REF! ->  | BB173: =#REF!+#REF!+#REF!+#REF!+#REF!+#REF!+#REF! ->  | BC173: =#REF!+#REF!+#REF!+#REF!+#REF!+#REF!+#REF! ->  | BD173: =#REF!+#REF!+#REF!+#REF!+#REF!+#REF!+#REF! ->  | BE173: =#REF!+#REF!+#REF!+#REF!+#REF!+#REF!+#REF! ->  | BF173: =#REF!+#REF!+#REF!+#REF!+#REF!+#REF!+#REF! ->  | BG173: =#REF!+#REF!+#REF!+#REF!+#REF!+#REF!+#REF! ->  | BH173: =#REF!+#REF!+#REF!+#REF!+#REF!+#REF!+#REF! ->  | BI173: =#REF!+#REF!+#REF!+#REF!+#REF!+#REF!+#REF! -> 
A174: 8 | G174: =#REF! ->  | H174: =#REF!+#REF! ->  | I174: =#REF!+#REF!+#REF! ->  | J174: =#REF!+#REF!+#REF!+#REF! ->  | K174: =#REF!+#REF!+#REF!+#REF!+#REF! ->  | L174: =#REF!+#REF!+#REF!+#REF!+#REF!+#REF! ->  | M174: =#REF!+#REF!+#REF!+#REF!+#REF!+#REF!+#REF! ->  | N174: =#REF!+#REF!+#REF!+#REF!+#REF!+#REF!+#REF!+#REF! ->  | O174: =#REF!+#REF!+#REF!+#REF!+#REF!+#REF!+#REF!+#REF! ->  | P174: =#REF!+#REF!+#REF!+#REF!+#REF!+#REF!+#REF!+#REF! ->  | Q174: =#REF!+#REF!+#REF!+#REF!+#REF!+#REF!+#REF!+#REF! ->  | R174: =#REF!+#REF!+#REF!+#REF!+#REF!+#REF!+#REF!+#REF! ->  | S174: =#REF!+#REF!+#REF!+#REF!+#REF!+#REF!+#REF!+#REF! ->  | T174: =#REF!+#REF!+#REF!+#REF!+#REF!+#REF!+#REF!+#REF! ->  | U174: =#REF!+#REF!+#REF!+#REF!+#REF!+#REF!+#REF!+#REF! ->  | V174: =#REF!+#REF!+#REF!+#REF!+#REF!+#REF!+#REF!+#REF! ->  | W174: =#REF!+#REF!+#REF!+#REF!+#REF!+#REF!+#REF!+#REF! ->  | X174: =#REF!+#REF!+#REF!+#REF!+#REF!+#REF!+#REF!+#REF! ->  | Y174: =#REF!+#REF!+#REF!+#REF!+#REF!+#REF!+#REF!+#REF! ->  | Z174: =#REF!+#REF!+#REF!+#REF!+#REF!+#REF!+#REF!+#REF! ->  | AA174: =#REF!+#REF!+#REF!+#REF!+#REF!+#REF!+#REF!+#REF! ->  | AB174: =#REF!+#REF!+#REF!+#REF!+#REF!+#REF!+#REF!+#REF! ->  | AC174: =#REF!+#REF!+#REF!+#REF!+#REF!+#REF!+#REF!+#REF! ->  | AD174: =#REF!+#REF!+#REF!+#REF!+#REF!+#REF!+#REF!+#REF! ->  | AE174: =#REF!+#REF!+#REF!+#REF!+#REF!+#REF!+#REF!+#REF! ->  | AF174: =#REF!+#REF!+#REF!+#REF!+#REF!+#REF!+#REF!+#REF! ->  | AG174: =#REF!+#REF!+#REF!+#REF!+#REF!+#REF!+#REF!+#REF! ->  | AH174: =#REF!+#REF!+#REF!+#REF!+#REF!+#REF!+#REF!+#REF! ->  | AI174: =#REF!+#REF!+#REF!+#REF!+#REF!+#REF!+#REF!+#REF! ->  | AJ174: =#REF!+#REF!+#REF!+#REF!+#REF!+#REF!+#REF!+#REF! ->  | AK174: =#REF!+#REF!+#REF!+#REF!+#REF!+#REF!+#REF!+#REF! ->  | AL174: =#REF!+#REF!+#REF!+#REF!+#REF!+#REF!+#REF!+#REF! ->  | AM174: =#REF!+#REF!+#REF!+#REF!+#REF!+#REF!+#REF!+#REF! ->  | AN174: =#REF!+#REF!+#REF!+#REF!+#REF!+#REF!+#REF!+#REF! ->  | AO174: =#REF!+#REF!+#REF!+#REF!+#REF!+#REF!+#REF!+#REF! ->  | AP174: =#REF!+#REF!+#REF!+#REF!+#REF!+#REF!+#REF!+#REF! ->  | AQ174: =#REF!+#REF!+#REF!+#REF!+#REF!+#REF!+#REF!+#REF! ->  | AR174: =#REF!+#REF!+#REF!+#REF!+#REF!+#REF!+#REF!+#REF! ->  | AS174: =#REF!+#REF!+#REF!+#REF!+#REF!+#REF!+#REF!+#REF! ->  | AT174: =#REF!+#REF!+#REF!+#REF!+#REF!+#REF!+#REF!+#REF! ->  | AU174: =#REF!+#REF!+#REF!+#REF!+#REF!+#REF!+#REF!+#REF! ->  | AV174: =#REF!+#REF!+#REF!+#REF!+#REF!+#REF!+#REF!+#REF! ->  | AW174: =#REF!+#REF!+#REF!+#REF!+#REF!+#REF!+#REF!+#REF! ->  | AX174: =#REF!+#REF!+#REF!+#REF!+#REF!+#REF!+#REF!+#REF! ->  | AY174: =#REF!+#REF!+#REF!+#REF!+#REF!+#REF!+#REF!+#REF! ->  | AZ174: =#REF!+#REF!+#REF!+#REF!+#REF!+#REF!+#REF!+#REF! ->  | BA174: =#REF!+#REF!+#REF!+#REF!+#REF!+#REF!+#REF!+#REF! ->  | BB174: =#REF!+#REF!+#REF!+#REF!+#REF!+#REF!+#REF!+#REF! ->  | BC174: =#REF!+#REF!+#REF!+#REF!+#REF!+#REF!+#REF!+#REF! ->  | BD174: =#REF!+#REF!+#REF!+#REF!+#REF!+#REF!+#REF!+#REF! ->  | BE174: =#REF!+#REF!+#REF!+#REF!+#REF!+#REF!+#REF!+#REF! ->  | BF174: =#REF!+#REF!+#REF!+#REF!+#REF!+#REF!+#REF!+#REF! ->  | BG174: =#REF!+#REF!+#REF!+#REF!+#REF!+#REF!+#REF!+#REF! ->  | BH174: =#REF!+#REF!+#REF!+#REF!+#REF!+#REF!+#REF!+#REF! ->  | BI174: =#REF!+#REF!+#REF!+#REF!+#REF!+#REF!+#REF!+#REF! -> 
A175: 9 | G175: =#REF! ->  | H175: =#REF!+#REF! ->  | I175: =#REF!+#REF!+#REF! ->  | J175: =#REF!+#REF!+#REF!+#REF! ->  | K175: =#REF!+#REF!+#REF!+#REF!+#REF! ->  | L175: =#REF!+#REF!+#REF!+#REF!+#REF!+#REF! ->  | M175: =#REF!+#REF!+#REF!+#REF!+#REF!+#REF!+#REF! ->  | N175: =#REF!+#REF!+#REF!+#REF!+#REF!+#REF!+#REF!+#REF! ->  | O175: =#REF!+#REF!+#REF!+#REF!+#REF!+#REF!+#REF!+#REF!+#REF! ->  | P175: =#REF!+#REF!+#REF!+#REF!+#REF!+#REF!+#REF!+#REF!+#REF! ->  | Q175: =#REF!+#REF!+#REF!+#REF!+#REF!+#REF!+#REF!+#REF!+#REF! ->  | R175: =#REF!+#REF!+#REF!+#REF!+#REF!+#REF!+#REF!+#REF!+#REF! ->  | S175: =#REF!+#REF!+#REF!+#REF!+#REF!+#REF!+#REF!+#REF!+#REF! ->  | T175: =#REF!+#REF!+#REF!+#REF!+#REF!+#REF!+#REF!+#REF!+#REF! ->  | U175: =#REF!+#REF!+#REF!+#REF!+#REF!+#REF!+#REF!+#REF!+#REF! ->  | V175: =#REF!+#REF!+#REF!+#REF!+#REF!+#REF!+#REF!+#REF!+#REF! ->  | W175: =#REF!+#REF!+#REF!+#REF!+#REF!+#REF!+#REF!+#REF!+#REF! ->  | X175: =#REF!+#REF!+#REF!+#REF!+#REF!+#REF!+#REF!+#REF!+#REF! ->  | Y175: =#REF!+#REF!+#REF!+#REF!+#REF!+#REF!+#REF!+#REF!+#REF! ->  | Z175: =#REF!+#REF!+#REF!+#REF!+#REF!+#REF!+#REF!+#REF!+#REF! ->  | AA175: =#REF!+#REF!+#REF!+#REF!+#REF!+#REF!+#REF!+#REF!+#REF! ->  | AB175: =#REF!+#REF!+#REF!+#REF!+#REF!+#REF!+#REF!+#REF!+#REF! ->  | AC175: =#REF!+#REF!+#REF!+#REF!+#REF!+#REF!+#REF!+#REF!+#REF! ->  | AD175: =#REF!+#REF!+#REF!+#REF!+#REF!+#REF!+#REF!+#REF!+#REF! ->  | AE175: =#REF!+#REF!+#REF!+#REF!+#REF!+#REF!+#REF!+#REF!+#REF! ->  | AF175: =#REF!+#REF!+#REF!+#REF!+#REF!+#REF!+#REF!+#REF!+#REF! ->  | AG175: =#REF!+#REF!+#REF!+#REF!+#REF!+#REF!+#REF!+#REF!+#REF! ->  | AH175: =#REF!+#REF!+#REF!+#REF!+#REF!+#REF!+#REF!+#REF!+#REF! ->  | AI175: =#REF!+#REF!+#REF!+#REF!+#REF!+#REF!+#REF!+#REF!+#REF! ->  | AJ175: =#REF!+#REF!+#REF!+#REF!+#REF!+#REF!+#REF!+#REF!+#REF! ->  | AK175: =#REF!+#REF!+#REF!+#REF!+#REF!+#REF!+#REF!+#REF!+#REF! ->  | AL175: =#REF!+#REF!+#REF!+#REF!+#REF!+#REF!+#REF!+#REF!+#REF! ->  | AM175: =#REF!+#REF!+#REF!+#REF!+#REF!+#REF!+#REF!+#REF!+#REF! ->  | AN175: =#REF!+#REF!+#REF!+#REF!+#REF!+#REF!+#REF!+#REF!+#REF! ->  | AO175: =#REF!+#REF!+#REF!+#REF!+#REF!+#REF!+#REF!+#REF!+#REF! ->  | AP175: =#REF!+#REF!+#REF!+#REF!+#REF!+#REF!+#REF!+#REF!+#REF! ->  | AQ175: =#REF!+#REF!+#REF!+#REF!+#REF!+#REF!+#REF!+#REF!+#REF! ->  | AR175: =#REF!+#REF!+#REF!+#REF!+#REF!+#REF!+#REF!+#REF!+#REF! ->  | AS175: =#REF!+#REF!+#REF!+#REF!+#REF!+#REF!+#REF!+#REF!+#REF! ->  | AT175: =#REF!+#REF!+#REF!+#REF!+#REF!+#REF!+#REF!+#REF!+#REF! ->  | AU175: =#REF!+#REF!+#REF!+#REF!+#REF!+#REF!+#REF!+#REF!+#REF! ->  | AV175: =#REF!+#REF!+#REF!+#REF!+#REF!+#REF!+#REF!+#REF!+#REF! ->  | AW175: =#REF!+#REF!+#REF!+#REF!+#REF!+#REF!+#REF!+#REF!+#REF! ->  | AX175: =#REF!+#REF!+#REF!+#REF!+#REF!+#REF!+#REF!+#REF!+#REF! ->  | AY175: =#REF!+#REF!+#REF!+#REF!+#REF!+#REF!+#REF!+#REF!+#REF! ->  | AZ175: =#REF!+#REF!+#REF!+#REF!+#REF!+#REF!+#REF!+#REF!+#REF! ->  | BA175: =#REF!+#REF!+#REF!+#REF!+#REF!+#REF!+#REF!+#REF!+#REF! ->  | BB175: =#REF!+#REF!+#REF!+#REF!+#REF!+#REF!+#REF!+#REF!+#REF! ->  | BC175: =#REF!+#REF!+#REF!+#REF!+#REF!+#REF!+#REF!+#REF!+#REF! ->  | BD175: =#REF!+#REF!+#REF!+#REF!+#REF!+#REF!+#REF!+#REF!+#REF! ->  | BE175: =#REF!+#REF!+#REF!+#REF!+#REF!+#REF!+#REF!+#REF!+#REF! ->  | BF175: =#REF!+#REF!+#REF!+#REF!+#REF!+#REF!+#REF!+#REF!+#REF! ->  | BG175: =#REF!+#REF!+#REF!+#REF!+#REF!+#REF!+#REF!+#REF!+#REF! ->  | BH175: =#REF!+#REF!+#REF!+#REF!+#REF!+#REF!+#REF!+#REF!+#REF! ->  | BI175: =#REF!+#REF!+#REF!+#REF!+#REF!+#REF!+#REF!+#REF!+#REF! -> 
A178: Rehabilitation Cost
A179: 1 | B179: Cost | G179: =G167*#REF!/#REF! ->  | H179: =H167*#REF!/#REF! ->  | I179: =I167*#REF!/#REF! ->  | J179: =J167*#REF!/#REF! ->  | K179: =K167*#REF!/#REF! ->  | L179: =L167*#REF!/#REF! ->  | M179: =M167*#REF!/#REF! ->  | N179: =N167*#REF!/#REF! ->  | O179: =O167*#REF!/#REF! ->  | P179: =P167*#REF!/#REF! ->  | Q179: =Q167*#REF!/#REF! ->  | R179: =R167*#REF!/#REF! ->  | S179: =S167*#REF!/#REF! ->  | T179: =T167*#REF!/#REF! ->  | U179: =U167*#REF!/#REF! ->  | V179: =V167*#REF!/#REF! ->  | W179: =W167*#REF!/#REF! ->  | X179: =X167*#REF!/#REF! ->  | Y179: =Y167*#REF!/#REF! ->  | Z179: =Z167*#REF!/#REF! ->  | AA179: =AA167*#REF!/#REF! ->  | AB179: =AB167*#REF!/#REF! ->  | AC179: =AC167*#REF!/#REF! ->  | AD179: =AD167*#REF!/#REF! ->  | AE179: =AE167*#REF!/#REF! ->  | AF179: =AF167*#REF!/#REF! ->  | AG179: =AG167*#REF!/#REF! ->  | AH179: =AH167*#REF!/#REF! ->  | AI179: =AI167*#REF!/#REF! ->  | AJ179: =AJ167*#REF!/#REF! ->  | AK179: =AK167*#REF!/#REF! ->  | AL179: =AL167*#REF!/#REF! ->  | AM179: =AM167*#REF!/#REF! ->  | AN179: =AN167*#REF!/#REF! ->  | AO179: =AO167*#REF!/#REF! ->  | AP179: =AP167*#REF!/#REF! ->  | AQ179: =AQ167*#REF!/#REF! ->  | AR179: =AR167*#REF!/#REF! ->  | AS179: =AS167*#REF!/#REF! ->  | AT179: =AT167*#REF!/#REF! ->  | AU179: =AU167*#REF!/#REF! ->  | AV179: =AV167*#REF!/#REF! ->  | AW179: =AW167*#REF!/#REF! ->  | AX179: =AX167*#REF!/#REF! ->  | AY179: =AY167*#REF!/#REF! ->  | AZ179: =AZ167*#REF!/#REF! ->  | BA179: =BA167*#REF!/#REF! ->  | BB179: =BB167*#REF!/#REF! ->  | BC179: =BC167*#REF!/#REF! ->  | BD179: =BD167*#REF!/#REF! ->  | BE179: =BE167*#REF!/#REF! ->  | BF179: =BF167*#REF!/#REF! ->  | BG179: =BG167*#REF!/#REF! ->  | BH179: =BH167*#REF!/#REF! ->  | BI179: =BI167*#REF!/#REF! -> 
A180: 2 | B180: Cost | G180: =G168*#REF!/#REF! ->  | H180: =H168*#REF!/#REF! ->  | I180: =I168*#REF!/#REF! ->  | J180: =J168*#REF!/#REF! ->  | K180: =K168*#REF!/#REF! ->  | L180: =L168*#REF!/#REF! ->  | M180: =M168*#REF!/#REF! ->  | N180: =N168*#REF!/#REF! ->  | O180: =O168*#REF!/#REF! ->  | P180: =P168*#REF!/#REF! ->  | Q180: =Q168*#REF!/#REF! ->  | R180: =R168*#REF!/#REF! ->  | S180: =S168*#REF!/#REF! ->  | T180: =T168*#REF!/#REF! ->  | U180: =U168*#REF!/#REF! ->  | V180: =V168*#REF!/#REF! ->  | W180: =W168*#REF!/#REF! ->  | X180: =X168*#REF!/#REF! ->  | Y180: =Y168*#REF!/#REF! ->  | Z180: =Z168*#REF!/#REF! ->  | AA180: =AA168*#REF!/#REF! ->  | AB180: =AB168*#REF!/#REF! ->  | AC180: =AC168*#REF!/#REF! ->  | AD180: =AD168*#REF!/#REF! ->  | AE180: =AE168*#REF!/#REF! ->  | AF180: =AF168*#REF!/#REF! ->  | AG180: =AG168*#REF!/#REF! ->  | AH180: =AH168*#REF!/#REF! ->  | AI180: =AI168*#REF!/#REF! ->  | AJ180: =AJ168*#REF!/#REF! ->  | AK180: =AK168*#REF!/#REF! ->  | AL180: =AL168*#REF!/#REF! ->  | AM180: =AM168*#REF!/#REF! ->  | AN180: =AN168*#REF!/#REF! ->  | AO180: =AO168*#REF!/#REF! ->  | AP180: =AP168*#REF!/#REF! ->  | AQ180: =AQ168*#REF!/#REF! ->  | AR180: =AR168*#REF!/#REF! ->  | AS180: =AS168*#REF!/#REF! ->  | AT180: =AT168*#REF!/#REF! ->  | AU180: =AU168*#REF!/#REF! ->  | AV180: =AV168*#REF!/#REF! ->  | AW180: =AW168*#REF!/#REF! ->  | AX180: =AX168*#REF!/#REF! ->  | AY180: =AY168*#REF!/#REF! ->  | AZ180: =AZ168*#REF!/#REF! ->  | BA180: =BA168*#REF!/#REF! ->  | BB180: =BB168*#REF!/#REF! ->  | BC180: =BC168*#REF!/#REF! ->  | BD180: =BD168*#REF!/#REF! ->  | BE180: =BE168*#REF!/#REF! ->  | BF180: =BF168*#REF!/#REF! ->  | BG180: =BG168*#REF!/#REF! ->  | BH180: =BH168*#REF!/#REF! ->  | BI180: =BI168*#REF!/#REF! -> 
A181: 3 | B181: Cost | G181: =G169*#REF!/#REF! ->  | H181: =H169*#REF!/#REF! ->  | I181: =I169*#REF!/#REF! ->  | J181: =J169*#REF!/#REF! ->  | K181: =K169*#REF!/#REF! ->  | L181: =L169*#REF!/#REF! ->  | M181: =M169*#REF!/#REF! ->  | N181: =N169*#REF!/#REF! ->  | O181: =O169*#REF!/#REF! ->  | P181: =P169*#REF!/#REF! ->  | Q181: =Q169*#REF!/#REF! ->  | R181: =R169*#REF!/#REF! ->  | S181: =S169*#REF!/#REF! ->  | T181: =T169*#REF!/#REF! ->  | U181: =U169*#REF!/#REF! ->  | V181: =V169*#REF!/#REF! ->  | W181: =W169*#REF!/#REF! ->  | X181: =X169*#REF!/#REF! ->  | Y181: =Y169*#REF!/#REF! ->  | Z181: =Z169*#REF!/#REF! ->  | AA181: =AA169*#REF!/#REF! ->  | AB181: =AB169*#REF!/#REF! ->  | AC181: =AC169*#REF!/#REF! ->  | AD181: =AD169*#REF!/#REF! ->  | AE181: =AE169*#REF!/#REF! ->  | AF181: =AF169*#REF!/#REF! ->  | AG181: =AG169*#REF!/#REF! ->  | AH181: =AH169*#REF!/#REF! ->  | AI181: =AI169*#REF!/#REF! ->  | AJ181: =AJ169*#REF!/#REF! ->  | AK181: =AK169*#REF!/#REF! ->  | AL181: =AL169*#REF!/#REF! ->  | AM181: =AM169*#REF!/#REF! ->  | AN181: =AN169*#REF!/#REF! ->  | AO181: =AO169*#REF!/#REF! ->  | AP181: =AP169*#REF!/#REF! ->  | AQ181: =AQ169*#REF!/#REF! ->  | AR181: =AR169*#REF!/#REF! ->  | AS181: =AS169*#REF!/#REF! ->  | AT181: =AT169*#REF!/#REF! ->  | AU181: =AU169*#REF!/#REF! ->  | AV181: =AV169*#REF!/#REF! ->  | AW181: =AW169*#REF!/#REF! ->  | AX181: =AX169*#REF!/#REF! ->  | AY181: =AY169*#REF!/#REF! ->  | AZ181: =AZ169*#REF!/#REF! ->  | BA181: =BA169*#REF!/#REF! ->  | BB181: =BB169*#REF!/#REF! ->  | BC181: =BC169*#REF!/#REF! ->  | BD181: =BD169*#REF!/#REF! ->  | BE181: =BE169*#REF!/#REF! ->  | BF181: =BF169*#REF!/#REF! ->  | BG181: =BG169*#REF!/#REF! ->  | BH181: =BH169*#REF!/#REF! ->  | BI181: =BI169*#REF!/#REF! -> 
A182: 4 | B182: Cost | G182: =G170*#REF!/#REF! ->  | H182: =H170*#REF!/#REF! ->  | I182: =I170*#REF!/#REF! ->  | J182: =J170*#REF!/#REF! ->  | K182: =K170*#REF!/#REF! ->  | L182: =L170*#REF!/#REF! ->  | M182: =M170*#REF!/#REF! ->  | N182: =N170*#REF!/#REF! ->  | O182: =O170*#REF!/#REF! ->  | P182: =P170*#REF!/#REF! ->  | Q182: =Q170*#REF!/#REF! ->  | R182: =R170*#REF!/#REF! ->  | S182: =S170*#REF!/#REF! ->  | T182: =T170*#REF!/#REF! ->  | U182: =U170*#REF!/#REF! ->  | V182: =V170*#REF!/#REF! ->  | W182: =W170*#REF!/#REF! ->  | X182: =X170*#REF!/#REF! ->  | Y182: =Y170*#REF!/#REF! ->  | Z182: =Z170*#REF!/#REF! ->  | AA182: =AA170*#REF!/#REF! ->  | AB182: =AB170*#REF!/#REF! ->  | AC182: =AC170*#REF!/#REF! ->  | AD182: =AD170*#REF!/#REF! ->  | AE182: =AE170*#REF!/#REF! ->  | AF182: =AF170*#REF!/#REF! ->  | AG182: =AG170*#REF!/#REF! ->  | AH182: =AH170*#REF!/#REF! ->  | AI182: =AI170*#REF!/#REF! ->  | AJ182: =AJ170*#REF!/#REF! ->  | AK182: =AK170*#REF!/#REF! ->  | AL182: =AL170*#REF!/#REF! ->  | AM182: =AM170*#REF!/#REF! ->  | AN182: =AN170*#REF!/#REF! ->  | AO182: =AO170*#REF!/#REF! ->  | AP182: =AP170*#REF!/#REF! ->  | AQ182: =AQ170*#REF!/#REF! ->  | AR182: =AR170*#REF!/#REF! ->  | AS182: =AS170*#REF!/#REF! ->  | AT182: =AT170*#REF!/#REF! ->  | AU182: =AU170*#REF!/#REF! ->  | AV182: =AV170*#REF!/#REF! ->  | AW182: =AW170*#REF!/#REF! ->  | AX182: =AX170*#REF!/#REF! ->  | AY182: =AY170*#REF!/#REF! ->  | AZ182: =AZ170*#REF!/#REF! ->  | BA182: =BA170*#REF!/#REF! ->  | BB182: =BB170*#REF!/#REF! ->  | BC182: =BC170*#REF!/#REF! ->  | BD182: =BD170*#REF!/#REF! ->  | BE182: =BE170*#REF!/#REF! ->  | BF182: =BF170*#REF!/#REF! ->  | BG182: =BG170*#REF!/#REF! ->  | BH182: =BH170*#REF!/#REF! ->  | BI182: =BI170*#REF!/#REF! -> 
A183: 5 | B183: Cost | G183: =G171*#REF!/#REF! ->  | H183: =H171*#REF!/#REF! ->  | I183: =I171*#REF!/#REF! ->  | J183: =J171*#REF!/#REF! ->  | K183: =K171*#REF!/#REF! ->  | L183: =L171*#REF!/#REF! ->  | M183: =M171*#REF!/#REF! ->  | N183: =N171*#REF!/#REF! ->  | O183: =O171*#REF!/#REF! ->  | P183: =P171*#REF!/#REF! ->  | Q183: =Q171*#REF!/#REF! ->  | R183: =R171*#REF!/#REF! ->  | S183: =S171*#REF!/#REF! ->  | T183: =T171*#REF!/#REF! ->  | U183: =U171*#REF!/#REF! ->  | V183: =V171*#REF!/#REF! ->  | W183: =W171*#REF!/#REF! ->  | X183: =X171*#REF!/#REF! ->  | Y183: =Y171*#REF!/#REF! ->  | Z183: =Z171*#REF!/#REF! ->  | AA183: =AA171*#REF!/#REF! ->  | AB183: =AB171*#REF!/#REF! ->  | AC183: =AC171*#REF!/#REF! ->  | AD183: =AD171*#REF!/#REF! ->  | AE183: =AE171*#REF!/#REF! ->  | AF183: =AF171*#REF!/#REF! ->  | AG183: =AG171*#REF!/#REF! ->  | AH183: =AH171*#REF!/#REF! ->  | AI183: =AI171*#REF!/#REF! ->  | AJ183: =AJ171*#REF!/#REF! ->  | AK183: =AK171*#REF!/#REF! ->  | AL183: =AL171*#REF!/#REF! ->  | AM183: =AM171*#REF!/#REF! ->  | AN183: =AN171*#REF!/#REF! ->  | AO183: =AO171*#REF!/#REF! ->  | AP183: =AP171*#REF!/#REF! ->  | AQ183: =AQ171*#REF!/#REF! ->  | AR183: =AR171*#REF!/#REF! ->  | AS183: =AS171*#REF!/#REF! ->  | AT183: =AT171*#REF!/#REF! ->  | AU183: =AU171*#REF!/#REF! ->  | AV183: =AV171*#REF!/#REF! ->  | AW183: =AW171*#REF!/#REF! ->  | AX183: =AX171*#REF!/#REF! ->  | AY183: =AY171*#REF!/#REF! ->  | AZ183: =AZ171*#REF!/#REF! ->  | BA183: =BA171*#REF!/#REF! ->  | BB183: =BB171*#REF!/#REF! ->  | BC183: =BC171*#REF!/#REF! ->  | BD183: =BD171*#REF!/#REF! ->  | BE183: =BE171*#REF!/#REF! ->  | BF183: =BF171*#REF!/#REF! ->  | BG183: =BG171*#REF!/#REF! ->  | BH183: =BH171*#REF!/#REF! ->  | BI183: =BI171*#REF!/#REF! -> 
A184: 6 | B184: Cost | G184: =G172*#REF!/#REF! ->  | H184: =H172*#REF!/#REF! ->  | I184: =I172*#REF!/#REF! ->  | J184: =J172*#REF!/#REF! ->  | K184: =K172*#REF!/#REF! ->  | L184: =L172*#REF!/#REF! ->  | M184: =M172*#REF!/#REF! ->  | N184: =N172*#REF!/#REF! ->  | O184: =O172*#REF!/#REF! ->  | P184: =P172*#REF!/#REF! ->  | Q184: =Q172*#REF!/#REF! ->  | R184: =R172*#REF!/#REF! ->  | S184: =S172*#REF!/#REF! ->  | T184: =T172*#REF!/#REF! ->  | U184: =U172*#REF!/#REF! ->  | V184: =V172*#REF!/#REF! ->  | W184: =W172*#REF!/#REF! ->  | X184: =X172*#REF!/#REF! ->  | Y184: =Y172*#REF!/#REF! ->  | Z184: =Z172*#REF!/#REF! ->  | AA184: =AA172*#REF!/#REF! ->  | AB184: =AB172*#REF!/#REF! ->  | AC184: =AC172*#REF!/#REF! ->  | AD184: =AD172*#REF!/#REF! ->  | AE184: =AE172*#REF!/#REF! ->  | AF184: =AF172*#REF!/#REF! ->  | AG184: =AG172*#REF!/#REF! ->  | AH184: =AH172*#REF!/#REF! ->  | AI184: =AI172*#REF!/#REF! ->  | AJ184: =AJ172*#REF!/#REF! ->  | AK184: =AK172*#REF!/#REF! ->  | AL184: =AL172*#REF!/#REF! ->  | AM184: =AM172*#REF!/#REF! ->  | AN184: =AN172*#REF!/#REF! ->  | AO184: =AO172*#REF!/#REF! ->  | AP184: =AP172*#REF!/#REF! ->  | AQ184: =AQ172*#REF!/#REF! ->  | AR184: =AR172*#REF!/#REF! ->  | AS184: =AS172*#REF!/#REF! ->  | AT184: =AT172*#REF!/#REF! ->  | AU184: =AU172*#REF!/#REF! ->  | AV184: =AV172*#REF!/#REF! ->  | AW184: =AW172*#REF!/#REF! ->  | AX184: =AX172*#REF!/#REF! ->  | AY184: =AY172*#REF!/#REF! ->  | AZ184: =AZ172*#REF!/#REF! ->  | BA184: =BA172*#REF!/#REF! ->  | BB184: =BB172*#REF!/#REF! ->  | BC184: =BC172*#REF!/#REF! ->  | BD184: =BD172*#REF!/#REF! ->  | BE184: =BE172*#REF!/#REF! ->  | BF184: =BF172*#REF!/#REF! ->  | BG184: =BG172*#REF!/#REF! ->  | BH184: =BH172*#REF!/#REF! ->  | BI184: =BI172*#REF!/#REF! -> 
A185: 7 | B185: Cost | G185: =G173*#REF!/#REF! ->  | H185: =H173*#REF!/#REF! ->  | I185: =I173*#REF!/#REF! ->  | J185: =J173*#REF!/#REF! ->  | K185: =K173*#REF!/#REF! ->  | L185: =L173*#REF!/#REF! ->  | M185: =M173*#REF!/#REF! ->  | N185: =N173*#REF!/#REF! ->  | O185: =O173*#REF!/#REF! ->  | P185: =P173*#REF!/#REF! ->  | Q185: =Q173*#REF!/#REF! ->  | R185: =R173*#REF!/#REF! ->  | S185: =S173*#REF!/#REF! ->  | T185: =T173*#REF!/#REF! ->  | U185: =U173*#REF!/#REF! ->  | V185: =V173*#REF!/#REF! ->  | W185: =W173*#REF!/#REF! ->  | X185: =X173*#REF!/#REF! ->  | Y185: =Y173*#REF!/#REF! ->  | Z185: =Z173*#REF!/#REF! ->  | AA185: =AA173*#REF!/#REF! ->  | AB185: =AB173*#REF!/#REF! ->  | AC185: =AC173*#REF!/#REF! ->  | AD185: =AD173*#REF!/#REF! ->  | AE185: =AE173*#REF!/#REF! ->  | AF185: =AF173*#REF!/#REF! ->  | AG185: =AG173*#REF!/#REF! ->  | AH185: =AH173*#REF!/#REF! ->  | AI185: =AI173*#REF!/#REF! ->  | AJ185: =AJ173*#REF!/#REF! ->  | AK185: =AK173*#REF!/#REF! ->  | AL185: =AL173*#REF!/#REF! ->  | AM185: =AM173*#REF!/#REF! ->  | AN185: =AN173*#REF!/#REF! ->  | AO185: =AO173*#REF!/#REF! ->  | AP185: =AP173*#REF!/#REF! ->  | AQ185: =AQ173*#REF!/#REF! ->  | AR185: =AR173*#REF!/#REF! ->  | AS185: =AS173*#REF!/#REF! ->  | AT185: =AT173*#REF!/#REF! ->  | AU185: =AU173*#REF!/#REF! ->  | AV185: =AV173*#REF!/#REF! ->  | AW185: =AW173*#REF!/#REF! ->  | AX185: =AX173*#REF!/#REF! ->  | AY185: =AY173*#REF!/#REF! ->  | AZ185: =AZ173*#REF!/#REF! ->  | BA185: =BA173*#REF!/#REF! ->  | BB185: =BB173*#REF!/#REF! ->  | BC185: =BC173*#REF!/#REF! ->  | BD185: =BD173*#REF!/#REF! ->  | BE185: =BE173*#REF!/#REF! ->  | BF185: =BF173*#REF!/#REF! ->  | BG185: =BG173*#REF!/#REF! ->  | BH185: =BH173*#REF!/#REF! ->  | BI185: =BI173*#REF!/#REF! -> 
A186: 8 | B186: Cost | G186: =G174*#REF!/#REF! ->  | H186: =H174*#REF!/#REF! ->  | I186: =I174*#REF!/#REF! ->  | J186: =J174*#REF!/#REF! ->  | K186: =K174*#REF!/#REF! ->  | L186: =L174*#REF!/#REF! ->  | M186: =M174*#REF!/#REF! ->  | N186: =N174*#REF!/#REF! ->  | O186: =O174*#REF!/#REF! ->  | P186: =P174*#REF!/#REF! ->  | Q186: =Q174*#REF!/#REF! ->  | R186: =R174*#REF!/#REF! ->  | S186: =S174*#REF!/#REF! ->  | T186: =T174*#REF!/#REF! ->  | U186: =U174*#REF!/#REF! ->  | V186: =V174*#REF!/#REF! ->  | W186: =W174*#REF!/#REF! ->  | X186: =X174*#REF!/#REF! ->  | Y186: =Y174*#REF!/#REF! ->  | Z186: =Z174*#REF!/#REF! ->  | AA186: =AA174*#REF!/#REF! ->  | AB186: =AB174*#REF!/#REF! ->  | AC186: =AC174*#REF!/#REF! ->  | AD186: =AD174*#REF!/#REF! ->  | AE186: =AE174*#REF!/#REF! ->  | AF186: =AF174*#REF!/#REF! ->  | AG186: =AG174*#REF!/#REF! ->  | AH186: =AH174*#REF!/#REF! ->  | AI186: =AI174*#REF!/#REF! ->  | AJ186: =AJ174*#REF!/#REF! ->  | AK186: =AK174*#REF!/#REF! ->  | AL186: =AL174*#REF!/#REF! ->  | AM186: =AM174*#REF!/#REF! ->  | AN186: =AN174*#REF!/#REF! ->  | AO186: =AO174*#REF!/#REF! ->  | AP186: =AP174*#REF!/#REF! ->  | AQ186: =AQ174*#REF!/#REF! ->  | AR186: =AR174*#REF!/#REF! ->  | AS186: =AS174*#REF!/#REF! ->  | AT186: =AT174*#REF!/#REF! ->  | AU186: =AU174*#REF!/#REF! ->  | AV186: =AV174*#REF!/#REF! ->  | AW186: =AW174*#REF!/#REF! ->  | AX186: =AX174*#REF!/#REF! ->  | AY186: =AY174*#REF!/#REF! ->  | AZ186: =AZ174*#REF!/#REF! ->  | BA186: =BA174*#REF!/#REF! ->  | BB186: =BB174*#REF!/#REF! ->  | BC186: =BC174*#REF!/#REF! ->  | BD186: =BD174*#REF!/#REF! ->  | BE186: =BE174*#REF!/#REF! ->  | BF186: =BF174*#REF!/#REF! ->  | BG186: =BG174*#REF!/#REF! ->  | BH186: =BH174*#REF!/#REF! ->  | BI186: =BI174*#REF!/#REF! -> 
A187: 9 | B187: Cost | G187: =G175*#REF!/#REF! ->  | H187: =H175*#REF!/#REF! ->  | I187: =I175*#REF!/#REF! ->  | J187: =J175*#REF!/#REF! ->  | K187: =K175*#REF!/#REF! ->  | L187: =L175*#REF!/#REF! ->  | M187: =M175*#REF!/#REF! ->  | N187: =N175*#REF!/#REF! ->  | O187: =O175*#REF!/#REF! ->  | P187: =P175*#REF!/#REF! ->  | Q187: =Q175*#REF!/#REF! ->  | R187: =R175*#REF!/#REF! ->  | S187: =S175*#REF!/#REF! ->  | T187: =T175*#REF!/#REF! ->  | U187: =U175*#REF!/#REF! ->  | V187: =V175*#REF!/#REF! ->  | W187: =W175*#REF!/#REF! ->  | X187: =X175*#REF!/#REF! ->  | Y187: =Y175*#REF!/#REF! ->  | Z187: =Z175*#REF!/#REF! ->  | AA187: =AA175*#REF!/#REF! ->  | AB187: =AB175*#REF!/#REF! ->  | AC187: =AC175*#REF!/#REF! ->  | AD187: =AD175*#REF!/#REF! ->  | AE187: =AE175*#REF!/#REF! ->  | AF187: =AF175*#REF!/#REF! ->  | AG187: =AG175*#REF!/#REF! ->  | AH187: =AH175*#REF!/#REF! ->  | AI187: =AI175*#REF!/#REF! ->  | AJ187: =AJ175*#REF!/#REF! ->  | AK187: =AK175*#REF!/#REF! ->  | AL187: =AL175*#REF!/#REF! ->  | AM187: =AM175*#REF!/#REF! ->  | AN187: =AN175*#REF!/#REF! ->  | AO187: =AO175*#REF!/#REF! ->  | AP187: =AP175*#REF!/#REF! ->  | AQ187: =AQ175*#REF!/#REF! ->  | AR187: =AR175*#REF!/#REF! ->  | AS187: =AS175*#REF!/#REF! ->  | AT187: =AT175*#REF!/#REF! ->  | AU187: =AU175*#REF!/#REF! ->  | AV187: =AV175*#REF!/#REF! ->  | AW187: =AW175*#REF!/#REF! ->  | AX187: =AX175*#REF!/#REF! ->  | AY187: =AY175*#REF!/#REF! ->  | AZ187: =AZ175*#REF!/#REF! ->  | BA187: =BA175*#REF!/#REF! ->  | BB187: =BB175*#REF!/#REF! ->  | BC187: =BC175*#REF!/#REF! ->  | BD187: =BD175*#REF!/#REF! ->  | BE187: =BE175*#REF!/#REF! ->  | BF187: =BF175*#REF!/#REF! ->  | BG187: =BG175*#REF!/#REF! ->  | BH187: =BH175*#REF!/#REF! ->  | BI187: =BI175*#REF!/#REF! -> 

Sheet Home Buyer Mortgage Analysis 1
A2: =+Cover!D8 -> SFAH06012022.01 | C2: HOME BUYER MORTGAGE ANALYSIS | H2: Key
C3: Project: | D3: ='Development Budget'!C4 -> 0 | H3: White spaces indicate data entry
C4: Buyer: | D4: 0
A5: House Information
A6: Purchase Price
A7: Appraised Value
A10: Bank Requirements | F10: Family Information
A11: Bank Ratio | B11: Front End | F11: Annual Income | I11: =H11/12 -> 0 | J11: Monthly Income
B12: Back End | F12: Annual Taxes | I12: =H12/12 -> 0 | J12: Monthly Taxes
A13: Annual Interest Rate | F13: Annual Insurance | I13: =H13/12 -> 0 | J13: Monthly Insurance
A14: Loan Term (Years) | F14: Total Credit Card Debt
A15: Constant Annual Percent | D15: =(-1)*(PMT(D13/12,D14*12,1))*12 -> 
A16: Loan to Value
A17: Closing Costs
A19: Debt Capacity
A20: Monthly Income x Front Ratio | D20: =I11*D11 -> 0 | F20: Debt Service for Loan Using LVR | I20: =-PMT(D13/12,D14*12,D7*D16) -> 
A21: - Taxes | D21: =H12/12 -> 0 | F21: + Monthly Taxes | I21: =D21 -> 0
A22: - Insurance | D22: =H13/12 -> 0 | F22: + Monthly Insurance | I22: =D22 -> 0
A23: - Other Monthly Housing Cost | D23: 0 | F23: = Monthly Mortgage Payment | I23: =SUM(I20:I22) -> 
A24: = Max. Monthly Debt Service-Front | D24: =D20-D21-D22-D23 -> 0
A26: Monthly Income x Back Ratio | D26: =I11*D12 -> 0
A27: - Taxes | D27: =D21 -> 0
A28: - Insurance | D28: =D22 -> 0
A29: - Other Monthly Housing Cost | D29: =D23 -> 0
A30: - Loan Payments | D30: 0
A31: - Credit Card Payments | D31: =H14/20 -> 0
A32: - Other Monthly Obligation | D32: 0
A33: = Max. Monthly Debt Service-Back | D33: =D26-SUM(D27:D32) -> 0
A35: Maximum Monthly Debt Service | D35: =MIN(D24,D33) -> 0
A36: Maximum Loan Using Front/Back | D36: =-PV(D13/12,D14*12,D35,0) -> 0
A38: Maximum Loan Using LVR | D38: =D16*D7 -> 0
A40: Maximum Loan | D40: =MIN(D36,D38) -> 0
A42: Permanent Mortgage
A43: Purchase Price | D43: =D6 -> 0
A44: Loan Amount | D44: =D40 -> 0
A45: Equity Needed | D45: =D43-D44 -> 0
A46: Closing Costs | D46: =D17 -> 0
A47: Cash Available from Buyer | D47: 0
D48: =D47-D45-D46 -> 0
A49: Home Buyer Subsidy | D49: =IF(D48>=0,0,(-1)*D48) -> 0

Sheet Home Buyer Mortgage Analysis 2
A2: =+Cover!D8 -> SFAH06012022.01 | C2: HOME BUYER MORTGAGE ANALYSIS | H2: Key
C3: Project: | D3: ='Development Budget'!C4 -> 0 | H3: White spaces indicate data entry
C4: Buyer: | D4: 0
A5: House Information
A6: Purchase Price | D6: 0
A7: Appraised Value | D7: 0
A10: Bank Requirements | F10: Family Information
A11: Bank Ratio | B11: Front End | D11: 0 | F11: Annual Income | H11: 0 | I11: =H11/12 -> 0 | J11: Monthly Income
B12: Back End | D12: 0 | F12: Annual Taxes | H12: 0 | I12: =H12/12 -> 0 | J12: Monthly Taxes
A13: Annual Interest Rate | D13: 0 | F13: Annual Insurance | H13: 0 | I13: =H13/12 -> 0 | J13: Monthly Insurance
A14: Loan Term (Years) | D14: 0 | F14: Total Credit Card Debt | H14: 0
A15: Constant Annual Percent | D15: =(-1)*(PMT(D13/12,D14*12,1))*12 -> 
A16: Loan to Value | D16: 0
A17: Closing Costs | D17: 0
A19: Debt Capacity
A20: Monthly Income x Front Ratio | D20: =I11*D11 -> 0 | F20: Debt Service for Loan Using LVR | I20: =-PMT(D13/12,D14*12,D7*D16) -> 
A21: - Taxes | D21: =H12/12 -> 0 | F21: + Monthly Taxes | I21: =D21 -> 0
A22: - Insurance | D22: =H13/12 -> 0 | F22: + Monthly Insurance | I22: =D22 -> 0
A23: - Other Monthly Housing Cost | D23: 0 | F23: = Monthly Mortgage Payment | I23: =SUM(I20:I22) -> 
A24: = Max. Monthly Debt Service-Front | D24: =D20-D21-D22-D23 -> 0
A26: Monthly Income x Back Ratio | D26: =I11*D12 -> 0
A27: - Taxes | D27: =D21 -> 0
A28: - Insurance | D28: =D22 -> 0
A29: - Other Monthly Housing Cost | D29: =D23 -> 0
A30: - Loan Payments | D30: 0
A31: - Credit Card Payments | D31: =H14/20 -> 0
A32: - Other Monthly Obligation | D32: 0
A33: = Max. Monthly Debt Service-Back | D33: =D26-SUM(D27:D32) -> 0
A35: Maximum Monthly Debt Service | D35: =MIN(D24,D33) -> 0
A36: Maximum Loan Using Front/Back | D36: =-PV(D13/12,D14*12,D35,0) -> 0
A38: Maximum Loan Using LVR | D38: =D16*D7 -> 0
A40: Maximum Loan | D40: =MIN(D36,D38) -> 0
A42: Permanent Mortgage
A43: Purchase Price | D43: =D6 -> 0
A44: Loan Amount | D44: =D40 -> 0
A45: Equity Needed | D45: =D43-D44 -> 0
A46: Closing Costs | D46: =D17 -> 0
A47: Cash Available from Buyer | D47: 0
D48: =D47-D45-D46 -> 0
A49: Home Buyer Subsidy | D49: =IF(D48>=0,0,(-1)*D48) -> 0

Sheet Home Buyer Mortgage Analysis 3
A2: =+Cover!D8 -> SFAH06012022.01 | C2: HOME BUYER MORTGAGE ANALYSIS | H2: Key
C3: Project: | D3: ='Development Budget'!C4 -> 0 | H3: White spaces indicate data entry
C4: Buyer: | D4: 0
A5: House Information
A6: Purchase Price | D6: 0
A7: Appraised Value | D7: 0
A10: Bank Requirements | F10: Family Information
A11: Bank Ratio | B11: Front End | D11: 0 | F11: Annual Income | H11: 0 | I11: =H11/12 -> 0 | J11: Monthly Income
B12: Back End | D12: 0 | F12: Annual Taxes | H12: 0 | I12: =H12/12 -> 0 | J12: Monthly Taxes
A13: Annual Interest Rate | D13: 0 | F13: Annual Insurance | H13: 0 | I13: =H13/12 -> 0 | J13: Monthly Insurance
A14: Loan Term (Years) | D14: 0 | F14: Total Credit Card Debt | H14: 0
A15: Constant Annual Percent | D15: =(-1)*(PMT(D13/12,D14*12,1))*12 -> 
A16: Loan to Value | D16: 0
A17: Closing Costs | D17: 0
A19: Debt Capacity
A20: Monthly Income x Front Ratio | D20: =I11*D11 -> 0 | F20: Debt Service for Loan Using LVR | I20: =-PMT(D13/12,D14*12,D7*D16) -> 
A21: - Taxes | D21: =H12/12 -> 0 | F21: + Monthly Taxes | I21: =D21 -> 0
A22: - Insurance | D22: =H13/12 -> 0 | F22: + Monthly Insurance | I22: =D22 -> 0
A23: - Other Monthly Housing Cost | D23: 0 | F23: = Monthly Mortgage Payment | I23: =SUM(I20:I22) -> 
A24: = Max. Monthly Debt Service-Front | D24: =D20-D21-D22-D23 -> 0
A26: Monthly Income x Back Ratio | D26: =I11*D12 -> 0
A27: - Taxes | D27: =D21 -> 0
A28: - Insurance | D28: =D22 -> 0
A29: - Other Monthly Housing Cost | D29: =D23 -> 0
A30: - Loan Payments | D30: 0
A31: - Credit Card Payments | D31: =H14/20 -> 0
A32: - Other Monthly Obligation | D32: 0
A33: = Max. Monthly Debt Service-Back | D33: =D26-SUM(D27:D32) -> 0
A35: Maximum Monthly Debt Service | D35: =MIN(D24,D33) -> 0
A36: Maximum Loan Using Front/Back | D36: =-PV(D13/12,D14*12,D35,0) -> 0
A38: Maximum Loan Using LVR | D38: =D16*D7 -> 0
A40: Maximum Loan | D40: =MIN(D36,D38) -> 0
A42: Permanent Mortgage
A43: Purchase Price | D43: =D6 -> 0
A44: Loan Amount | D44: =D40 -> 0
A45: Equity Needed | D45: =D43-D44 -> 0
A46: Closing Costs | D46: =D17 -> 0
A47: Cash Available from Buyer | D47: 0
D48: =D47-D45-D46 -> 0
A49: Home Buyer Subsidy | D49: =IF(D48>=0,0,(-1)*D48) -> 0

Sheet Home Buyer Mortgage Analysis 4
A2: =+Cover!D8 -> SFAH06012022.01 | C2: HOME BUYER MORTGAGE ANALYSIS | H2: Key
C3: Project: | D3: ='Development Budget'!C4 -> 0 | H3: White spaces indicate data entry
C4: Buyer: | D4: 0
A5: House Information
A6: Purchase Price | D6: 0
A7: Appraised Value | D7: 0
A10: Bank Requirements | F10: Family Information
A11: Bank Ratio | B11: Front End | D11: 0 | F11: Annual Income | H11: 0 | I11: =H11/12 -> 0 | J11: Monthly Income
B12: Back End | D12: 0 | F12: Annual Taxes | H12: 0 | I12: =H12/12 -> 0 | J12: Monthly Taxes
A13: Annual Interest Rate | D13: 0 | F13: Annual Insurance | H13: 0 | I13: =H13/12 -> 0 | J13: Monthly Insurance
A14: Loan Term (Years) | D14: 0 | F14: Total Credit Card Debt | H14: 0
A15: Constant Annual Percent | D15: =(-1)*(PMT(D13/12,D14*12,1))*12 -> 
A16: Loan to Value | D16: 0
A17: Closing Costs | D17: 0
A19: Debt Capacity
A20: Monthly Income x Front Ratio | D20: =I11*D11 -> 0 | F20: Debt Service for Loan Using LVR | I20: =-PMT(D13/12,D14*12,D7*D16) -> 
A21: - Taxes | D21: =H12/12 -> 0 | F21: + Monthly Taxes | I21: =D21 -> 0
A22: - Insurance | D22: =H13/12 -> 0 | F22: + Monthly Insurance | I22: =D22 -> 0
A23: - Other Monthly Housing Cost | D23: 0 | F23: = Monthly Mortgage Payment | I23: =SUM(I20:I22) -> 
A24: = Max. Monthly Debt Service-Front | D24: =D20-D21-D22-D23 -> 0
A26: Monthly Income x Back Ratio | D26: =I11*D12 -> 0
A27: - Taxes | D27: =D21 -> 0
A28: - Insurance | D28: =D22 -> 0
A29: - Other Monthly Housing Cost | D29: =D23 -> 0
A30: - Loan Payments | D30: 0
A31: - Credit Card Payments | D31: =H14/20 -> 0
A32: - Other Monthly Obligation | D32: 0
A33: = Max. Monthly Debt Service-Back | D33: =D26-SUM(D27:D32) -> 0
A35: Maximum Monthly Debt Service | D35: =MIN(D24,D33) -> 0
A36: Maximum Loan Using Front/Back | D36: =-PV(D13/12,D14*12,D35,0) -> 0
A38: Maximum Loan Using LVR | D38: =D16*D7 -> 0
A40: Maximum Loan | D40: =MIN(D36,D38) -> 0
A42: Permanent Mortgage
A43: Purchase Price | D43: =D6 -> 0
A44: Loan Amount | D44: =D40 -> 0
A45: Equity Needed | D45: =D43-D44 -> 0
A46: Closing Costs | D46: =D17 -> 0
A47: Cash Available from Buyer | D47: 0
D48: =D47-D45-D46 -> 0
A49: Home Buyer Subsidy | D49: =IF(D48>=0,0,(-1)*D48) -> 0

Sheet Development Team
A1: =+Cover!D8 -> SFAH06012022.01 | B1: Name(s) | C1: Comments on Role | D1: % of Time Devoted to Project | E1: MBE? | F1: WBE? | G1: CHDO? | H1: =+Cover!E11 -> 0
A2: Organization
A3: Developer
A4: Architect
A5: Engineer
A6: Construction Lender
A7: Potential Mortgage Lender(s)
A8: Management Company
A9: Attorney
A10: Accountant
A11: General Contractor
A12: Consultant (if applicable)
A13: Marketing Agent or Realtor
A14: Other

Sheet Sources and Uses
A1: SINGLE-FAMILY HOUSING DEVELOPMENT | O1: =+Cover!D8 -> SFAH06012022.01 | Q1: =+Cover!E11 -> 0
A2: Sources and Uses
A4: Project: | C4: =+'Primary Input'!E8 -> 0 | M4: Key
M5: White spaces indicate data entry
A6: DEVELOPMENT BUDGET
B7: ITEM | D7: Total | E7: LHC HOME | F7: Owner Equity | G7: Other Private Amount | H7: Other Private Source | I7: Other Public Amount | J7: Other Public Source | K7: % Total | M7: Notes: Below are examples of Other Private and Public Sources. This is intended to help an applicant in filling-in the table. This list is not to be considered as inclusive of all possibilities. Please include any source not listed when appropriate. For the purposes of this table CHDO Proceeds and CHDO General Funds are "Other Private Sources" only when included in a Non-CHDO Project for an independent entity's project. When invested in a CHDO project they are considered as Owner Equity.
A8: ACQUISITION
B9: Building Acquisition | D9: =ROUND('Development Budget'!D9,0) -> 0 | E9: =+'Development Budget'!D9*'Cash Flow (Sales Plan)'!J4 -> 0 | K9: =IF($D$42=0,"",D9/$D$42) ->  | M9: Other Private Sources Include | Q9: Other Public Sources Include | U9: `
B10: Land Acquisition | D10: =ROUND('Development Budget'!D10,0) -> 0 | E10: =+'Development Budget'!D10*'Cash Flow (Sales Plan)'!J4 -> 0 | K10: =IF($D$42=0,"",D10/$D$42) ->  | M10: Bank (Specify) Loan | Q10: State Community Development Block Grant
A11: UNIT CONSTRUCTION (see below) | D11: =ROUND('Development Budget'!D11,0) -> 0 | E11: =+D11*'Cash Flow (Sales Plan)'!J5 -> 0 | K11: =IF($D$42=0,"",D11/$D$42) ->  | M11: CHDO Proceeds | Q11: State Housing Trust Fund
A12: OTHER CONSTRUCTION | C12: Total | D12: =SUM(D13:D17) -> 0 | E12: =SUM(E13:E17) -> 0 | F12: 0 | G12: 0 | I12: =SUM(I13:I17) -> 0 | M12: CHDO General Funds | Q12: National Housing Trust Fund
B13: Landscaping | D13: =ROUND('Development Budget'!D13,0) -> 0 | E13: =+D13*'Cash Flow (Sales Plan)'!$J$6 -> 0 | K13: =IF($D$42=0,"",D13/$D$42) ->  | M13: Project Specific Donations | Q13: City Community Development Block Grant
B14: Permits | D14: =ROUND('Development Budget'!D14,0) -> 0 | E14: =+D14*'Cash Flow (Sales Plan)'!$J$6 -> 0 | K14: =IF($D$42=0,"",D14/$D$42) ->  | M14: General Donations | Q14: City HOME Program Funds
B15: Clearance and Demolition | D15: =ROUND('Development Budget'!D15,0) -> 0 | E15: =+D15*'Cash Flow (Sales Plan)'!$J$6 -> 0 | K15: =IF($D$42=0,"",D15/$D$42) ->  | M15: Affordable Housing Program Grant | Q15: City Waived Fees
B16: Utility Connections & Tap Fees | D16: =ROUND('Development Budget'!D16,0) -> 0 | E16: =+D16*'Cash Flow (Sales Plan)'!$J$6 -> 0 | K16: =IF($D$42=0,"",D16/$D$42) ->  | M16: Enterprise | Q16: City General Fund
B17: Contingency | D17: =ROUND('Development Budget'!D17,0) -> 0 | E17: =+D17*'Cash Flow (Sales Plan)'!$J$6 -> 0 | K17: =IF($D$42=0,"",D17/$D$42) ->  | M17: Local Initiative Support Corporation | Q17: Housing Authority Funds
A18: INFRASTRUCTURE | C18: Total | D18: =SUM(D19:D22) -> 0 | E18: =SUM(E19:E22) -> 0 | F18: 0 | G18: 0 | I18: =SUM(I19:I22) -> 0 | M18: Housing Assistance Council | Q18: United States Department of Agriculture (USDA)
B19: Streets and Sidewalks | D19: =ROUND('Development Budget'!D19,0) -> 0 | E19: =+D19*'Cash Flow (Sales Plan)'!$J$7 -> 0 | K19: =IF($D$42=0,"",D19/$D$42) -> 
B20: Water and Sewer | D20: =ROUND('Development Budget'!D20,0) -> 0 | E20: =+D20*'Cash Flow (Sales Plan)'!$J$7 -> 0 | K20: =IF($D$42=0,"",D20/$D$42) -> 
B21: Storm water & Drainage | D21: =ROUND('Development Budget'!D21,0) -> 0 | E21: =+D21*'Cash Flow (Sales Plan)'!$J$7 -> 0 | K21: =IF($D$42=0,"",D21/$D$42) -> 
B22: Impact Fees | D22: =ROUND('Development Budget'!D22,0) -> 0 | E22: =+D22*'Cash Flow (Sales Plan)'!$J$7 -> 0 | K22: =IF($D$42=0,"",D22/$D$42) -> 
A23: PROFESSIONAL FEES | C23: Total | D23: =SUM(D24:D31) -> 0 | E23: =SUM(E24:E31) -> 0 | F23: 0 | G23: 0 | I23: =SUM(I24:I31) -> 0
B24: Site Planning | D24: =ROUND('Development Budget'!D24,0) -> 0 | E24: =+D24*'Cash Flow (Sales Plan)'!$J$8 -> 0 | K24: =IF($D$42=0,"",D24/$D$42) -> 
B25: Architecture & Engineering | D25: =ROUND('Development Budget'!D25,0) -> 0 | E25: =+D25*'Cash Flow (Sales Plan)'!$J$8 -> 0
B26: Real Estate Attorney | D26: =ROUND('Development Budget'!D26,0) -> 0 | E26: =+D26*'Cash Flow (Sales Plan)'!$J$8 -> 0
B27: Consultant | D27: =ROUND('Development Budget'!D27,0) -> 0 | E27: =+D27*'Cash Flow (Sales Plan)'!$J$8 -> 0
B28: Survey | D28: =ROUND('Development Budget'!D28,0) -> 0 | E28: =+D28*'Cash Flow (Sales Plan)'!$J$8 -> 0
B29: Market Study | D29: =ROUND('Development Budget'!D29,0) -> 0 | E29: =+D29*'Cash Flow (Sales Plan)'!$J$8 -> 0
B30: Environmental | D30: =ROUND('Development Budget'!D30,0) -> 0 | E30: =+D30*'Cash Flow (Sales Plan)'!$J$8 -> 0
B31: Organization Expense | D31: =ROUND('Development Budget'!D31,0) -> 0 | E31: =+D31*'Cash Flow (Sales Plan)'!$J$8 -> 0
A32: FINANCE COSTS | C32: Total | D32: =SUM(D33:D37) ->  | E32: =SUM(E33:E37) ->  | F32: 0 | G32: 0 | I32: =SUM(I33:I37) -> 0
B33: Construction Loan Interest | D33: =ROUND('Development Budget'!D33,0) ->  | E33: =+D33*'Cash Flow (Sales Plan)'!$J$9 ->  | K33: =IF($D$42=0,"",D33/$D$42) -> 
B34: Construction Origination | D34: =ROUND('Development Budget'!D34,0) -> 0 | E34: =+D34*'Cash Flow (Sales Plan)'!$J$9 -> 0 | K34: =IF($D$42=0,"",D34/$D$42) -> 
B35: Appraisal | D35: =ROUND('Development Budget'!D35,0) -> 0 | E35: =+D35*'Cash Flow (Sales Plan)'!$J$9 -> 0 | K35: =IF($D$42=0,"",D35/$D$42) -> 
B36: Construction Insurance | D36: =ROUND('Development Budget'!D36,0) -> 0 | E36: =+D36*'Cash Flow (Sales Plan)'!$J$9 -> 0 | K36: =IF($D$42=0,"",D36/$D$42) -> 
B37: Property Taxes | D37: =ROUND('Development Budget'!D37,0) -> 0 | E37: =+D37*'Cash Flow (Sales Plan)'!$J$9 -> 0 | K37: =IF($D$42=0,"",D37/$D$42) -> 
A38: SOFT COSTS | C38: TOTAL | D38: =SUM(D39:D40) -> 0 | E38: =SUM(E39:E40) -> 0 | F38: 0 | G38: 0 | I38: =SUM(I39:I40) -> 0
B39: Marketing | D39: =ROUND('Development Budget'!D39,0) -> 0 | E39: =+D39*'Cash Flow (Sales Plan)'!J11 -> 0 | K39: =IF($D$42=0,"",D39/$D$42) -> 
B40: Other | D40: =ROUND('Development Budget'!D40,0) -> 0 | E40: =+D40*'Cash Flow (Sales Plan)'!J12 -> 0 | K40: =IF($D$42=0,"",D40/$D$42) -> 
A41: DEVELOPER FEE | D41: =ROUND('Development Budget'!D41,0) -> 0 | K41: =IF($D$42=0,"",D41/$D$42) -> 
B42: TOTAL DEVELOPMENT COST | D42: =+D12+D18+D23+D32+D38+D41 ->  | E42: =+E12+E18+E23+E32+E38+E41 ->  | F42: =+F12+F18+F23+F32+F38+F41 -> 0 | G42: =+G12+G18+G23+G32+G38+G41 -> 0 | H42: 0 | I42: 0 | J42: 0
B44: Plase Indicate the amount of the following subcosts that were included in the genral costs above. | H44: Limits The following limits are for application and planning purposes. The actual limit may be less in cases where there is an identity of interest | M44: LHC REVIEW ITEMS
B45: General Requirements & Other Costs | F45: Cost | H45: General Requirements | J45: Limit | K45: =+(D11+D13+D14+D15+D16+D17+D19+D20+D21+D22)*0.06 -> 0 | M45: LHC HOME AS a Percentage of TDC | P45: =IF(D42,E42/D42, 0) -> 
B46: General Requirements | J46: Actual | K46: =+F46 -> 0 | M46: Unit Construction as a Percentage of TDC | P46: =IF(D42,D11/D42, 0) -> 
B47: Builder Overhead | H47: Builder's Overhead | J47: Limit | K47: =+D11*0.02 -> 0 | M47: All Hard Cost as a Percentage of TDC | P47: =IF(D42,(D11+D13+D14+D15+D16+D17+D19+D20+D21+D22)/D42, 0) -> 
B48: Builder's Profit | J48: Actual | K48: =+F47 -> 0 | M48: Professional Fees as a Percentage of TDC | P48: =IF(D42,(D24+D25+D26+D27+D28+D29+D30+D31)/D42, 0) -> 
B49: Other | H49: Builder's Profit | J49: Limit | K49: =+D11*0.06 -> 0 | M49: All Soft Cost as a Percentage of TDC | P49: =IF(D42,(D24+D25+D26+D27+D28+D29+D30+D31+D33+D34+D35+D36+D37+D39+D40)/D42, 0) -> 
B50: TOTAL OTHER COSTS | F50: 0 | J50: Actual | K50: =+F48 -> 0 | M50: Development Subsidy as a Percentage of TDC | P50: =IF(D42,Lists!H86/'Sources and Uses'!D42, 0) -> 
H51: Developer Fee | J51: Limit | K51: =IF(D11,(D11)*0.15, 0) -> 0
J52: Actual | K52: =+D41 -> 0

Sheet Schedule
A1: DEVELOPMENT SCHEDULE | B1: Date | J1: =+Cover!E11 -> 0 | N1: =+Cover!D8 -> SFAH06012022.01
A2: Acquisition and/or Holding
A3: Environmental and/or Historic Review
A4: Construction Specifications and Cost Estimates
A5: Construction Bids
A6: Construction Start
A7: Anticipated Draws (list all)
A8: End Construction
A9: Sign Sales Contract(s) if applicable
A10: Close on Home Sale(s) if applicable

Sheet Match Report
A1: =+Cover!E11 -> 0
A2: Project Name | B2: Project Address | C2: Project Type | D2: HOME Funds Expended | E2: Date HOME $ Expended | F2: Value of Match Contribution | G2: Percentage of HOME Funds Matched | H2: Type of Match | I2: Date Match Recognized | J2: Comments
A3: Total | D3: =SUM(D5:D101) -> 0 | F3: =SUM(F5:F101) -> 0 | G3: =+F3/D3 -> 
A4: Example | B4: 1440 West End Rd | C4: Homeownership | D4: 135000 | E4: 2015-01-01 | F4: 25000 | G4: =+F4/D4 -> 0.1851851852 | H4: Waived fees | I4: 1999-12-20 | J4: State transfer tax and recordation fee
G5: =+F5/D5 -> 
G69: =+F69/D69 -> 

Sheet Checklist
A1: Checklist & Required Application Order
I2: CHECKLIST & REQUIRED APPLICATION ORDER | K2: Required | L2: Included | M2: Signature
B3: Submit the following in order and tabulated:
B4: 1 | H4: -- | I4: Cover | K4: X
B5: 3 | H5: -- | I5: Primary Input | K5: X
B6: 4 | H6: -- | I6: Development Budget | K6: X
B7: 5 | H7: -- | I7: Cash Flow | K7: X
B8: 6 | H8: -- | I8: Home Buyer Mortgage Analysis (1 Tab for each potential buyer class) | K8: X
B9: 7 | H9: -- | I9: Financial Considerations | K9: X
B10: 8 | H10: -- | I10: Schedule | K10: X
B11: 9 | H11: -- | I11: Development Team | K11: X
B12: 10 | H12: -- | I12: Sources & Uses | K12: X
B13: 11 | H13: -- | I13: Match Report | K13: X
B14: 12 | H14: -- | I14: Completed Projects
B15: 13 | H15: -- | I15: Checklist | K15: X
C17: Documents in Support of Application Requirement
D18: a) | E18: Attachment 1 | H18: -- | I18: Check for required fees | K18: X
C19: Documents in Support of Applicant Information
D20: a) | E20: Appendix 1 | H20: -- | I20: Applicant and Development Team Information | K20: X
C21: Documents in Support of Property Information
D22: a) | E22: Appendix 2 | H22: -- | I22: Site Control Documentation | K22: X
F23: i) | G23: Legal descriptions
F24: ii) | G24: Map Indicating general location | K24: X
F25: iii) | G25: Map indicating that project is not within 300 ft of a railroad | K25: X
F26: iv) | G26: Map indicating project is not located within a floodway | K26: X
F27: v) | G27: Map indicating project site is more than 3,000 ft. from a railroad
F28: vi) | G28: Proof of water service after construction | K28: X
F29: vii) | G29: Proof of sewer service after construction | K29: X
F30: viii) | G30: Color Photographs
F31: ix) | G31: Certification of waiting list of potential buyers | K31: X | M31: X
D32: b) | E32: Appendix 3 | H32: -- | I32: Ownership History
F33: i) | G33: List of prior projects using LHC programs
F34: ii) | G34: Other projects under construction by members of the Development Team and
F35: iii) | G35: Prior two (2) years audited (or certified if non-CHDO) financials of applicant
D36: c) | E36: Appendix 4 | H36: -- | I36: Zoning Evidence | K36: X
F37: i) | G37: Zoning Certification Letter or Zoning Map | K37: X
F38: ii) | G38: Other documents related to zoning
D39: d) | E39: Appendix 5a | H39: -- | I39: Appraisal for Acquisition (an Appraisal is only required to establish the value of the land used in the project). | K39: X
E40: Appendix 5b | H40: -- | I40: As-Built Appraisal (and appraisal that gives the expeced valuation of the property as buil/rehabilitated is required at submission of the application. This may be included with the Appraisal for Acquisition.) | K40: X
D41: e) | E41: Appendix 6 | H41: -- | I41: Capital Needs Assessment (for rehab projects only) | K41: X
D42: f) | E42: Appendix 7 | H42: -- | I42: Architectural and Minimum Project Design Requirement
D43: g) | E43: Appendix 8 | H43: -- | I43: CHDO Certificate of No Change | K43: X
D44: h) | E44: Appendix 9 | H44: -- | I44: Information on changes in CHDO Staff | K44: X
C45: Documents in Support of Sources and Uses
D46: a) | E46: Appendix 10 | H46: -- | I46: Financing Commitments (obtain from bank, etc.) | K46: X
D47: b) | E47: Appendix 11 | H47: -- | I47: Developer Services Agreement | K47: X
D48: c) | E48: Appendix 12 | H48: -- | I48: Description of Amenities.
D49: d) | E49: Appendix 13 | H49: -- | I49: Description of Community Facilities.
D50: e) | E50: Appendix 14 | H50: -- | I50: Affirmative Marketing Plan Form (AFHM-98) | K50: X
D51: f) | E51: Appendix 15 | H51: -- | I51: Lead Based Paint Strategy (Pre-1978 Rehab Projects Only) | K51: X
D52: g) | E52: Appendix 16 | H52: -- | I52: Certificate of Demand (From Market Study) Not required at application. Required upon preliminary award.
D53: h) | E53: Appendix 17 | H53: -- | I53: Market Study Fee. If a Market Study is required (more than 12 total units) it must be turned in the "Submitted Application". | K53: X
D54: i) | E54: Appendix 17 | H54: -- | I54: Alternative Market Analysis. If the project is less than 12 total units you may opt to provide an Alternative Market Analysis in lieu of a formal Market Study. The Alternative Market Analysis is due at application. | K54: X | N54: You may utilize the Alternative Market Analysis. If you choose to you must submit the analysis with the application.
D55: j) | E55: Appendix 18 | H55: -- | I55: CHDO Proceeds Reuse Plan | N55: If not provided proceeds must be repaid to LHC.
D56: k) | E56: Appendix 19 | H56: -- | I56: Certificate of SDB
I58: Items with an X are required for a submission to be considered. Items included without the X do not have to be submitted for consideration but may required to receive points if applicable.

Sheet Submit
A1: Below is the button to submit your application to LHC. Please do not click the button until you have completed all the tabs. Remember that you will have to attach PDF documents that are required by the program (NOAH, CHAAP, CSAR, Small Project Continuation etc.). You should have the PDF document ready prior to clicking the submit button.

Sheet Profit & Loss (hidden)
C2: PROFIT AND LOSS STATEMENT
C3: Project: | D3: ='Development Budget'!C4 -> 0
H5: Key
A6: REVENUE | D6: # Units | E6: Price | F6: Total | H6: White spaces indicate data entry
B7: Sale of Housing Units | D7: ='Development Budget'!F47 -> 0 | E7: 115000 | F7: =D7*E7 -> 0
B8: Sale of Housing Units | D8: ='Development Budget'!F48 -> 0 | E8: ='Development Budget'!H48 -> 0 | F8: =D8*E8 -> 0
B9: Sale of Housing Units | D9: ='Development Budget'!F49 -> 0 | E9: ='Development Budget'!H49 -> 0 | F9: 0
B10: Sale of Housing Units | D10: ='Development Budget'!F50 -> 0 | E10: ='Development Budget'!H50 -> 0 | F10: 0
B11: Sale of Housing Units | D11: ='Development Budget'!F51 -> 0 | E11: ='Development Budget'!H51 -> 0 | F11: 0
B12: Sale of Housing Units | D12: ='Development Budget'!F52 -> 0 | E12: ='Development Budget'!H52 -> 0 | F12: 0
B13: Sale of Housing Units | D13: ='Development Budget'!F53 -> 0 | E13: ='Development Budget'!H53 -> 0 | F13: 0
B14: Total | D14: =SUM(D7:D13) -> 0 | E14: ='Development Budget'!H54 -> 0 | F14: =SUM(F7:F13) -> 0
B15: Less Selling Costs | D15: ='Cash Flow (Sales Plan)'!D7 -> 0 | E15: Percent | F15: =F14*D15 -> 0
B16: TOTAL REVENUE | F16: =F14-F15 -> 0
A20: COSTS
B21: Property Acquisition | E21: ='Development Budget'!D9+'Development Budget'!D10 -> 0
B22: Unit Construction | E22: ='Development Budget'!D11 -> 0
B23: Other Construction | E23: ='Development Budget'!D13+'Development Budget'!D14+'Development Budget'!D15+'Development Budget'!D17+'Development Budget'!D16 -> 0
B24: Infrastructure | E24: ='Development Budget'!D19+'Development Budget'!D20+'Development Budget'!D21+'Development Budget'!D22 -> 0
B25: Professional Fees | E25: ='Development Budget'!D24+'Development Budget'!D25+'Development Budget'!D26+'Development Budget'!D27+'Development Budget'!D28+'Development Budget'!D29+'Development Budget'!D30+'Development Budget'!D31 -> 0
B26: Finance Costs | E26: ='Development Budget'!D33+'Development Budget'!D34+'Development Budget'!D35+'Development Budget'!D36+'Development Budget'!D37 -> 
B27: Soft Costs | E27: ='Development Budget'!D39+'Development Budget'!D40 -> 0
B28: Developer Fee | E28: ='Development Budget'!D41 -> 0
B29: TOTAL | E29: =SUM(E21:E28) -> 
A33: TOTAL REVENUE | E33: =F16 -> 0
A34: + TOTAL GRANTS | E34: ='Cash Flow (Sales Plan)'!BI70 -> 
A35: - TOTAL COSTS | E35: =-E29 -> 
A36: = PROFIT (LOSS) | E36: =E33+E34+E35 -> 
A39: PROJECTED PROFIT | C39: 0 | D39: Percent | E39: =MAX(E29,F14)*C39 -> 
A40: - ACTUAL PROFIT | E40: =E36 -> 
A41: = DEVELOPERS SUBSIDY | E41: =E39-E40 -> 
